Workbook

Sheet Scenario 1
A1: SCENARIO 1. | B1: ONLY PCM RESULTS ARE KNOWN
D3: RISK ASSESSMENT RESULTS:
A4: OCCUPATIONAL EXPOSURE DATA: | D4: U.S. EPA IRIS: | G4: Original Nicholson:
D5: Total Cancer, per 1,000,000 | F5: Total Cancer, per 1,000,000 | H5: Lung Cancer, per 1,000,000 | J5: Mesothelioma, per 1,000,000
A6: Asbestos Concentration, PCM (f/cc) | B6: 0.0318 | D6: =S41 -> 1001 | F6: =X41 -> 1086 | H6: =Z41 -> 571 | J6: =Y41 -> 514
A8: Duration (years) | B8: 45
A10: Onset age (years) | B10: 18
A12: Exposure duration during the shift (hours) | B12: 8 | G12: Nicholson with 2009 Mortality Data:
F13: Total Cancer, per 1,000,000 | H13: Lung Cancer, per 1,000,000 | J13: Mesothelioma, per 1,000,000
A14: Shift duration (hour) | B14: 8 | F14: =H14+J14 -> 1755 | H14: =V568 -> 1114 | J14: =Q568 -> 640
A15: Protection factor | B15: 1
A33: EPA, IRIS Method (Current USEPA Asbestos Risk Assessment Method)
H34: Duration of exposure | M34: Average PCME Receptor Asbestos Concentration Exposure, Ambient Equivalent (f/cc) | N34: Total Lifetime Exposure (f/cc years, work place equivalent) | O34: Onset time, years | P34: K1, coefficient for UNIT risk calculation | Q34: K2, coefficient for UNIT risk calculation | R34: Unit Risk (EPA, duraion and onset time adjusted) | S34: Excess Lifetime Cancer Risk (ELCR) (Cases per million) | U34: Lung cancer potency factor, Kl | V34: Mesothelioma potency factor, Km | X34: Excess Lifetime Cancer Risk (ELCR) (Cases per million) | Y34: Excess Lifetime Mesothelioma Risk (cases per million) | Z34: Excess Lifetime Lung Cancer Risk (Cases per million) | AB34: Calculated Unit Risk
O35: Range
O37: Lower
O39: Upper
G41: =B6*(B12/B14)/B15 -> 0.031800 | H41: =B8 -> 45.000000 | I41: =1 -> 1.000000 | J41: =1-I41 -> 0.000000 | K41: 1.000000 | L41: =K41*J41+I41 -> 1.000000 | M41: =G41*L41/2.8*B14/8 -> 0.011357 | N41: =H41*M41*2.8 -> 1.431000 | O41: =B10 -> 18.000000 | P41: =-0.0176401+0.2492567*EXP(-O41/24.7806941) -> 0.102916 | Q41: =0.0415839+0.0039973*EXP(O41/-18.2212632) -> 0.043072 | R41: =P41*(1-EXP(-1*Q41*H41)) -> 0.088100 | S41: =M41*R41*1000000 -> 1000.568575 | T41: Total: | U41: =1*10^-2 -> 0.010000 | V41: =1*10^-8 -> 0.000000 | X41: =Y41+Z41 -> 1085.511487 | Y41: =Q408 -> 514.462724 | Z41: =V408 -> 571.048763 | AB41: =X41/M41/1000000 -> 0.095580
G42: including: | M42: including:
F43: TWA Asbestos Concentration (f/cc) (PCME, chrysotile): | G43: =#REF!*B12/B14/B15 ->  | L43: Average PCME Chrysotile Receptor Asbestos Concentration Exposure (f/cc) | M43: =G43*(L41/2.8)*B14/8 ->  | N43: =H41*M43*2.8 ->  | Q43: " | R43: " | T43: Chrysotile: | U43: =0.051*10^-2 -> 0.000510 | V43: =0.021*10^-8 -> 0.000000 | X43: =Y43+Z43 -> 0.000000 | Y43: =Q571 -> 0.000000 | Z43: =V571 -> 0.000000
F44: TWA Asbestos Concentration (f/cc) (PCME, tremolite-actinolite) | G44: =#REF!*B12/B14/B15 ->  | L44: Average PCME Tremolite-Actinolite Receptor Asbestos Concentration Exposure (f/cc) | M44: =G44*L41/2.8*B14/8 ->  | N44: =H41*M44*2.8 ->  | T44: Tremolite-Actinolite (as amosite for mesothelioma): | U44: =0.36*10^-2 -> 0.003600 | V44: =3.9*10^-8 -> 0.000000 | X44: =Y44+Z44 -> 0.000000 | Y44: =Q700 -> 0.000000 | Z44: =V700 -> 0.000000
F46: TWA Asbestos Concentration (f/cc) (PCME, tremolite-actinolite) | G46: =#REF!*$B$12/$B$14/$B$15 ->  | L46: Average PCME Crocidolite Receptor Asbestos concentration Exposure (f/cc) | M46: =G46*$L$41/2.8*$B$14/8 ->  | N46: =$H$41*M46*2.8 ->  | S46: Crocidolite | U46: 0.011000 | V46: 0.000000
S47: Amosite | U47: =2.4*10^-2 -> 0.024000 | V47: =3.9*10^-8 -> 0.000000
F48: TWA Asbestos Concentration (f/cc), (PCME, amosite) | G48: =#REF!*$B$12/$B$14/$B$15 ->  | L48: Amosite | M48: =G48*$L$41/2.8*$B$14/8 ->  | N48: =H41*M48*2.8 -> 
Y50: Lung cancer male | AE50: P | AI50: Mesothelioma both genders
Y51: 0.000000 | Z51: 799.900000 | AA51: 0.000000 | AB51: =Z51/100000 -> 0.007999 | AC51: =AA51/100000 -> 0.000000 | AD51: =100000 -> 100000.000000 | AE51: =IF(Y51<10,0,IF(AND(OR(Y51>10,Y51=10),Y51<10+$H$53),$H$50*$H$52*(Y51-10),$H$50*$H$52*Y51)) -> 0.000000 | AF51: =AC51*AE51 -> 0.000000 | AG51: =AD51*AF51 -> 0.000000 | AI51: =IF(J51<10,0, IF(AND(OR(J51>10, J51=10),J51<10+$H$53),$H$51*$H$52*((J51-10)^3), $H$51*$H$52*((J51-10)^3-(J51-10-$H$53)^3))) -> 0.000000 | AN51: mesothelioma male 1977 | AP51: Death rate
Y52: 1.000000 | Z52: 36.500000 | AA52: 0.000000 | AB52: =Z52/100000 -> 0.000365 | AC52: 0.000000 | AD52: =AD51-AB51*AD51*2 -> 98400.200000 | AE52: 0.000000 | AF52: =AC52*AE52 -> 0.000000 | AG52: 0.000000 | AI52: 0.000000 | AJ52: =Q51+AI51 -> 0.000000 | AK52: =100000 -> 100000.000000 | AL52: =AK52*AI51 -> 0.000000 | AN52: 100000.000000 | AO52: =IF($J51<10,0, IF(AND(OR($J51>10, $J51=10),$J51<10+$H$53),$H$51*$H$52*(($J51-10)^3), $H$51*$H$52*(($J51-10)^3-($J51-10-$H$53)^3))) -> 0.000000 | AP52: =(AN52-AN53)/AN52 -> 0.015860 | AQ52: =AP52+AO52 -> 0.015860
Y53: 5.000000 | Z53: 18.300000 | AA53: 0.000000 | AB53: 0.000183 | AC53: 0.000000 | AD53: =AD52-AB52*AD52*5 -> 98220.61963 | AE53: 0.000000 | AF53: 0.000000 | AG53: 0.000000 | AI53: 0.000000 | AJ53: 0.000000 | AK53: =AK52-AK52*AJ52 -> 100000.000000 | AL53: 0.000000 | AN53: 98414.000000 | AO53: 0.000000 | AP53: 0.001036 | AQ53: =AP53+AO53 -> 0.001036 | AR53: =100000 -> 100000.000000 | AS53: =AR53*AO52 -> 0.000000
Y54: 10.000000 | Z54: 25.000000 | AA54: 0.000000 | AB54: 0.000250 | AC54: 0.000000 | AD54: =AD53-AB53*AD53*5 -> 98130.747768 | AE54: 0.000000 | AF54: 0.000000 | AG54: 0.000000 | AI54: 0.000000 | AJ54: 0.000000 | AK54: =AK53-AK53*AJ53 -> 100000.000000 | AL54: 0.000000 | AN54: 98312.000000 | AO54: 0.000000 | AP54: 0.000804 | AQ54: 0.000804 | AR54: =AR53-AR53*AQ52 -> 98414.000000 | AS54: 0.000000
Y55: 15.000000 | Z55: 94.900000 | AA55: 0.000000 | AB55: 0.000949 | AC55: 0.000000 | AD55: 98008.084333 | AE55: 0.000000 | AF55: 0.000000 | AG55: 0.000000 | AI55: 0.000000 | AJ55: 0.000000 | AK55: 100000.000000 | AL55: 0.000000 | AN55: 98233.000000 | AO55: 0.000000 | AP55: 0.000641 | AQ55: 0.000641 | AR55: 98312.000000 | AS55: 0.000000
Y56: 20.000000 | Z56: 142.000000 | AA56: 0.000000 | AB56: 0.001420 | AC56: 0.000000 | AD56: 97543.035973 | AE56: 0.000000 | AF56: 0.000000 | AG56: 0.000000 | AI56: 0.000000 | AJ56: 0.000000 | AK56: 100000.000000 | AL56: 0.000000 | AN56: 98170.000000 | AO56: 0.000000 | AP56: 0.000540 | AQ56: 0.000540 | AR56: 98233.000000 | AS56: 0.000000
Y57: 25.000000 | Z57: 141.900000 | AA57: 0.300000 | AB57: 0.001419 | AC57: 0.000003 | AD57: 96850.480418 | AE57: 0.000000 | AF57: =AC57*AE57*5 -> 0.000000 | AG57: 0.000000 | AI57: 0.000000 | AJ57: 0.000000 | AK57: 100000.000000 | AL57: 0.000000 | AN57: 98117.000000 | AO57: 0.000000 | AP57: 0.000489 | AQ57: 0.000489 | AR57: 98170.000000 | AS57: 0.000000
Y58: 30.000000 | Z58: 157.300000 | AA58: 0.800000 | AB58: 0.001573 | AC58: 0.000008 | AD58: 96163.326259 | AE58: 0.000000 | AF58: 0.000000 | AG58: 0.000000 | AI58: 0.000000 | AJ58: 0.000000 | AK58: 100000.000000 | AL58: 0.000000 | AN58: 98069.000000 | AO58: 0.000000 | AP58: 0.000449 | AQ58: 0.000449 | AR58: 98117.000000 | AS58: 0.000000
Y59: 35.000000 | Z59: 209.800000 | AA59: 3.300000 | AB59: 0.002098 | AC59: 0.000033 | AD59: 95407.001698 | AE59: 0.000000 | AF59: 0.000000 | AG59: 0.000000 | AI59: 0.000000 | AJ59: 0.000000 | AK59: 100000.000000 | AL59: 0.000000 | AN59: 98025.000000 | AO59: 0.000000 | AP59: 0.000418 | AQ59: 0.000418 | AR59: 98069.000000 | AS59: 0.000000
Y60: 40.000000 | Z60: 303.300000 | AA60: 10.400000 | AB60: 0.003033 | AC60: 0.000104 | AD60: 94406.182250 | AE60: 0.000000 | AF60: 0.000000 | AG60: 0.000000 | AI60: 0.000000 | AJ60: 0.000000 | AK60: 100000.000000 | AL60: 0.000000 | AN60: 97984.000000 | AO60: 0.000000 | AP60: 0.000367 | AQ60: 0.000367 | AR60: 98025.000000 | AS60: 0.000000
Y61: 45.000000 | Z61: 461.700000 | AA61: 26.000000 | AB61: 0.004617 | AC61: 0.000260 | AD61: 92974.512497 | AE61: 0.000000 | AF61: 0.000000 | AG61: 0.000000 | AI61: 0.000000 | AJ61: 0.000000 | AK61: 100000.000000 | AL61: 0.000000 | AN61: 97948.000000 | AO61: 0.000000 | AP61: 0.000316 | AQ61: 0.000316 | AR61: 97984.000000 | AS61: 0.000000
Y62: 50.000000 | Z62: 658.300000 | AA62: 54.600000 | AB62: 0.006583 | AC62: 0.000546 | AD62: 90828.195876 | AE62: 0.000000 | AF62: 0.000000 | AG62: 0.000000 | AI62: 0.000000 | AJ62: 0.000000 | AK62: 100000.000000 | AL62: 0.000000 | AN62: 97917.000000 | AO62: 0.000000 | AP62: 0.000276 | AQ62: 0.000276 | AR62: 97948.000000 | AS62: 0.000000
Y63: 55.000000 | Z63: 1007.500000 | AA63: 118.000000 | AB63: 0.010075 | AC63: 0.001180 | AD63: 87838.585808 | AE63: 0.000000 | AF63: 0.000000 | AG63: 0.000000 | AI63: 0.000000 | AJ63: 0.000000 | AK63: 100000.000000 | AL63: 0.000000 | AN63: 97890.000000 | AO63: 0.000000 | AP63: 0.000276 | AQ63: 0.000276 | AR63: 97917.000000 | AS63: 0.000000
Y64: 60.000000 | Z64: 1565.500000 | AA64: 206.200000 | AB64: 0.015655 | AC64: 0.002062 | AD64: 83413.717048 | AE64: 0.000000 | AF64: 0.000000 | AG64: 0.000000 | AI64: 0.000000 | AJ64: 0.000000 | AK64: 100000.000000 | AL64: 0.000000 | AN64: 97863.000000 | AO64: 0.000000 | AP64: 0.000358 | AQ64: 0.000358 | AR64: 97890.000000 | AS64: 0.000000
Y65: 65.000000 | Z65: 2399.300000 | AA65: 327.500000 | AB65: 0.023993 | AC65: 0.003275 | AD65: 76884.508346 | AE65: 0.000000 | AF65: 0.000000 | AG65: 0.000000 | AI65: 0.000000 | AJ65: 0.000000 | AK65: 100000.000000 | AL65: 0.000000 | AN65: 97828.000000 | AO65: 0.000000 | AP65: 0.000532 | AQ65: 0.000532 | AR65: 97863.000000 | AS65: 0.000000
Y66: 70.000000 | Z66: 3705.400000 | AA66: 444.000000 | AB66: 0.037054 | AC66: 0.004440 | AD66: 67661.058302 | AE66: 0.000000 | AF66: 0.000000 | AG66: 0.000000 | AI66: 0.000000 | AJ66: 0.000000 | AK66: 100000.000000 | AL66: 0.000000 | AN66: 97776.000000 | AO66: 0.000000 | AP66: 0.000777 | AQ66: 0.000777 | AR66: 97828.000000 | AS66: 0.000000
Y67: 75.000000 | Z67: 5591.200000 | AA67: 507.300000 | AB67: 0.055912 | AC67: 0.005073 | AD67: 55125.494031 | AE67: 0.000000 | AF67: 0.000000 | AG67: 0.000000 | AI67: 0.000000 | AJ67: 0.000000 | AK67: 100000.000000 | AL67: 0.000000 | AN67: 97700.000000 | AO67: 0.000000 | AP67: 0.001044 | AQ67: 0.001044 | AR67: 97776.000000 | AS67: 0.000000
Y68: 80.000000 | Z68: 8956.900000 | AA68: 549.600000 | AB68: 0.089569 | AC68: 0.005496 | AD68: 39714.610920 | AE68: 0.000000 | AF68: 0.000000 | AG68: 0.000000 | AI68: 0.000000 | AJ68: 0.000000 | AK68: 100000.000000 | AL68: 0.000000 | AN68: 97598.000000 | AO68: 0.000000 | AP68: 0.001301 | AQ68: 0.001301 | AR68: 97700.000000 | AS68: 0.000000
Y69: 85.000000 | Z69: 16605.400000 | AA69: 499.000000 | AB69: 0.166054 | AC69: 0.004990 | AD69: 21928.620992 | AE69: 0.000000 | AF69: 0.000000 | AG69: 0.000000 | AI69: 0.000000 | AJ69: 0.000000 | AK69: 100000.000000 | AL69: 0.000000 | AN69: 97471.000000 | AO69: 0.000000 | AP69: 0.001518 | AQ69: 0.001518 | AR69: 97598.000000 | AS69: 0.000000
AI70: 0.000000 | AJ70: 0.000000 | AK70: 100000.000000 | AL70: 0.000000 | AN70: 97323.000000 | AO70: 0.000000 | AP70: 0.001685 | AQ70: 0.001685 | AR70: 97471.000000 | AS70: 0.000000
AI71: 0.000000 | AJ71: 0.000000 | AK71: 100000.000000 | AL71: 0.000000 | AN71: 97159.000000 | AO71: 0.000000 | AP71: 0.001791 | AQ71: 0.001791 | AR71: 97323.000000 | AS71: 0.000000
AG72: =SUM(AG51:AG69)/100000*1000000 -> 0.000000 | AI72: 0.000000 | AJ72: 0.000000 | AK72: 100000.000000 | AL72: 0.000000 | AN72: 96985.000000 | AO72: 0.000000 | AP72: 0.001897 | AQ72: 0.001897 | AR72: 97159.000000 | AS72: 0.000000
AI73: 0.000000 | AJ73: 0.000000 | AK73: 100000.000000 | AL73: 0.000000 | AN73: 96801.000000 | AO73: 0.000000 | AP73: 0.002004 | AQ73: 0.002004 | AR73: 96985.000000 | AS73: 0.000000
AI74: 0.000000 | AJ74: 0.000000 | AK74: 100000.000000 | AL74: 0.000000 | AN74: 96607.000000 | AO74: 0.000000 | AP74: 0.002070 | AQ74: 0.002070 | AR74: 96801.000000 | AS74: 0.000000
AI75: 0.000000 | AJ75: 0.000000 | AK75: 100000.000000 | AL75: 0.000000 | AN75: 96407.000000 | AO75: 0.000000 | AP75: 0.002075 | AQ75: 0.002075 | AR75: 96607.000000 | AS75: 0.000000
Y76: Lung cancer female | AI76: 0.000000 | AJ76: 0.000000 | AK76: 100000.000000 | AL76: 0.000000 | AN76: 96207.000000 | AO76: 0.000000 | AP76: 0.002048 | AQ76: 0.002048 | AR76: 96407.000000 | AS76: 0.000000
AE77: P | AI77: 0.000000 | AJ77: 0.000000 | AK77: 100000.000000 | AL77: 0.000000 | AN77: 96010.000000 | AO77: 0.000000 | AP77: 0.002010 | AQ77: 0.002010 | AR77: 96207.000000 | AS77: 0.000000
Y78: 0.000000 | Z78: 654.300000 | AA78: 0.000000 | AB78: =Z78/100000 -> 0.006543 | AC78: =AA78/100000 -> 0.000000 | AD78: =100000 -> 100000.000000 | AE78: =IF(Y78<10,0,IF(AND(OR(Y78>10,Y78=10),Y78<10+$H$53),$H$50*$H$52*(Y78-10),$H$50*$H$52*Y78)) -> 0.000000 | AF78: =AC78*AE78 -> 0.000000 | AG78: =AD78*AF78 -> 0.000000 | AI78: 0.000000 | AJ78: 0.000000 | AK78: 100000.000000 | AL78: 0.000000 | AN78: 95817.000000 | AO78: 0.000000 | AP78: 0.001973 | AQ78: 0.001973 | AR78: 96010.000000 | AS78: 0.000000
Y79: 1.000000 | Z79: 29.100000 | AA79: 0.000000 | AB79: =Z79/100000 -> 0.000291 | AC79: 0.000000 | AD79: =AD78-AB78*AD78*2 -> 98691.400000 | AE79: 0.000000 | AF79: =AC79*AE79 -> 0.000000 | AG79: 0.000000 | AI79: 0.000000 | AJ79: 0.000000 | AK79: 100000.000000 | AL79: 0.000000 | AN79: 95628.000000 | AO79: 0.000000 | AP79: 0.001924 | AQ79: 0.001924 | AR79: 95817.000000 | AS79: 0.000000
Y80: 5.000000 | Z80: 14.500000 | AA80: 0.000000 | AB80: 0.000145 | AC80: 0.000000 | AD80: =AD79-AB79*AD79*5 -> 98547.80401 | AE80: 0.000000 | AF80: 0.000000 | AG80: 0.000000 | AI80: 0.000000 | AJ80: 0.000000 | AK80: 100000.000000 | AL80: 0.000000 | AN80: 95444.000000 | AO80: 0.000000 | AP80: 0.001896 | AQ80: 0.001896 | AR80: 95628.000000 | AS80: 0.000000
Y81: 10.000000 | Z81: 16.600000 | AA81: 0.000000 | AB81: 0.000166 | AC81: 0.000000 | AD81: =AD80-AB80*AD80*5 -> 98476.356855 | AE81: 0.000000 | AF81: 0.000000 | AG81: 0.000000 | AI81: 0.000000 | AJ81: 0.000000 | AK81: 100000.000000 | AL81: 0.000000 | AN81: 95263.000000 | AO81: 0.000000 | AP81: 0.001879 | AQ81: 0.001879 | AR81: 95444.000000 | AS81: 0.000000
Y82: 15.000000 | Z82: 40.000000 | AA82: 0.000000 | AB82: 0.000400 | AC82: 0.000000 | AD82: 98394.621479 | AE82: 0.000000 | AF82: 0.000000 | AG82: 0.000000 | AI82: 0.000000 | AJ82: 0.000000 | AK82: 100000.000000 | AL82: 0.000000 | AN82: 95084.000000 | AO82: 0.000000 | AP82: 0.001862 | AQ82: 0.001862 | AR82: 95263.000000 | AS82: 0.000000
Y83: 20.000000 | Z83: 48.200000 | AA83: 0.000000 | AB83: 0.000482 | AC83: 0.000000 | AD83: 98197.832236 | AE83: 0.000000 | AF83: 0.000000 | AG83: 0.000000 | AI83: =IF(J83<10,0, IF(AND(OR(J83>10, J83=10),J83<10+$H$53),$H$51*$H$52*((J83-10)^3), $H$51*$H$52*((J83-10)^3-(J83-10-$H$53)^3))) -> 0.000000 | AJ83: 0.000000 | AK83: 100000.000000 | AL83: 0.000000 | AN83: 94907.000000 | AO83: 0.000000 | AP83: 0.001865 | AQ83: 0.001865 | AR83: 95084.000000 | AS83: 0.000000
Y84: 25.000000 | Z84: 56.500000 | AA84: 0.000000 | AB84: 0.000565 | AC84: 0.000000 | AD84: 97961.175460 | AE84: 0.000000 | AF84: 0.000000 | AG84: 0.000000 | AI84: 0.000000 | AJ84: =Q83+AI83 -> 0.000000 | AK84: 100000.000000 | AL84: =AK84*AI83 -> 0.000000 | AN84: 94730.000000 | AO84: =IF($J83<10,0, IF(AND(OR($J83>10, $J83=10),$J83<10+$H$53),$H$51*$H$52*(($J83-10)^3), $H$51*$H$52*(($J83-10)^3-($J83-10-$H$53)^3))) -> 0.000000 | AP84: =(AN84-AN85)/AN84 -> 0.001890 | AQ84: 0.001890 | AR84: 94907.000000 | AS84: 0.000000
Y85: 30.000000 | Z85: 76.000000 | AA85: 0.900000 | AB85: 0.000760 | AC85: 0.000009 | AD85: 97684.435140 | AE85: 0.000000 | AF85: =AC85*AE85*5 -> 0.000000 | AG85: 0.000000 | AI85: 0.000000 | AJ85: 0.000000 | AK85: 100000.000000 | AL85: 0.000000 | AN85: 94551.000000 | AO85: 0.000000 | AP85: 0.001967 | AQ85: 0.001967 | AR85: 94730.000000 | AS85: =AR85*AO84 -> 0.000000
Y86: 35.000000 | Z86: 115.100000 | AA86: 2.600000 | AB86: 0.001151 | AC86: 0.000026 | AD86: 97313.234286 | AE86: 0.000000 | AF86: 0.000000 | AG86: 0.000000 | AI86: 0.000000 | AJ86: 0.000000 | AK86: 100000.000000 | AL86: 0.000000 | AN86: 94365.000000 | AO86: 0.000000 | AP86: 0.002088 | AQ86: 0.002088 | AR86: =AR85-AR85*AQ84 -> 94551.000000 | AS86: 0.000000
Y87: 40.000000 | Z87: 172.200000 | AA87: 8.100000 | AB87: 0.001722 | AC87: 0.000081 | AD87: 96753.196623 | AE87: 0.000000 | AF87: 0.000000 | AG87: 0.000000 | AI87: 0.000000 | AJ87: 0.000000 | AK87: 100000.000000 | AL87: 0.000000 | AN87: 94168.000000 | AO87: 0.000000 | AP87: 0.002230 | AQ87: 0.002230 | AR87: 94365.000000 | AS87: 0.000000
Y88: 45.000000 | Z88: 254.000000 | AA88: 16.600000 | AB88: 0.002540 | AC88: 0.000166 | AD88: 95920.151600 | AE88: 0.000000 | AF88: 0.000000 | AG88: 0.000000 | AI88: 0.000000 | AJ88: 0.000000 | AK88: 100000.000000 | AL88: 0.000000 | AN88: 93958.000000 | AO88: 0.000000 | AP88: 0.002384 | AQ88: 0.002384 | AR88: 94168.000000 | AS88: 0.000000
Y89: 50.000000 | Z89: 386.300000 | AA89: 35.100000 | AB89: 0.003863 | AC89: 0.000351 | AD89: 94701.965674 | AE89: 0.000000 | AF89: 0.000000 | AG89: 0.000000 | AI89: 0.000000 | AJ89: 0.000000 | AK89: 100000.000000 | AL89: 0.000000 | AN89: 93734.000000 | AO89: 0.000000 | AP89: 0.002571 | AQ89: 0.002571 | AR89: 93958.000000 | AS89: 0.000000
Y90: 55.000000 | Z90: 611.800000 | AA90: 70.900000 | AB90: 0.006118 | AC90: 0.000709 | AD90: 92872.797207 | AE90: 0.000000 | AF90: 0.000000 | AG90: 0.000000 | AI90: 0.000000 | AJ90: 0.000000 | AK90: 100000.000000 | AL90: 0.000000 | AN90: 93493.000000 | AO90: 0.000000 | AP90: 0.002770 | AQ90: 0.002770 | AR90: 93734.000000 | AS90: 0.000000
Y91: 60.000000 | Z91: 982.000000 | AA91: 122.300000 | AB91: 0.009820 | AC91: 0.001223 | AD91: 90031.818341 | AE91: 0.000000 | AF91: 0.000000 | AG91: 0.000000 | AI91: 0.000000 | AJ91: 0.000000 | AK91: 100000.000000 | AL91: 0.000000 | AN91: 93234.000000 | AO91: 0.000000 | AP91: 0.002992 | AQ91: 0.002992 | AR91: 93493.000000 | AS91: 0.000000
Y92: 65.000000 | Z92: 1527.500000 | AA92: 181.600000 | AB92: 0.015275 | AC92: 0.001816 | AD92: 85611.256060 | AE92: 0.000000 | AF92: 0.000000 | AG92: 0.000000 | AI92: 0.000000 | AJ92: 0.000000 | AK92: 100000.000000 | AL92: 0.000000 | AN92: 92955.000000 | AO92: 0.000000 | AP92: 0.003249 | AQ92: 0.003249 | AR92: 93234.000000 | AS92: 0.000000
Y93: 70.000000 | Z93: 2381.800000 | AA93: 238.700000 | AB93: 0.023818 | AC93: 0.002387 | AD93: 79072.696379 | AE93: 0.000000 | AF93: 0.000000 | AG93: 0.000000 | AI93: 0.000000 | AJ93: 0.000000 | AK93: 100000.000000 | AL93: 0.000000 | AN93: 92653.000000 | AO93: 0.000000 | AP93: 0.003551 | AQ93: 0.003551 | AR93: 92955.000000 | AS93: 0.000000
Y94: 75.000000 | Z94: 3812.600000 | AA94: 268.600000 | AB94: 0.038126 | AC94: 0.002686 | AD94: 69655.928967 | AE94: 0.000000 | AF94: 0.000000 | AG94: 0.000000 | AI94: 0.000000 | AJ94: 0.000000 | AK94: 100000.000000 | AL94: 0.000000 | AN94: 92324.000000 | AO94: 0.000000 | AP94: 0.003878 | AQ94: 0.003878 | AR94: 92653.000000 | AS94: 0.000000
Y95: 80.000000 | Z95: 6444.800000 | AA95: 272.800000 | AB95: 0.064448 | AC95: 0.002728 | AD95: 56377.419228 | AE95: 0.000000 | AF95: 0.000000 | AG95: 0.000000 | AI95: 0.000000 | AJ95: 0.000000 | AK95: 100000.000000 | AL95: 0.000000 | AN95: 91966.000000 | AO95: 0.000000 | AP95: 0.004252 | AQ95: 0.004252 | AR95: 92324.000000 | AS95: 0.000000
Y96: 85.000000 | Z96: 14768.600000 | AA96: 213.500000 | AB96: 0.147686 | AC96: 0.002135 | AD96: 38210.359656 | AE96: 0.000000 | AF96: 0.000000 | AG96: 0.000000 | AI96: 0.000000 | AJ96: 0.000000 | AK96: 100000.000000 | AL96: 0.000000 | AN96: 91575.000000 | AO96: 0.000000 | AP96: 0.004674 | AQ96: 0.004674 | AR96: 91966.000000 | AS96: 0.000000
AI97: 0.000000 | AJ97: 0.000000 | AK97: 100000.000000 | AL97: 0.000000 | AN97: 91147.000000 | AO97: 0.000000 | AP97: 0.005124 | AQ97: 0.005124 | AR97: 91575.000000 | AS97: 0.000000
AI98: 0.000000 | AJ98: 0.000000 | AK98: 100000.000000 | AL98: 0.000000 | AN98: 90680.000000 | AO98: 0.000000 | AP98: 0.005624 | AQ98: 0.005624 | AR98: 91147.000000 | AS98: 0.000000
AG99: =SUM(AG78:AG96)/100000*1000000 -> 0.000000 | AI99: 0.000000 | AJ99: 0.000000 | AK99: 100000.000000 | AL99: 0.000000 | AN99: 90170.000000 | AO99: 0.000000 | AP99: 0.006177 | AQ99: 0.006177 | AR99: 90680.000000 | AS99: 0.000000
AI100: 0.000000 | AJ100: 0.000000 | AK100: 100000.000000 | AL100: 0.000000 | AN100: 89613.000000 | AO100: 0.000000 | AP100: 0.006818 | AQ100: 0.006818 | AR100: 90170.000000 | AS100: 0.000000
Y101: Lung cancer both genders | AI101: 0.000000 | AJ101: 0.000000 | AK101: 100000.000000 | AL101: 0.000000 | AN101: 89002.000000 | AO101: 0.000000 | AP101: 0.007505 | AQ101: 0.007505 | AR101: 89613.000000 | AS101: 0.000000
Z102: Total death/100,000 | AA102: Lung cancer, per 100,000 | AE102: P | AI102: 0.000000 | AJ102: 0.000000 | AK102: 100000.000000 | AL102: 0.000000 | AN102: 88334.000000 | AO102: 0.000000 | AP102: 0.008275 | AQ102: 0.008275 | AR102: 89002.000000 | AS102: 0.000000
X103: 0.000000 | Y103: =X103-$O$41 -> -18.000000 | Z103: =(Z51+Z78)/2 -> 727.100000 | AA103: =(AA51+AA78)/2 -> 0.000000 | AB103: =Z103/100000 -> 0.007271 | AC103: =AA103/100000 -> 0.000000 | AD103: =100000 -> 100000.000000 | AE103: =IF(Y103<10,0,IF(AND(OR(Y103>10,Y103=10),Y103<10+$H$53),$H$50*$H$52*(Y103-10),$H$50*$H$52*Y103)) -> 0.000000 | AF103: =AC103*AE103 -> 0.000000 | AG103: =AD103*AF103 -> 0.000000 | AI103: 0.000000 | AJ103: 0.000000 | AK103: 100000.000000 | AL103: 0.000000 | AN103: 87603.000000 | AO103: 0.000000 | AP103: 0.009109 | AQ103: 0.009109 | AR103: 88334.000000 | AS103: 0.000000
X104: 1.000000 | Y104: -17.000000 | Z104: =(Z52+Z79)/2 -> 32.800000 | AA104: 0.000000 | AB104: =Z104/100000 -> 0.000328 | AC104: 0.000000 | AD104: =AD103-AB103*AD103*2 -> 98545.800000 | AE104: 0.000000 | AF104: =AC104*AE104 -> 0.000000 | AG104: 0.000000 | AI104: 0.000000 | AJ104: 0.000000 | AK104: 100000.000000 | AL104: 0.000000 | AN104: 86805.000000 | AO104: 0.000000 | AP104: 0.009953 | AQ104: 0.009953 | AR104: 87603.000000 | AS104: 0.000000
X105: 5.000000 | Y105: -13.000000 | Z105: 16.400000 | AA105: 0.000000 | AB105: 0.000164 | AC105: 0.000000 | AD105: =AD104-AB104*AD104*5 -> 98384.18489 | AE105: 0.000000 | AF105: 0.000000 | AG105: 0.000000 | AI105: 0.000000 | AJ105: 0.000000 | AK105: 100000.000000 | AL105: 0.000000 | AN105: 85941.000000 | AO105: 0.000000 | AP105: 0.010810 | AQ105: 0.010810 | AR105: 86805.000000 | AS105: 0.000000
X106: 10.000000 | Y106: -8.000000 | Z106: 20.800000 | AA106: 0.000000 | AB106: 0.000208 | AC106: 0.000000 | AD106: =AD105-AB105*AD105*5 -> 98303.509856 | AE106: 0.000000 | AF106: 0.000000 | AG106: 0.000000 | AI106: 0.000000 | AJ106: 0.000000 | AK106: 100000.000000 | AL106: 0.000000 | AN106: 85012.000000 | AO106: 0.000000 | AP106: 0.011716 | AQ106: 0.011716 | AR106: 85941.000000 | AS106: 0.000000
X107: 15.000000 | Y107: -3.000000 | Z107: 67.450000 | AA107: 0.000000 | AB107: 0.000675 | AC107: 0.000000 | AD107: 98201.274206 | AE107: 0.000000 | AF107: 0.000000 | AG107: 0.000000 | AI107: 0.000000 | AJ107: 0.000000 | AK107: 100000.000000 | AL107: 0.000000 | AN107: 84016.000000 | AO107: 0.000000 | AP107: 0.012640 | AQ107: 0.012640 | AR107: 85012.000000 | AS107: 0.000000
X108: 20.000000 | Y108: 2.000000 | Z108: 95.100000 | AA108: 0.000000 | AB108: 0.000951 | AC108: 0.000000 | AD108: 97870.090409 | AE108: 0.000000 | AF108: 0.000000 | AG108: 0.000000 | AI108: 0.000000 | AJ108: 0.000000 | AK108: 100000.000000 | AL108: 0.000000 | AN108: 82954.000000 | AO108: 0.000000 | AP108: 0.013658 | AQ108: 0.013658 | AR108: 84016.000000 | AS108: 0.000000
X109: 25.000000 | Y109: 7.000000 | Z109: 99.200000 | AA109: 0.150000 | AB109: 0.000992 | AC109: 0.000002 | AD109: 97404.718129 | AE109: 0.000000 | AF109: =AC109*AE109*5 -> 0.000000 | AG109: 0.000000 | AI109: 0.000000 | AJ109: 0.000000 | AK109: 100000.000000 | AL109: 0.000000 | AN109: 81821.000000 | AO109: 0.000000 | AP109: 0.014911 | AQ109: 0.014911 | AR109: 82954.000000 | AS109: 0.000000
X110: 30.000000 | Y110: 12.000000 | Z110: 116.650000 | AA110: 0.850000 | AB110: 0.001167 | AC110: 0.000009 | AD110: 96921.590727 | AE110: 0.000000 | AF110: =AC110*AE110*5 -> 0.000000 | AG110: 0.000000 | AI110: 0.000000 | AJ110: 0.000000 | AK110: 100000.000000 | AL110: 0.000000 | AN110: 80601.000000 | AO110: 0.000000 | AP110: 0.016464 | AQ110: 0.016464 | AR110: 81821.000000 | AS110: 0.000000
X111: 35.000000 | Y111: 17.000000 | Z111: 162.450000 | AA111: 2.950000 | AB111: 0.001625 | AC111: 0.000030 | AD111: 96356.295549 | AE111: 0.000000 | AF111: 0.000000 | AG111: 0.000000 | AI111: 0.000000 | AJ111: 0.000000 | AK111: 100000.000000 | AL111: 0.000000 | AN111: 79274.000000 | AO111: 0.000000 | AP111: 0.018266 | AQ111: 0.018266 | AR111: 80601.000000 | AS111: 0.000000
X112: 40.000000 | Y112: 22.000000 | Z112: 237.750000 | AA112: 9.250000 | AB112: 0.002378 | AC112: 0.000093 | AD112: 95573.641539 | AE112: 0.000000 | AF112: 0.000000 | AG112: 0.000000 | AI112: 0.000000 | AJ112: 0.000000 | AK112: 100000.000000 | AL112: 0.000000 | AN112: 77826.000000 | AO112: 0.000000 | AP112: 0.020250 | AQ112: 0.020250 | AR112: 79274.000000 | AS112: 0.000000
X113: 45.000000 | Y113: 27.000000 | Z113: 357.850000 | AA113: 21.300000 | AB113: 0.003579 | AC113: 0.000213 | AD113: 94437.509875 | AE113: 0.000000 | AF113: 0.000000 | AG113: 0.000000 | AI113: 0.000000 | AJ113: 0.000000 | AK113: 100000.000000 | AL113: 0.000000 | AN113: 76250.000000 | AO113: 0.000000 | AP113: 0.022308 | AQ113: 0.022308 | AR113: 77826.000000 | AS113: 0.000000
X114: 50.000000 | Y114: 32.000000 | Z114: 522.300000 | AA114: 44.850000 | AB114: 0.005223 | AC114: 0.000449 | AD114: 92747.786729 | AE114: 0.000000 | AF114: 0.000000 | AG114: 0.000000 | AI114: 0.000000 | AJ114: 0.000000 | AK114: 100000.000000 | AL114: 0.000000 | AN114: 74549.000000 | AO114: 0.000000 | AP114: 0.024293 | AQ114: 0.024293 | AR114: 76250.000000 | AS114: 0.000000
X115: 55.000000 | Y115: 37.000000 | Z115: 809.650000 | AA115: 94.450000 | AB115: 0.008097 | AC115: 0.000945 | AD115: 90325.678279 | AE115: 0.000000 | AF115: 0.000000 | AG115: 0.000000 | AI115: =IF(J115<10,0, IF(AND(OR(J115>10, J115=10),J115<10+$H$53),$H$51*$H$52*((J115-10)^3), $H$51*$H$52*((J115-10)^3-(J115-10-$H$53)^3))) -> 0.000000 | AJ115: 0.000000 | AK115: 100000.000000 | AL115: 0.000000 | AN115: 72738.000000 | AO115: 0.000000 | AP115: 0.026107 | AQ115: 0.026107 | AR115: 74549.000000 | AS115: 0.000000
X116: 60.000000 | Y116: 42.000000 | Z116: 1273.750000 | AA116: 164.250000 | AB116: 0.012738 | AC116: 0.001643 | AD116: 86669.069008 | AE116: 0.000000 | AF116: 0.000000 | AG116: 0.000000 | AI116: 0.000000 | AJ116: =Q115+AI115 -> 0.000000 | AK116: 100000.000000 | AL116: =AK116*AI115 -> 0.000000 | AN116: 70839.000000 | AO116: =IF($J115<10,0, IF(AND(OR($J115>10, $J115=10),$J115<10+$H$53),$H$51*$H$52*(($J115-10)^3), $H$51*$H$52*(($J115-10)^3-($J115-10-$H$53)^3))) -> 0.000000 | AP116: =(AN116-AN117)/AN116 -> 0.027838 | AQ116: 0.027838 | AR116: 72738.000000 | AS116: 0.000000
X117: 65.000000 | Y117: 47.000000 | Z117: 1963.400000 | AA117: 254.550000 | AB117: 0.019634 | AC117: 0.002546 | AD117: 81149.332676 | AE117: 0.000000 | AF117: 0.000000 | AG117: 0.000000 | AI117: 0.000000 | AJ117: 0.000000 | AK117: 100000.000000 | AL117: 0.000000 | AN117: 68867.000000 | AO117: 0.000000 | AP117: 0.029579 | AQ117: =AP117+AO117 -> 0.029579 | AR117: 70839.000000 | AS117: =AR117*AO116 -> 0.000000
X118: 70.000000 | Y118: 52.000000 | Z118: 3043.600000 | AA118: 341.350000 | AB118: 0.030436 | AC118: 0.003414 | AD118: 73182.902687 | AE118: 0.000000 | AF118: 0.000000 | AG118: 0.000000 | AI118: 0.000000 | AJ118: 0.000000 | AK118: =AK117-AK117*AJ117 -> 100000.000000 | AL118: 0.000000 | AN118: 66830.000000 | AO118: 0.000000 | AP118: 0.031543 | AQ118: 0.031543 | AR118: =AR117-AR117*AQ116 -> 68867.000000 | AS118: 0.000000
X119: 75.000000 | Y119: 57.000000 | Z119: 4701.900000 | AA119: 387.950000 | AB119: 0.047019 | AC119: 0.003880 | AD119: 62045.928556 | AE119: 0.000000 | AF119: 0.000000 | AG119: 0.000000 | AI119: 0.000000 | AJ119: 0.000000 | AK119: 100000.000000 | AL119: 0.000000 | AN119: 64722.000000 | AO119: 0.000000 | AP119: 0.033868 | AQ119: 0.033868 | AR119: 66830.000000 | AS119: 0.000000
X120: 80.000000 | Y120: 62.000000 | Z120: 7700.850000 | AA120: 411.200000 | AB120: 0.077009 | AC120: 0.004112 | AD120: 47459.240982 | AE120: 0.000000 | AF120: 0.000000 | AG120: 0.000000 | AI120: 0.000000 | AJ120: 0.000000 | AK120: 100000.000000 | AL120: 0.000000 | AN120: 62530.000000 | AO120: 0.000000 | AP120: 0.036750 | AQ120: 0.036750 | AR120: 64722.000000 | AS120: 0.000000
X121: 85.000000 | Y121: 67.000000 | Z121: 15687.000000 | AA121: 356.250000 | AB121: 0.156870 | AC121: 0.003563 | AD121: 29185.416186 | AE121: 0.000000 | AF121: 0.000000 | AG121: 0.000000 | AI121: 0.000000 | AJ121: 0.000000 | AK121: 100000.000000 | AL121: 0.000000 | AN121: 60232.000000 | AO121: 0.000000 | AP121: 0.040128 | AQ121: 0.040128 | AR121: 62530.000000 | AS121: 0.000000
AI122: 0.000000 | AJ122: 0.000000 | AK122: 100000.000000 | AL122: 0.000000 | AN122: 57815.000000 | AO122: 0.000000 | AP122: 0.043778 | AQ122: 0.043778 | AR122: 60232.000000 | AS122: 0.000000
AI123: 0.000000 | AJ123: 0.000000 | AK123: 100000.000000 | AL123: 0.000000 | AN123: 55284.000000 | AO123: 0.000000 | AP123: 0.047609 | AQ123: 0.047609 | AR123: 57815.000000 | AS123: 0.000000
AG124: =SUM(AG103:AG121)/100000*1000000 -> 0.000000 | AI124: 0.000000 | AJ124: 0.000000 | AK124: 100000.000000 | AL124: 0.000000 | AN124: 52652.000000 | AO124: 0.000000 | AP124: 0.051831 | AQ124: 0.051831 | AR124: 55284.000000 | AS124: 0.000000
AI125: 0.000000 | AJ125: 0.000000 | AK125: 100000.000000 | AL125: 0.000000 | AN125: 49923.000000 | AO125: 0.000000 | AP125: 0.056487 | AQ125: 0.056487 | AR125: 52652.000000 | AS125: 0.000000
AI126: 0.000000 | AJ126: 0.000000 | AK126: 100000.000000 | AL126: 0.000000 | AN126: 47103.000000 | AO126: 0.000000 | AP126: 0.061567 | AQ126: 0.061567 | AR126: 49923.000000 | AS126: 0.000000
AI127: 0.000000 | AJ127: 0.000000 | AK127: 100000.000000 | AL127: 0.000000 | AN127: 44203.000000 | AO127: 0.000000 | AP127: 0.067032 | AQ127: 0.067032 | AR127: 47103.000000 | AS127: 0.000000
AI128: 0.000000 | AJ128: 0.000000 | AK128: 100000.000000 | AL128: 0.000000 | AN128: 41240.000000 | AO128: 0.000000 | AP128: 0.072866 | AQ128: 0.072866 | AR128: 44203.000000 | AS128: 0.000000
AI129: 0.000000 | AJ129: 0.000000 | AK129: 100000.000000 | AL129: 0.000000 | AN129: 38235.000000 | AO129: 0.000000 | AP129: 0.079011 | AQ129: 0.079011 | AR129: 41240.000000 | AS129: 0.000000
AI130: 0.000000 | AJ130: 0.000000 | AK130: 100000.000000 | AL130: 0.000000 | AN130: 35214.000000 | AO130: 0.000000 | AP130: 0.085392 | AQ130: 0.085392 | AR130: 38235.000000 | AS130: 0.000000
AI131: 0.000000 | AJ131: 0.000000 | AK131: 100000.000000 | AL131: 0.000000 | AN131: 32207.000000 | AO131: 0.000000 | AP131: 0.091937 | AQ131: 0.091937 | AR131: 35214.000000 | AS131: 0.000000
AI132: 0.000000 | AJ132: 0.000000 | AK132: 100000.000000 | AL132: 0.000000 | AN132: 29246.000000 | AO132: 0.000000 | AP132: 0.098509 | AQ132: 0.098509 | AR132: 32207.000000 | AS132: 0.000000
AI133: 0.000000 | AJ133: 0.000000 | AK133: 100000.000000 | AL133: 0.000000 | AN133: 26365.000000 | AO133: 0.000000 | AP133: 0.104874 | AQ133: 0.104874 | AR133: 29246.000000 | AS133: 0.000000
AI134: 0.000000 | AJ134: 0.000000 | AK134: 100000.000000 | AL134: 0.000000 | AN134: 23600.000000 | AO134: 0.000000 | AP134: 0.110593 | AQ134: 0.110593 | AR134: 26365.000000 | AS134: 0.000000
AI135: 0.000000 | AJ135: 0.000000 | AK135: 100000.000000 | AL135: 0.000000 | AN135: 20990.000000 | AO135: 0.000000 | AP135: 0.114960 | AQ135: 0.114960 | AR135: 23600.000000 | AS135: 0.000000
AI136: 0.000000 | AJ136: 0.000000 | AK136: 100000.000000 | AL136: 0.000000 | AN136: 18577.000000 | AO136: 0.000000 | AP136: 0.117026 | AQ136: 0.117026 | AR136: 20990.000000 | AS136: 0.000000
AI137: 0.000000 | AJ137: 0.000000 | AK137: 100000.000000 | AL137: 0.000000 | AN137: 16403.000000 | AO137: 0.000000 | AP137: 1.000000 | AQ137: 1.000000 | AR137: 18577.000000 | AS137: 0.000000
AI138: 0.000000 | AJ138: 0.000000 | AK138: 100000.000000 | AL138: 0.000000 | AR138: 16403.000000 | AS138: 0.000000
AI139: 0.000000 | AJ139: 0.000000 | AK139: 100000.000000 | AL139: 0.000000
AI140: 0.000000 | AJ140: 0.000000 | AK140: 100000.000000 | AL140: 0.000000
AI141: 0.000000 | AJ141: 0.000000 | AK141: 100000.000000 | AL141: 0.000000
AI142: 0.000000 | AJ142: 0.000000 | AK142: 100000.000000 | AL142: 0.000000
AI143: 0.000000 | AJ143: 0.000000 | AK143: 100000.000000 | AL143: 0.000000
AI144: 0.000000 | AJ144: 0.000000 | AK144: 100000.000000 | AL144: 0.000000
AI145: 0.000000 | AJ145: 0.000000 | AK145: 100000.000000 | AL145: 0.000000
AI146: 0.000000 | AJ146: 0.000000 | AK146: 100000.000000 | AL146: 0.000000
AI147: =IF(J147<10,0, IF(AND(OR(J147>10, J147=10),J147<10+$H$53),$H$51*$H$52*((J147-10)^3), $H$51*$H$52*((J147-10)^3-(J147-10-$H$53)^3))) -> 0.000000 | AJ147: 0.000000 | AK147: 100000.000000 | AL147: 0.000000
AI148: 0.000000 | AJ148: =Q147+AI147 -> 0.000000 | AK148: 100000.000000 | AL148: =AK148*AI147 -> 0.000000
AI149: 0.000000 | AJ149: 0.000000 | AK149: 100000.000000 | AL149: 0.000000
AI150: 0.000000 | AJ150: 0.000000 | AK150: 100000.000000 | AL150: 0.000000
AI151: 0.000000 | AJ151: 0.000000 | AK151: 100000.000000 | AL151: 0.000000
AI152: 0.000000 | AJ152: 0.000000 | AK152: 100000.000000 | AL152: 0.000000
AI153: 0.000000 | AJ153: 0.000000 | AK153: 100000.000000 | AL153: 0.000000
AI154: 0.000000 | AJ154: 0.000000 | AK154: 100000.000000 | AL154: 0.000000
AI155: 0.000000 | AJ155: 0.000000 | AK155: 100000.000000 | AL155: 0.000000
AI156: 0.000000 | AJ156: 0.000000 | AK156: 100000.000000 | AL156: 0.000000
AI157: 0.000000 | AJ157: 0.000000 | AK157: 100000.000000 | AL157: 0.000000
AI158: 0.000000 | AJ158: 0.000000 | AK158: 100000.000000 | AL158: 0.000000
AI159: 0.000000 | AJ159: 0.000000 | AK159: 100000.000000 | AL159: 0.000000
AI160: 0.000000 | AJ160: 0.000000 | AK160: 100000.000000 | AL160: 0.000000
AI161: 0.000000 | AJ161: 0.000000 | AK161: 100000.000000 | AL161: 0.000000
AI162: 0.000000 | AJ162: 0.000000 | AK162: 100000.000000 | AL162: 0.000000
AI163: 0.000000 | AJ163: 0.000000 | AK163: 100000.000000 | AL163: 0.000000
AI164: 0.000000 | AJ164: 0.000000 | AK164: 100000.000000 | AL164: 0.000000
AI165: 0.000000 | AJ165: 0.000000 | AK165: 100000.000000 | AL165: 0.000000
AI166: 0.000000 | AJ166: 0.000000 | AK166: 100000.000000 | AL166: 0.000000
AI167: 0.000000 | AJ167: 0.000000 | AK167: 100000.000000 | AL167: 0.000000
AI168: 0.000000 | AJ168: 0.000000 | AK168: 100000.000000 | AL168: 0.000000
AI169: 0.000000 | AJ169: 0.000000 | AK169: 100000.000000 | AL169: 0.000000
AI170: 0.000000 | AJ170: 0.000000 | AK170: 100000.000000 | AL170: 0.000000
AJ171: 0.000000 | AK171: 100000.000000 | AL171: 0.000000
AL173: Both genders mesothelioma
AL174: =SUM(AL52:AL171)/100000*1000000 -> 0.000000 | AS174: Male mesethelioma 1977
AS175: =SUM(AS53:AS172)/100000*1000000 -> 0.000000
A177: Hodgson and Darnton, 2000 | B177: Occupational Equivalent, Total Exposure, F/CC Years | C177: Lung Cancer Lifetime Excess Risk, per 1,000000 | D177: Age at Onset Correction Factor | E177: Pleural Mesothelioma Lifetime Excess Risk, per 1,000,000 | F177: Peritoneal Mesothelioma Lifetime Excess Risk, per 1,000,000 | G177: Total Excess Risk, per 1,000,000 | H177: LUNG CANCER RELATIVE RISK
A178: Tremolite | B178: =N44 ->  | C178: =1.6*(B178^1.3)*54/1000*1000000/100 ->  | D178: =10^(1.0787-0.0368*O41) -> 2.607954 | E178: =0.13*(B178^0.75)*1000000/100*D178*0.7 ->  | F178: =0.0006*(B178^2.1)*100000/100*10*D178*0.7 ->  | G178: =C178+E178+F178 ->  | H178: =(1.6*(B178^1.3))/100+1 ->  | I178: =E178+F178 -> 
A179: Chrysotile | B179: =N43 ->  | C179: =0.028*(B179^1.3)*54/1000*1000000/100*IF(B8<5,1.4,1) ->  | D179: =10^(1.0787-0.0368*O41) -> 2.607954 | E179: =0.0047*(B179^0.75)*1000000/100*D179*0.7*IF(B8<5,1.4,1) ->  | F179: =0*(B179^2.1)*100000/100*10*D179*0.7 ->  | G179: =C179+E179+F179 ->  | H179: =(0.028*(B179^1.3))/100+1 ->  | I179: =E179+F179 -> 
A180: Crocidolite | B180: =N46 ->  | C180: =1.6*(B180^1.3)*54/1000*1000000/100 ->  | D180: =10^(1.0787-0.0368*O41) -> 2.607954 | E180: =0.94*(B180^0.75)*1000000/100*D180*0.7 ->  | F180: =0.0022*(B180^2.1)*100000/100*10*D180*0.7 ->  | G180: =C180+E180+F180 ->  | H180: =(1.6*(B180^1.3))/100+1 -> 
A181: Amosite | B181: =N48 ->  | C181: =1.6*(B181^1.3)*54/1000*1000000/100 ->  | D181: =10^(1.0787-0.0368*O41) -> 2.607954 | E181: =0.13*(B181^0.75)*1000000/100*D181*0.7 ->  | F181: =0.0006*(B181^2.1)*100000/100*10*D181*0.7 ->  | G181: =C181+E181+F181 ->  | H181: =(1.6*(B181^1.3))/100+1 -> 
A182: Moolgavkar, 2010 for Libby, Montana, Lifetable Method | K182: Male | N182: Female | Q182: Total
G183: Kl | H183: =0.11*10^(-2) -> 0.001100 | K183: Probability of death | M183: LE | N183: Probability of death | O183: Sx (surviving till age x) | P183: LE | Q183: Probability of death | T183: Mesothelioma male | Y183: Lung cancer male | AE183: P | AI183: Mesothelioma both genders
G184: Km | H184: =0.5*10^(-8) -> 0.000000 | I184: 0.000000 | J184: =I184-$O$41 -> -18.000000 | K184: 0.007379 | L184: 100000.000000 | M184: 75.380000 | N184: 0.006096 | O184: 100000.000000 | P184: 80.430000 | Q184: =(K184+N184)/2 -> 0.006738 | R184: 100000.000000 | T184: =IF($J184<10,0, IF(AND(OR($J184>10, $J184=10),$J184<10+$H$53),$H$51*$H$52*(($J184-10)^3), $H$51*$H$52*(($J184-10)^3-($J184-10-$H$53)^3))) -> 0.000000 | U184: =K184+T184 -> 0.007379 | V184: =100000 -> 100000.000000 | W184: =V184*T184 -> 0.000000 | Y184: 0.000000 | Z184: 799.900000 | AA184: 0.000000 | AB184: =Z184/100000 -> 0.007999 | AC184: =AA184/100000 -> 0.000000 | AD184: =100000 -> 100000.000000 | AE184: =IF(Y184<10,0,IF(AND(OR(Y184>10,Y184=10),Y184<10+$H$53),$H$50*$H$52*(Y184-10),$H$50*$H$52*Y184)) -> 0.000000 | AF184: =AC184*AE184 -> 0.000000 | AG184: =AD184*AF184 -> 0.000000 | AI184: =IF(J184<10,0, IF(AND(OR(J184>10, J184=10),J184<10+$H$186),$H$184*$H$185*((J184-10)^3), $H$184*$H$185*((J184-10)^3-(J184-10-$H$186)^3))) -> 0.000000 | AN184: mesothelioma male 1977 | AP184: Death rate
G185: f | H185: =M41*2.8 -> 0.031800 | I185: 1.000000 | J185: -17.000000 | K185: 0.000494 | L185: 99262.000000 | M185: 74.940000 | N185: 0.000434 | O185: 99390.000000 | P185: 79.920000 | Q185: =(K185+N185)/2 -> 0.000464 | R185: =R184-Q184*R184 -> 99326.250000 | T185: 0.000000 | U185: =K185+T185 -> 0.000494 | V185: =V184-V184*U184 -> 99262.100000 | W185: =V185*T185 -> 0.000000 | Y185: 1.000000 | Z185: 36.500000 | AA185: 0.000000 | AB185: =Z185/100000 -> 0.000365 | AC185: 0.000000 | AD185: =AD184-AB184*AD184*2 -> 98400.200000 | AE185: 0.000000 | AF185: =AC185*AE185 -> 0.000000 | AG185: 0.000000 | AI185: 0.000000 | AJ185: =Q184+AI184 -> 0.006738 | AK185: =100000 -> 100000.000000 | AL185: =AK185*AI184 -> 0.000000 | AN185: 100000.000000 | AO185: =IF($J184<10,0, IF(AND(OR($J184>10, $J184=10),$J184<10+$H$53),$H$51*$H$52*(($J184-10)^3), $H$51*$H$52*(($J184-10)^3-($J184-10-$H$53)^3))) -> 0.000000 | AP185: =(AN185-AN186)/AN185 -> 0.015860 | AQ185: =AP185+AO185 -> 0.015860
G186: d | H186: =H41 -> 45.000000 | I186: 2.000000 | J186: -16.000000 | K186: 0.000317 | L186: 99213.000000 | M186: 73.980000 | N186: 0.000256 | O186: 99347.000000 | P186: 78.950000 | Q186: 0.000287 | R186: =R185-Q185*R185 -> 99280.162620 | T186: 0.000000 | U186: 0.000317 | V186: =V185-V185*U185 -> 99213.064523 | W186: 0.000000 | Y186: 5.000000 | Z186: 18.300000 | AA186: 0.000000 | AB186: 0.000183 | AC186: 0.000000 | AD186: =AD185-AB185*AD185*5 -> 98220.61963 | AE186: 0.000000 | AF186: 0.000000 | AG186: 0.000000 | AI186: 0.000000 | AJ186: 0.000464 | AK186: =AK185-AK185*AJ185 -> 99326.250000 | AL186: 0.000000 | AN186: 98414.000000 | AO186: 0.000000 | AP186: 0.001036 | AQ186: =AP186+AO186 -> 0.001036 | AR186: =100000 -> 100000.000000 | AS186: =AR186*AO185 -> 0.000000
I187: 3.000000 | J187: -15.000000 | K187: 0.000241 | L187: 99182.000000 | M187: 73.000000 | N187: 0.000192 | O187: 99322.000000 | P187: 77.970000 | Q187: 0.000217 | R187: 99251.718853 | T187: 0.000000 | U187: 0.000241 | V187: 99181.613981 | W187: 0.000000 | Y187: 10.000000 | Z187: 25.000000 | AA187: 0.000000 | AB187: 0.000250 | AC187: 0.000000 | AD187: =AD186-AB186*AD186*5 -> 98130.747768 | AE187: 0.000000 | AF187: 0.000000 | AG187: 0.000000 | AI187: 0.000000 | AJ187: 0.000287 | AK187: =AK186-AK186*AJ186 -> 99280.162620 | AL187: 0.000000 | AN187: 98312.000000 | AO187: 0.000000 | AP187: 0.000804 | AQ187: 0.000804 | AR187: =AR186-AR186*AQ185 -> 98414.000000 | AS187: 0.000000
I188: 4.000000 | J188: -14.000000 | K188: 0.000200 | L188: 99158.000000 | M188: 72.020000 | N188: 0.000148 | O188: 99303.000000 | P188: 76.990000 | Q188: 0.000174 | R188: 99230.230856 | T188: 0.000000 | U188: 0.000200 | V188: 99157.711212 | W188: 0.000000 | Y188: 15.000000 | Z188: 94.900000 | AA188: 0.000000 | AB188: 0.000949 | AC188: 0.000000 | AD188: 98008.084333 | AE188: 0.000000 | AF188: 0.000000 | AG188: 0.000000 | AI188: 0.000000 | AJ188: 0.000217 | AK188: 99251.718853 | AL188: 0.000000 | AN188: 98233.000000 | AO188: 0.000000 | AP188: 0.000641 | AQ188: 0.000641 | AR188: 98312.000000 | AS188: 0.000000
I189: 5.000000 | J189: -13.000000 | K189: 0.000179 | L189: 99138.000000 | M189: 71.030000 | N189: 0.000136 | O189: 99288.000000 | P189: 76.000000 | Q189: 0.000158 | R189: 99212.964796 | T189: 0.000000 | U189: 0.000179 | V189: 99137.879670 | W189: 0.000000 | Y189: 20.000000 | Z189: 142.000000 | AA189: 0.000000 | AB189: 0.001420 | AC189: 0.000000 | AD189: 97543.035973 | AE189: 0.000000 | AF189: 0.000000 | AG189: 0.000000 | AI189: 0.000000 | AJ189: 0.000174 | AK189: 99230.230856 | AL189: 0.000000 | AN189: 98170.000000 | AO189: 0.000000 | AP189: 0.000540 | AQ189: 0.000540 | AR189: 98233.000000 | AS189: 0.000000
I190: 6.000000 | J190: -12.000000 | K190: 0.000166 | L190: 99120.000000 | M190: 70.040000 | N190: 0.000128 | O190: 99275.000000 | P190: 75.010000 | Q190: 0.000147 | R190: 99197.338754 | T190: 0.000000 | U190: 0.000166 | V190: 99120.133989 | W190: 0.000000 | Y190: 25.000000 | Z190: 141.900000 | AA190: 0.300000 | AB190: 0.001419 | AC190: 0.000003 | AD190: 96850.480418 | AE190: 0.000000 | AF190: =AC190*AE190*5 -> 0.000000 | AG190: 0.000000 | AI190: 0.000000 | AJ190: 0.000158 | AK190: 99212.964796 | AL190: 0.000000 | AN190: 98117.000000 | AO190: 0.000000 | AP190: 0.000489 | AQ190: 0.000489 | AR190: 98170.000000 | AS190: 0.000000
I191: 7.000000 | J191: -11.000000 | K191: 0.000152 | L191: 99104.000000 | M191: 69.050000 | N191: 0.000122 | O191: 99262.000000 | P191: 74.020000 | Q191: 0.000137 | R191: 99182.756745 | T191: 0.000000 | U191: 0.000152 | V191: 99103.680047 | W191: 0.000000 | Y191: 30.000000 | Z191: 157.300000 | AA191: 0.800000 | AB191: 0.001573 | AC191: 0.000008 | AD191: 96163.326259 | AE191: 0.000000 | AF191: 0.000000 | AG191: 0.000000 | AI191: 0.000000 | AJ191: 0.000147 | AK191: 99197.338754 | AL191: 0.000000 | AN191: 98069.000000 | AO191: 0.000000 | AP191: 0.000449 | AQ191: 0.000449 | AR191: 98117.000000 | AS191: 0.000000
G192: Libby Amphibole | H192: =AG257+AL307 -> 464.487849 | I192: 8.000000 | J192: -10.000000 | K192: 0.000133 | L192: 99089.000000 | M192: 68.060000 | N192: 0.000115 | O192: 99250.000000 | P192: 73.030000 | Q192: 0.000124 | R192: 99169.168708 | T192: 0.000000 | U192: 0.000133 | V192: 99088.616288 | W192: 0.000000 | Y192: 35.000000 | Z192: 209.800000 | AA192: 3.300000 | AB192: 0.002098 | AC192: 0.000033 | AD192: 95407.001698 | AE192: 0.000000 | AF192: 0.000000 | AG192: 0.000000 | AI192: 0.000000 | AJ192: 0.000137 | AK192: 99182.756745 | AL192: 0.000000 | AN192: 98025.000000 | AO192: 0.000000 | AP192: 0.000418 | AQ192: 0.000418 | AR192: 98069.000000 | AS192: 0.000000
I193: 9.000000 | J193: -9.000000 | K193: 0.000108 | L193: 99075.000000 | M193: 67.070000 | N193: 0.000106 | O193: 99238.000000 | P193: 72.040000 | Q193: 0.000107 | R193: 99156.871731 | T193: 0.000000 | U193: 0.000108 | V193: 99075.437502 | W193: 0.000000 | Y193: 40.000000 | Z193: 303.300000 | AA193: 10.400000 | AB193: 0.003033 | AC193: 0.000104 | AD193: 94406.182250 | AE193: 0.000000 | AF193: 0.000000 | AG193: 0.000000 | AI193: 0.000000 | AJ193: 0.000124 | AK193: 99169.168708 | AL193: 0.000000 | AN193: 97984.000000 | AO193: 0.000000 | AP193: 0.000367 | AQ193: 0.000367 | AR193: 98025.000000 | AS193: 0.000000
I194: 10.000000 | J194: -8.000000 | K194: 0.000089 | L194: 99065.000000 | M194: 66.080000 | N194: 0.000100 | O194: 99228.000000 | P194: 71.040000 | Q194: 0.000095 | R194: 99146.261945 | T194: 0.000000 | U194: 0.000089 | V194: 99064.737355 | W194: 0.000000 | Y194: 45.000000 | Z194: 461.700000 | AA194: 26.000000 | AB194: 0.004617 | AC194: 0.000260 | AD194: 92974.512497 | AE194: 0.000000 | AF194: 0.000000 | AG194: 0.000000 | AI194: 0.000000 | AJ194: 0.000107 | AK194: 99156.871731 | AL194: 0.000000 | AN194: 97948.000000 | AO194: 0.000000 | AP194: 0.000316 | AQ194: 0.000316 | AR194: 97984.000000 | AS194: 0.000000
I195: 11.000000 | J195: -7.000000 | K195: 0.000094 | L195: 99056.000000 | M195: 65.090000 | N195: 0.000102 | O195: 99218.000000 | P195: 70.050000 | Q195: 0.000098 | R195: 99136.892624 | T195: 0.000000 | U195: 0.000094 | V195: 99055.920593 | W195: 0.000000 | Y195: 50.000000 | Z195: 658.300000 | AA195: 54.600000 | AB195: 0.006583 | AC195: 0.000546 | AD195: 90828.195876 | AE195: 0.000000 | AF195: 0.000000 | AG195: 0.000000 | AI195: 0.000000 | AJ195: 0.000095 | AK195: 99146.261945 | AL195: 0.000000 | AN195: 97917.000000 | AO195: 0.000000 | AP195: 0.000276 | AQ195: 0.000276 | AR195: 97948.000000 | AS195: 0.000000
I196: 12.000000 | J196: -6.000000 | K196: 0.000145 | L196: 99047.000000 | M196: 64.090000 | N196: 0.000120 | O196: 99208.000000 | P196: 69.060000 | Q196: 0.000133 | R196: 99127.177208 | T196: 0.000000 | U196: 0.000145 | V196: 99046.609336 | W196: 0.000000 | Y196: 55.000000 | Z196: 1007.500000 | AA196: 118.000000 | AB196: 0.010075 | AC196: 0.001180 | AD196: 87838.585808 | AE196: 0.000000 | AF196: 0.000000 | AG196: 0.000000 | AI196: 0.000000 | AJ196: 0.000098 | AK196: 99136.892624 | AL196: 0.000000 | AN196: 97890.000000 | AO196: 0.000000 | AP196: 0.000276 | AQ196: 0.000276 | AR196: 97917.000000 | AS196: 0.000000
I197: 13.000000 | J197: -5.000000 | K197: 0.000252 | L197: 99032.000000 | M197: 63.100000 | N197: 0.000157 | O197: 99196.000000 | P197: 68.070000 | Q197: 0.000205 | R197: 99114.042857 | T197: 0.000000 | U197: 0.000252 | V197: 99032.247578 | W197: 0.000000 | Y197: 60.000000 | Z197: 1565.500000 | AA197: 206.200000 | AB197: 0.015655 | AC197: 0.002062 | AD197: 83413.717048 | AE197: 0.000000 | AF197: 0.000000 | AG197: 0.000000 | AI197: 0.000000 | AJ197: 0.000133 | AK197: 99127.177208 | AL197: 0.000000 | AN197: 97863.000000 | AO197: 0.000000 | AP197: 0.000358 | AQ197: 0.000358 | AR197: 97890.000000 | AS197: 0.000000
I198: 14.000000 | J198: -4.000000 | K198: 0.000401 | L198: 99007.000000 | M198: 62.120000 | N198: 0.000209 | O198: 99180.000000 | P198: 67.080000 | Q198: 0.000305 | R198: 99093.774036 | T198: 0.000000 | U198: 0.000401 | V198: 99007.291452 | W198: 0.000000 | Y198: 65.000000 | Z198: 2399.300000 | AA198: 327.500000 | AB198: 0.023993 | AC198: 0.003275 | AD198: 76884.508346 | AE198: 0.000000 | AF198: 0.000000 | AG198: 0.000000 | AI198: 0.000000 | AJ198: 0.000205 | AK198: 99114.042857 | AL198: 0.000000 | AN198: 97828.000000 | AO198: 0.000000 | AP198: 0.000532 | AQ198: 0.000532 | AR198: 97863.000000 | AS198: 0.000000
I199: 15.000000 | J199: -3.000000 | K199: 0.000563 | L199: 98968.000000 | M199: 61.140000 | N199: 0.000267 | O199: 99160.000000 | P199: 66.090000 | Q199: 0.000415 | R199: 99063.550434 | T199: 0.000000 | U199: 0.000563 | V199: 98967.589528 | W199: 0.000000 | Y199: 70.000000 | Z199: 3705.400000 | AA199: 444.000000 | AB199: 0.037054 | AC199: 0.004440 | AD199: 67661.058302 | AE199: 0.000000 | AF199: 0.000000 | AG199: 0.000000 | AI199: 0.000000 | AJ199: 0.000305 | AK199: 99093.774036 | AL199: 0.000000 | AN199: 97776.000000 | AO199: 0.000000 | AP199: 0.000777 | AQ199: 0.000777 | AR199: 97828.000000 | AS199: 0.000000
I200: 16.000000 | J200: -2.000000 | K200: 0.000719 | L200: 98912.000000 | M200: 60.180000 | N200: 0.000323 | O200: 99133.000000 | P200: 65.110000 | Q200: 0.000521 | R200: 99022.439061 | T200: 0.000000 | U200: 0.000719 | V200: 98911.870775 | W200: 0.000000 | Y200: 75.000000 | Z200: 5591.200000 | AA200: 507.300000 | AB200: 0.055912 | AC200: 0.005073 | AD200: 55125.494031 | AE200: 0.000000 | AF200: 0.000000 | AG200: 0.000000 | AI200: 0.000000 | AJ200: 0.000415 | AK200: 99063.550434 | AL200: 0.000000 | AN200: 97700.000000 | AO200: 0.000000 | AP200: 0.001044 | AQ200: 0.001044 | AR200: 97776.000000 | AS200: 0.000000
I201: 17.000000 | J201: -1.000000 | K201: 0.000873 | L201: 98841.000000 | M201: 59.220000 | N201: 0.000369 | O201: 99101.000000 | P201: 64.130000 | Q201: 0.000621 | R201: 98970.848370 | T201: 0.000000 | U201: 0.000873 | V201: 98840.753140 | W201: 0.000000 | Y201: 80.000000 | Z201: 8956.900000 | AA201: 549.600000 | AB201: 0.089569 | AC201: 0.005496 | AD201: 39714.610920 | AE201: 0.000000 | AF201: 0.000000 | AG201: =AD201*AF201 -> 0.000000 | AI201: 0.000000 | AJ201: 0.000521 | AK201: 99022.439061 | AL201: 0.000000 | AN201: 97598.000000 | AO201: 0.000000 | AP201: 0.001301 | AQ201: 0.001301 | AR201: 97700.000000 | AS201: 0.000000
I202: 18.000000 | J202: 0.000000 | K202: 0.001017 | L202: 98754.000000 | M202: 58.270000 | N202: 0.000401 | O202: 99064.000000 | P202: 63.150000 | Q202: 0.000709 | R202: 98909.387473 | T202: 0.000000 | U202: 0.001017 | V202: 98754.465162 | W202: 0.000000 | Y202: 85.000000 | Z202: 16605.400000 | AA202: 499.000000 | AB202: 0.166054 | AC202: 0.004990 | AD202: 21928.620992 | AE202: 0.000000 | AF202: 0.000000 | AG202: 0.000000 | AI202: 0.000000 | AJ202: 0.000621 | AK202: 98970.848370 | AL202: 0.000000 | AN202: 97471.000000 | AO202: 0.000000 | AP202: 0.001518 | AQ202: 0.001518 | AR202: 97598.000000 | AS202: 0.000000
I203: 19.000000 | J203: 1.000000 | K203: 0.001148 | L203: 98654.000000 | M203: 57.330000 | N203: 0.000422 | O203: 99025.000000 | P203: 62.180000 | Q203: 0.000785 | R203: 98839.260718 | T203: 0.000000 | U203: 0.001148 | V203: 98654.031871 | W203: 0.000000 | AI203: 0.000000 | AJ203: 0.000709 | AK203: 98909.387473 | AL203: 0.000000 | AN203: 97323.000000 | AO203: 0.000000 | AP203: 0.001685 | AQ203: 0.001685 | AR203: 97471.000000 | AS203: 0.000000
I204: 20.000000 | J204: 2.000000 | K204: 0.001285 | L204: 98541.000000 | M204: 56.400000 | N204: 0.000441 | O204: 98983.000000 | P204: 61.200000 | Q204: 0.000863 | R204: 98761.671898 | T204: 0.000000 | U204: 0.001285 | V204: 98540.777043 | W204: 0.000000 | AI204: 0.000000 | AJ204: 0.000785 | AK204: 98839.260718 | AL204: 0.000000 | AN204: 97159.000000 | AO204: 0.000000 | AP204: 0.001791 | AQ204: 0.001791 | AR204: 97323.000000 | AS204: 0.000000
I205: 21.000000 | J205: 3.000000 | K205: 0.001412 | L205: 98414.000000 | M205: 55.470000 | N205: 0.000463 | O205: 98939.000000 | P205: 60.230000 | Q205: 0.000938 | R205: 98676.440575 | T205: 0.000000 | U205: 0.001412 | V205: 98414.152144 | W205: 0.000000 | AG205: =SUM(AG184:AG202)/100000*1000000 -> 0.000000 | AI205: 0.000000 | AJ205: 0.000863 | AK205: 98761.671898 | AL205: 0.000000 | AN205: 96985.000000 | AO205: 0.000000 | AP205: 0.001897 | AQ205: 0.001897 | AR205: 97159.000000 | AS205: 0.000000
I206: 22.000000 | J206: 4.000000 | K206: 0.001493 | L206: 98275.000000 | M206: 54.540000 | N206: 0.000483 | O206: 98894.000000 | P206: 59.260000 | Q206: 0.000988 | R206: 98583.931412 | T206: 0.000000 | U206: 0.001493 | V206: 98275.191361 | W206: 0.000000 | AI206: 0.000000 | AJ206: 0.000938 | AK206: 98676.440575 | AL206: 0.000000 | AN206: 96801.000000 | AO206: 0.000000 | AP206: 0.002004 | AQ206: 0.002004 | AR206: 96985.000000 | AS206: 0.000000
I207: 23.000000 | J207: 5.000000 | K207: 0.001513 | L207: 98128.000000 | M207: 53.630000 | N207: 0.000499 | O207: 98846.000000 | P207: 58.290000 | Q207: 0.001006 | R207: 98486.530488 | T207: 0.000000 | U207: 0.001513 | V207: 98128.466501 | W207: 0.000000 | AI207: 0.000000 | AJ207: 0.000988 | AK207: 98583.931412 | AL207: 0.000000 | AN207: 96607.000000 | AO207: 0.000000 | AP207: 0.002070 | AQ207: 0.002070 | AR207: 96801.000000 | AS207: 0.000000
I208: 24.000000 | J208: 6.000000 | K208: 0.001487 | L208: 97980.000000 | M208: 52.710000 | N208: 0.000513 | O208: 98796.000000 | P208: 57.320000 | Q208: 0.001000 | R208: 98387.453038 | T208: 0.000000 | U208: 0.001487 | V208: 97979.998131 | W208: 0.000000 | AI208: 0.000000 | AJ208: 0.001006 | AK208: 98486.530488 | AL208: 0.000000 | AN208: 96407.000000 | AO208: 0.000000 | AP208: 0.002075 | AQ208: 0.002075 | AR208: 96607.000000 | AS208: 0.000000
I209: 25.000000 | J209: 7.000000 | K209: 0.001446 | L209: 97834.000000 | M209: 51.780000 | N209: 0.000528 | O209: 98746.000000 | P209: 56.350000 | Q209: 0.000987 | R209: 98289.065585 | T209: 0.000000 | U209: 0.001446 | V209: 97834.301874 | W209: 0.000000 | Y209: Lung cancer female | AI209: 0.000000 | AJ209: 0.001000 | AK209: 98387.453038 | AL209: 0.000000 | AN209: 96207.000000 | AO209: 0.000000 | AP209: 0.002048 | AQ209: 0.002048 | AR209: 96407.000000 | AS209: 0.000000
I210: 26.000000 | J210: 8.000000 | K210: 0.001412 | L210: 97693.000000 | M210: 50.860000 | N210: 0.000544 | O210: 98694.000000 | P210: 55.380000 | Q210: 0.000978 | R210: 98192.054277 | T210: 0.000000 | U210: 0.001412 | V210: 97692.833473 | W210: 0.000000 | AE210: P | AI210: 0.000000 | AJ210: 0.000987 | AK210: 98289.065585 | AL210: 0.000000 | AN210: 96010.000000 | AO210: 0.000000 | AP210: 0.002010 | AQ210: 0.002010 | AR210: 96207.000000 | AS210: 0.000000
I211: 27.000000 | J211: 9.000000 | K211: 0.001389 | L211: 97555.000000 | M211: 49.930000 | N211: 0.000563 | O211: 98640.000000 | P211: 54.400000 | Q211: 0.000976 | R211: 98096.022448 | T211: 0.000000 | U211: 0.001389 | V211: 97554.891192 | W211: 0.000000 | Y211: 0.000000 | Z211: 654.300000 | AA211: 0.000000 | AB211: =Z211/100000 -> 0.006543 | AC211: =AA211/100000 -> 0.000000 | AD211: =100000 -> 100000.000000 | AE211: =IF(Y211<10,0,IF(AND(OR(Y211>10,Y211=10),Y211<10+$H$53),$H$50*$H$52*(Y211-10),$H$50*$H$52*Y211)) -> 0.000000 | AF211: =AC211*AE211 -> 0.000000 | AG211: =AD211*AF211 -> 0.000000 | AI211: 0.000000 | AJ211: 0.000978 | AK211: 98192.054277 | AL211: 0.000000 | AN211: 95817.000000 | AO211: 0.000000 | AP211: 0.001973 | AQ211: 0.001973 | AR211: 96010.000000 | AS211: 0.000000
I212: 28.000000 | J212: 10.000000 | K212: 0.001388 | L212: 97419.000000 | M212: 49.000000 | N212: 0.000585 | O212: 98584.000000 | P212: 53.440000 | Q212: 0.000987 | R212: 98000.280730 | T212: 0.000000 | U212: 0.001388 | V212: 97419.387448 | W212: 0.000000 | Y212: 1.000000 | Z212: 29.100000 | AA212: 0.000000 | AB212: =Z212/100000 -> 0.000291 | AC212: 0.000000 | AD212: =AD211-AB211*AD211*2 -> 98691.400000 | AE212: 0.000000 | AF212: =AC212*AE212 -> 0.000000 | AG212: 0.000000 | AI212: 0.000000 | AJ212: 0.000976 | AK212: 98096.022448 | AL212: 0.000000 | AN212: 95628.000000 | AO212: 0.000000 | AP212: 0.001924 | AQ212: 0.001924 | AR212: 95817.000000 | AS212: 0.000000
I213: 29.000000 | J213: 11.000000 | K213: 0.001405 | L213: 97284.000000 | M213: 48.070000 | N213: 0.000612 | O213: 98527.000000 | P213: 52.470000 | Q213: 0.001009 | R213: 97903.603454 | T213: 0.000000 | U213: 0.001405 | V213: 97284.169339 | W213: 0.000000 | Y213: 5.000000 | Z213: 14.500000 | AA213: 0.000000 | AB213: 0.000145 | AC213: 0.000000 | AD213: =AD212-AB212*AD212*5 -> 98547.80401 | AE213: 0.000000 | AF213: 0.000000 | AG213: 0.000000 | AI213: 0.000000 | AJ213: 0.000987 | AK213: 98000.280730 | AL213: 0.000000 | AN213: 95444.000000 | AO213: 0.000000 | AP213: 0.001896 | AQ213: 0.001896 | AR213: 95628.000000 | AS213: 0.000000
I214: 30.000000 | J214: 12.000000 | K214: 0.001428 | L214: 97147.000000 | M214: 47.130000 | N214: 0.000642 | O214: 98466.000000 | P214: 51.500000 | Q214: 0.001035 | R214: 97804.867669 | T214: 0.000000 | U214: 0.001428 | V214: 97147.485081 | W214: 0.000000 | Y214: 10.000000 | Z214: 16.600000 | AA214: 0.000000 | AB214: 0.000166 | AC214: 0.000000 | AD214: =AD213-AB213*AD213*5 -> 98476.356855 | AE214: 0.000000 | AF214: 0.000000 | AG214: 0.000000 | AI214: 0.000000 | AJ214: 0.001009 | AK214: 97903.603454 | AL214: 0.000016 | AN214: 95263.000000 | AO214: 0.000000 | AP214: 0.001879 | AQ214: 0.001879 | AR214: 95444.000000 | AS214: 0.000000
I215: 31.000000 | J215: 13.000000 | K215: 0.001453 | L215: 97009.000000 | M215: 46.200000 | N215: 0.000678 | O215: 98403.000000 | P215: 50.530000 | Q215: 0.001066 | R215: 97703.639631 | T215: 0.000000 | U215: 0.001453 | V215: 97008.758472 | W215: 0.000000 | Y215: 15.000000 | Z215: 40.000000 | AA215: 0.000000 | AB215: 0.000400 | AC215: 0.000000 | AD215: 98394.621479 | AE215: 0.000000 | AF215: 0.000000 | AG215: 0.000000 | AI215: 0.000000 | AJ215: 0.001035 | AK215: 97804.867654 | AL215: 0.000124 | AN215: 95084.000000 | AO215: 0.000000 | AP215: 0.001862 | AQ215: 0.001862 | AR215: 95263.000000 | AS215: 0.000000
I216: 32.000000 | J216: =I216-$O$41 -> 14.000000 | K216: 0.001487 | L216: 96868.000000 | M216: 45.270000 | N216: 0.000721 | O216: 98336.000000 | P216: 49.560000 | Q216: 0.001104 | R216: 97599.536403 | T216: =IF($J216<10,0, IF(AND(OR($J216>10, $J216=10),$J216<10+$H$53),$H$51*$H$52*(($J216-10)^3), $H$51*$H$52*(($J216-10)^3-($J216-10-$H$53)^3))) -> 0.000000 | U216: 0.001487 | V216: 96867.804746 | W216: 0.000000 | Y216: 20.000000 | Z216: 48.200000 | AA216: 0.000000 | AB216: 0.000482 | AC216: 0.000000 | AD216: 98197.832236 | AE216: 0.000000 | AF216: 0.000000 | AG216: 0.000000 | AI216: =IF(J216<10,0, IF(AND(OR(J216>10, J216=10),J216<10+$H$186),$H$184*$H$185*((J216-10)^3), $H$184*$H$185*((J216-10)^3-(J216-10-$H$186)^3))) -> 0.000000 | AJ216: 0.001066 | AK216: 97703.639491 | AL216: 0.000419 | AN216: 94907.000000 | AO216: 0.000000 | AP216: 0.001865 | AQ216: 0.001865 | AR216: 95084.000000 | AS216: 0.000000
I217: 33.000000 | J217: 15.000000 | K217: 0.001529 | L217: 96724.000000 | M217: 44.330000 | N217: 0.000771 | O217: 98266.000000 | P217: 48.600000 | Q217: 0.001150 | R217: 97491.786515 | T217: 0.000000 | U217: 0.001529 | V217: 96723.762320 | W217: 0.000000 | Y217: 25.000000 | Z217: 56.500000 | AA217: 0.000000 | AB217: 0.000565 | AC217: 0.000000 | AD217: 97961.175460 | AE217: 0.000000 | AF217: 0.000000 | AG217: 0.000000 | AI217: 0.000000 | AJ217: =Q216+AI216 -> 0.001104 | AK217: 97599.535844 | AL217: =AK217*AI216 -> 0.000993 | AN217: 94730.000000 | AO217: =IF($J216<10,0, IF(AND(OR($J216>10, $J216=10),$J216<10+$H$53),$H$51*$H$52*(($J216-10)^3), $H$51*$H$52*(($J216-10)^3-($J216-10-$H$53)^3))) -> 0.000000 | AP217: =(AN217-AN218)/AN217 -> 0.001890 | AQ217: 0.001890 | AR217: 94907.000000 | AS217: 0.000000
I218: 34.000000 | J218: 16.000000 | K218: 0.001584 | L218: 96576.000000 | M218: 43.400000 | N218: 0.000830 | O218: 98190.000000 | P218: 47.640000 | Q218: 0.001207 | R218: 97379.670961 | T218: 0.000000 | U218: 0.001584 | V218: 96575.871688 | W218: 0.000000 | Y218: 30.000000 | Z218: 76.000000 | AA218: 0.900000 | AB218: 0.000760 | AC218: 0.000009 | AD218: 97684.435140 | AE218: 0.000000 | AF218: =AC218*AE218*5 -> 0.000000 | AG218: 0.000000 | AI218: 0.000000 | AJ218: 0.001150 | AK218: 97491.784963 | AL218: 0.001938 | AN218: 94551.000000 | AO218: 0.000000 | AP218: 0.001967 | AQ218: 0.001967 | AR218: 94730.000000 | AS218: =AR218*AO217 -> 0.000000
I219: 35.000000 | J219: 17.000000 | K219: 0.001651 | L219: 96423.000000 | M219: 42.470000 | N219: 0.000896 | O219: 98108.000000 | P219: 46.680000 | Q219: 0.001274 | R219: 97262.133698 | T219: 0.000000 | U219: 0.001651 | V219: 96422.895507 | W219: 0.000000 | Y219: 35.000000 | Z219: 115.100000 | AA219: 2.600000 | AB219: 0.001151 | AC219: 0.000026 | AD219: 97313.234286 | AE219: 0.000000 | AF219: 0.000000 | AG219: 0.000000 | AI219: 0.000000 | AJ219: 0.001207 | AK219: 97379.667473 | AL219: 0.003344 | AN219: 94365.000000 | AO219: 0.000000 | AP219: 0.002088 | AQ219: 0.002088 | AR219: =AR218-AR218*AQ217 -> 94551.000000 | AS219: 0.000000
I220: 36.000000 | J220: 18.000000 | K220: 0.001737 | L220: 96264.000000 | M220: 41.540000 | N220: 0.000971 | O220: 98020.000000 | P220: 45.720000 | Q220: 0.001354 | R220: 97138.270371 | T220: 0.000000 | U220: 0.001737 | V220: 96263.701306 | W220: 0.000000 | Y220: 40.000000 | Z220: 172.200000 | AA220: 8.100000 | AB220: 0.001722 | AC220: 0.000081 | AD220: 96753.196623 | AE220: 0.000000 | AF220: 0.000000 | AG220: 0.000000 | AI220: 0.000000 | AJ220: 0.001274 | AK220: 97262.126870 | AL220: 0.005304 | AN220: 94168.000000 | AO220: 0.000000 | AP220: 0.002230 | AQ220: 0.002230 | AR220: 94365.000000 | AS220: 0.000000
I221: 37.000000 | J221: 19.000000 | K221: 0.001845 | L221: 96096.000000 | M221: 40.610000 | N221: 0.001056 | O221: 97925.000000 | P221: 44.760000 | Q221: 0.001451 | R221: 97006.745153 | T221: 0.000000 | U221: 0.001845 | V221: 96096.491257 | W221: 0.000000 | Y221: 45.000000 | Z221: 254.000000 | AA221: 16.600000 | AB221: 0.002540 | AC221: 0.000166 | AD221: 95920.151600 | AE221: 0.000000 | AF221: 0.000000 | AG221: 0.000000 | AI221: 0.000000 | AJ221: 0.001354 | AK221: 97138.258247 | AL221: 0.007908 | AN221: 93958.000000 | AO221: 0.000000 | AP221: 0.002384 | AQ221: 0.002384 | AR221: 94168.000000 | AS221: 0.000000
I222: 38.000000 | J222: 20.000000 | K222: 0.001979 | L222: 95919.000000 | M222: 39.680000 | N222: 0.001153 | O222: 97822.000000 | P222: 43.810000 | Q222: 0.001566 | R222: 96866.036869 | T222: 0.000000 | U222: 0.001979 | V222: 95919.193231 | W222: 0.000000 | Y222: 50.000000 | Z222: 386.300000 | AA222: 35.100000 | AB222: 0.003863 | AC222: 0.000351 | AD222: 94701.965674 | AE222: 0.000000 | AF222: 0.000000 | AG222: 0.000000 | AI222: 0.000000 | AJ222: 0.001451 | AK222: 97006.725138 | AL222: 0.011244 | AN222: 93734.000000 | AO222: 0.000000 | AP222: 0.002571 | AQ222: 0.002571 | AR222: 93958.000000 | AS222: 0.000000
I223: 39.000000 | J223: 21.000000 | K223: 0.002140 | L223: 95729.000000 | M223: 38.760000 | N223: 0.001260 | O223: 97709.000000 | P223: 42.860000 | Q223: 0.001700 | R223: 96714.344655 | T223: 0.000000 | U223: 0.002140 | V223: 95729.369148 | W223: 0.000000 | Y223: 55.000000 | Z223: 611.800000 | AA223: 70.900000 | AB223: 0.006118 | AC223: 0.000709 | AD223: 92872.797207 | AE223: 0.000000 | AF223: 0.000000 | AG223: 0.000000 | AI223: 0.000000 | AJ223: 0.001566 | AK223: 96866.005639 | AL223: 0.015402 | AN223: 93493.000000 | AO223: 0.000000 | AP223: 0.002770 | AQ223: 0.002770 | AR223: 93734.000000 | AS223: 0.000000
I224: 40.000000 | J224: 22.000000 | K224: 0.002323 | L224: 95525.000000 | M224: 37.840000 | N224: 0.001377 | O224: 97586.000000 | P224: 41.910000 | Q224: 0.001850 | R224: 96549.930269 | T224: 0.000000 | U224: 0.002323 | V224: 95524.508298 | W224: 0.000000 | Y224: 60.000000 | Z224: 982.000000 | AA224: 122.300000 | AB224: 0.009820 | AC224: 0.001223 | AD224: 90031.818341 | AE224: 0.000000 | AF224: 0.000000 | AG224: 0.000000 | AI224: 0.000000 | AJ224: 0.001700 | AK224: 96714.298072 | AL224: 0.020468 | AN224: 93234.000000 | AO224: 0.000000 | AP224: 0.002992 | AQ224: 0.002992 | AR224: 93493.000000 | AS224: 0.000000
I225: 41.000000 | J225: 23.000000 | K225: 0.002526 | L225: 95303.000000 | M225: 36.930000 | N225: 0.001506 | O225: 97452.000000 | P225: 40.970000 | Q225: 0.002016 | R225: 96371.312898 | T225: 0.000000 | U225: 0.002526 | V225: 95302.604865 | W225: 0.000000 | Y225: 65.000000 | Z225: 1527.500000 | AA225: 181.600000 | AB225: 0.015275 | AC225: 0.001816 | AD225: 85611.256060 | AE225: 0.000000 | AF225: 0.000000 | AG225: 0.000000 | AI225: 0.000000 | AJ225: 0.001850 | AK225: 96549.863298 | AL225: 0.026527 | AN225: 92955.000000 | AO225: 0.000000 | AP225: 0.003249 | AQ225: 0.003249 | AR225: 93234.000000 | AS225: 0.000000
I226: 42.000000 | J226: 24.000000 | K226: 0.002750 | L226: 95062.000000 | M226: 36.020000 | N226: 0.001650 | O226: 97305.000000 | P226: 40.030000 | Q226: 0.002200 | R226: 96177.028331 | T226: 0.000000 | U226: 0.002750 | V226: 95061.870485 | W226: 0.000000 | Y226: 70.000000 | Z226: 2381.800000 | AA226: 238.700000 | AB226: 0.023818 | AC226: 0.002387 | AD226: 79072.696379 | AE226: 0.000000 | AF226: 0.000000 | AG226: 0.000000 | AI226: 0.000000 | AJ226: 0.002016 | AK226: 96371.219523 | AL226: 0.033665 | AN226: 92653.000000 | AO226: 0.000000 | AP226: 0.003551 | AQ226: 0.003551 | AR226: 92955.000000 | AS226: 0.000000
I227: 43.000000 | J227: 25.000000 | K227: 0.002993 | L227: 94800.000000 | M227: 35.120000 | N227: 0.001810 | O227: 97144.000000 | P227: 39.100000 | Q227: 0.002402 | R227: 95965.438869 | T227: 0.000000 | U227: 0.002993 | V227: 94800.450341 | W227: 0.000000 | Y227: 75.000000 | Z227: 3812.600000 | AA227: 268.600000 | AB227: 0.038126 | AC227: 0.002686 | AD227: 69655.928967 | AE227: 0.000000 | AF227: 0.000000 | AG227: 0.000000 | AI227: 0.000001 | AJ227: 0.002200 | AK227: 96176.901480 | AL227: 0.041962 | AN227: 92324.000000 | AO227: 0.000000 | AP227: 0.003878 | AQ227: 0.003878 | AR227: 92653.000000 | AS227: 0.000000
I228: 44.000000 | J228: 26.000000 | K228: 0.003257 | L228: 94517.000000 | M228: 34.220000 | N228: 0.001985 | O228: 96968.000000 | P228: 38.170000 | Q228: 0.002621 | R228: 95734.977867 | T228: 0.000000 | U228: 0.003257 | V228: 94516.712593 | W228: 0.000000 | Y228: 80.000000 | Z228: 6444.800000 | AA228: 272.800000 | AB228: 0.064448 | AC228: 0.002728 | AD228: 56377.419228 | AE228: 0.000000 | AF228: 0.000000 | AG228: =AD228*AF228 -> 0.000000 | AI228: 0.000001 | AJ228: 0.002402 | AK228: 95965.270335 | AL228: 0.051497 | AN228: 91966.000000 | AO228: 0.000000 | AP228: 0.004252 | AQ228: 0.004252 | AR228: 92324.000000 | AS228: 0.000000
... 261 more rows

Sheet Scenario 2
A1: SCENARIO 2. | B1: PCME RESULTS ARE KNOWN
D3: RISK ASSESSMENT RESULTS:
A4: OCCUPATIONAL EXPOSURE DATA: | D4: Total Cancer, per 1,000,000 | G4: Lung Cancer, per 1,000,000 | J4: Mesothelioma, per 1,000,000
D5: Berman, Crump 2008: | E5: Hodgson, Darnton: | G5: Berman, Crump 2008: | H5: Hodgson, Darnton: | J5: Berman, Crump 2008: | K5: Hodgson, Darnton:
A6: Chrysotile Asbestos Concentration, PCME (f/cc) | B6: 0.5 | C6: Best Estimate: | D6: =G6+J6 -> 3595 | E6: =G189 -> 1063 | F6: Best Estimate: | G6: =Z53 -> 3504 | H6: =C189 -> 600 | I6: Best Estimate: | J6: =Y53 -> 91 | K6: =E189+F189 -> 464
C7: Upper Bolund: | F7: Upper Bolund: | I7: Upper Bolund:
A8: Tremolite Concentration, PCME (f/cc) | B8: 0.1 | C8: Best Estimate: | D8: =X54 -> 22020 | E8: =G188 -> 7005 | F8: Best Estimate: | G8: =Z54 -> 4906 | H8: =C188 -> 4229 | I8: Best Estimate: | J8: =Y54 -> 17115 | K8: =E188+F188 -> 2776
C9: Upper Bound: | D9: =G9+J9 -> 11247 | F9: Upper Bound: | G9: =G6/0.2*0.55 -> 9636 | I9: Upper Bound: | J9: =J6/0.009*0.16 -> 1611
A12: Crocidolite Concentration, PCME (f/cc) | B12: 0.005 | C12: Best Estimate: | D12: =J12+G12 -> 1101 | E12: =G190 -> 2181 | F12: Best Estimate: | G12: =V838 -> 245 | H12: =C190 -> 86 | I12: Best Estimate: | J12: =Q838 -> 856 | K12: =E190+F190 -> 2095
C13: Upper Bound: | D13: =G13+J13 -> 2947 | F13: Upper Bound: | G13: =G12/1.4*5.9 -> 1034 | I13: Upper Bound: | J13: =J12/8.5*19 -> 1913
A15: Amosite Concentration, PCME (f/cc) | B15: 0.014 | C15: Best Estimate: | D15: =G15+J15 -> 3083 | E15: =G191 -> 956 | F15: Best Estimate: | G15: =V968 -> 687 | H15: =C191 -> 328 | I15: Best Estimate: | J15: =Q968 -> 2396 | K15: =E191+F191 -> 628
C16: Upper Bound: | D16: =G16+J16 -> 8250 | F16: Upper Bound: | G16: =G15/1.4*5.9 -> 2894 | I16: Upper Bound: | J16: =J15/8.5*19 -> 5356
A18: Duration (years) | B18: 45
A20: Onset age (years) | B20: 18
A22: Exposure duration during the shift (hours) | B22: 8
A24: Shift duration (hour) | B24: 8
A25: Protection factor | B25: 1
A43: EPA, IRIS Method (Current USEPA Asbestos Risk Assessment Method)
H44: Duration of exposure | M44: Average PCME Receptor Asbestos Concentration Exposure, Ambient Equivalent (f/cc) | N44: Total Lifetime Exposure (f/cc years, work place equivalent) | O44: Onset time, years | P44: K1, coefficient for UNIT risk calculation | Q44: K2, coefficient for UNIT risk calculation | R44: Unit Risk (EPA, duraion and onset time adjusted) | S44: Excess Lifetime Cancer Risk (ELCR) (Cases per million) | U44: Lung cancer potency factor, Kl | V44: Mesothelioma potency factor, Km | X44: Excess Lifetime Cancer Risk (ELCR) (Cases per million) | Y44: Excess Lifetime Mesothelioma Risk (cases per million) | Z44: Excess Lifetime Lung Cancer Risk (Cases per million) | AB44: Calculated Unit Risk
O45: Range
O47: Lower
O49: Upper
G51: =#REF!*(B22/B24)/B25 ->  | H51: =B18 -> 45 | I51: =1 -> 1 | J51: =1-I51 -> 0 | K51: 100% | L51: =K51*J51+I51 -> 100% | M51: =G51*L51/2.8*B24/8 ->  | N51: =H51*M51*2.8 ->  | O51: =B20 -> 18 | P51: =-0.0176401+0.2492567*EXP(-O51/24.7806941) -> 0.103 | Q51: =0.0415839+0.0039973*EXP(O51/-18.2212632) -> 0.043 | R51: =P51*(1-EXP(-1*Q51*H51)) -> 0.088 | S51: =M51*R51*1000000 ->  | T51: Total: | U51: =1*10^-2 -> 0.01 | V51: =1*10^-8 -> 1e-08 | X51: =Q452+V452 ->  | Y51: =Q452 ->  | Z51: =V452 ->  | AB51: =X51/M51/1000000 -> 
G52: including: | M52: including:
F53: TWA Asbestos Concentration (f/cc) (PCME, chrysotile): | G53: =B6*B22/B24/B25 -> 0.5 | L53: Average PCME Chrysotile Receptor Asbestos Concentration Exposure (f/cc) | M53: =G53*(L51/2.8)*B24/8 -> 0.1785714286 | N53: =H51*M53*2.8 -> 2.25E+01 | Q53: " | R53: " | T53: Chrysotile: | U53: =0.2*10^-2 -> 0.002 | V53: =0.009*10^-8 -> 9e-11 | X53: =Y53+Z53 -> 3594.626238 | Y53: =Q581 -> 90.6074287 | Z53: =V581 -> 3504.01881
F54: TWA Asbestos Concentration (f/cc) (PCME, tremolite-actinolite) | G54: =B8*B22/B24/B25 -> 0.1 | L54: Average PCME Tremolite-Actinolite Receptor Asbestos Concentration Exposure (f/cc) | M54: =G54*L51/2.8*B24/8 -> 0.03571428571 | N54: =H51*M54*2.8 -> 4.50E+00 | T54: Tremolite-Actinolite (as amosite for mesothelioma): | U54: =1.4*10^-2 -> 0.014 | V54: =8.5*10^-8 -> 8.5e-08 | X54: =Y54+Z54 -> 22020.36287 | Y54: =Q710 -> 17114.73653 | Z54: =V710 -> 4905.626333
F56: TWA Asbestos Concentration (f/cc) (PCME, tremolite-actinolite) | G56: =B12*$B$22/$B$24/$B$25 -> 0.005000 | L56: Average PCME Crocidolite Receptor Asbestos concentration Exposure (f/cc) | M56: =G56*$L$51/2.8*$B$24/8 -> 0.001785714286 | N56: =$H$51*M56*2.8 -> 2.25E-01 | S56: Crocidolite | U56: =1.4*10^-2 -> 0.014 | V56: =8.5*10^-8 -> 8.5e-08
S57: Amosite | U57: =1.4*10^-2 -> 0.014 | V57: =8.5*10^-8 -> 8.5e-08
F58: TWA Asbestos Concentration (f/cc), (PCME, amosite) | G58: =B15*$B$22/$B$24/$B$25 -> 0.014000 | L58: Amosite | M58: =G58*$L$51/2.8*$B$24/8 -> 0.005 | N58: =H51*M58*2.8 -> 0.63
Y60: Lung cancer male | AE60: P | AI60: Mesothelioma both genders | AN60: mesothelioma male 1977 | AP60: Death rate
Y61: 0.00 | Z61: 799.9 | AA61: 0 | AB61: =Z61/100000 -> 0.007999 | AC61: =AA61/100000 -> 0 | AD61: =100000 -> 100000 | AE61: =IF(Y61<10,0,IF(AND(OR(Y61>10,Y61=10),Y61<10+$H$63),$H$60*$H$62*(Y61-10),$H$60*$H$62*Y61)) -> 0 | AF61: =AC61*AE61 -> 0 | AG61: =AD61*AF61 -> 0 | AI61: =IF(J61<10,0, IF(AND(OR(J61>10, J61=10),J61<10+$H$63),$H$61*$H$62*((J61-10)^3), $H$61*$H$62*((J61-10)^3-(J61-10-$H$63)^3))) -> 0 | AJ61: =Q61+AI61 -> 0 | AK61: =100000 -> 100000 | AL61: =AK61*AI61 -> 0 | AN61: 100000 | AO61: =IF($J61<10,0, IF(AND(OR($J61>10, $J61=10),$J61<10+$H$63),$H$61*$H$62*(($J61-10)^3), $H$61*$H$62*(($J61-10)^3-($J61-10-$H$63)^3))) -> 0 | AP61: =(AN61-AN62)/AN61 -> 0.01586 | AQ61: =AP61+AO61 -> 0.01586 | AR61: =100000 -> 100000 | AS61: =AR61*AO61 -> 0
Y62: 1.00 | Z62: 36.5 | AA62: 0 | AB62: =Z62/100000 -> 0.000365 | AC62: 0 | AD62: =AD61-AB61*AD61*2 -> 98400.2 | AE62: =IF(Y62<10,0,IF(AND(OR(Y62>10,Y62=10),Y62<10+$H$63),$H$60*$H$62*(Y62-10),$H$60*$H$62*Y62)) -> 0 | AF62: =AC62*AE62 -> 0 | AG62: 0 | AI62: =IF(J62<10,0, IF(AND(OR(J62>10, J62=10),J62<10+$H$63),$H$61*$H$62*((J62-10)^3), $H$61*$H$62*((J62-10)^3-(J62-10-$H$63)^3))) -> 0 | AJ62: =Q62+AI62 -> 0 | AK62: =AK61-AK61*AJ61 -> 100000 | AL62: =AK62*AI62 -> 0 | AN62: 98414 | AO62: =IF($J62<10,0, IF(AND(OR($J62>10, $J62=10),$J62<10+$H$63),$H$61*$H$62*(($J62-10)^3), $H$61*$H$62*(($J62-10)^3-($J62-10-$H$63)^3))) -> 0 | AP62: =(AN62-AN63)/AN62 -> 0.001036437905 | AQ62: =AP62+AO62 -> 0.001036437905 | AR62: =AR61-AR61*AQ61 -> 98414 | AS62: =AR62*AO62 -> 0
Y63: 5.00 | Z63: 18.3 | AA63: 0 | AB63: 0.000183 | AC63: 0 | AD63: =AD62-AB62*AD62*5 -> 98220.61963 | AE63: 0 | AF63: 0 | AG63: 0 | AI63: 0 | AJ63: 0 | AK63: =AK62-AK62*AJ62 -> 100000 | AL63: 0 | AN63: 98312 | AO63: 0 | AP63: 0.0008035641631 | AQ63: 0.0008035641631 | AR63: =AR62-AR62*AQ62 -> 98312 | AS63: 0
Y64: 10.00 | Z64: 25 | AA64: 0 | AB64: 0.00025 | AC64: 0 | AD64: =AD63-AB63*AD63*5 -> 98130.74777 | AE64: 0 | AF64: 0 | AG64: 0 | AI64: 0 | AJ64: 0 | AK64: 100000 | AL64: 0 | AN64: 98233 | AO64: 0 | AP64: 0.0006413323425 | AQ64: 0.0006413323425 | AR64: 98233 | AS64: 0
Y65: 15.00 | Z65: 94.9 | AA65: 0 | AB65: 0.000949 | AC65: 0 | AD65: 98008.08433 | AE65: 0 | AF65: 0 | AG65: 0 | AI65: 0 | AJ65: 0 | AK65: 100000 | AL65: 0 | AN65: 98170 | AO65: 0 | AP65: 0.0005398798003 | AQ65: 0.0005398798003 | AR65: 98170 | AS65: 0
Y66: 20.00 | Z66: 142 | AA66: 0 | AB66: 0.00142 | AC66: 0 | AD66: 97543.03597 | AE66: 0 | AF66: 0 | AG66: 0 | AI66: 0 | AJ66: 0 | AK66: 100000 | AL66: 0 | AN66: 98117 | AO66: 0 | AP66: 0.0004892118593 | AQ66: 0.0004892118593 | AR66: 98117 | AS66: 0
Y67: 25.00 | Z67: 141.9 | AA67: 0.3 | AB67: 0.001419 | AC67: 3e-06 | AD67: 96850.48042 | AE67: 0 | AF67: =AC67*AE67*5 -> 0 | AG67: 0 | AI67: 0 | AJ67: 0 | AK67: 100000 | AL67: 0 | AN67: 98069 | AO67: 0 | AP67: 0.000448663696 | AQ67: 0.000448663696 | AR67: 98069 | AS67: 0
Y68: 30.00 | Z68: 157.3 | AA68: 0.8 | AB68: 0.001573 | AC68: 8e-06 | AD68: 96163.32626 | AE68: 0 | AF68: 0 | AG68: 0 | AI68: 0 | AJ68: 0 | AK68: 100000 | AL68: 0 | AN68: 98025 | AO68: 0 | AP68: 0.0004182606478 | AQ68: 0.0004182606478 | AR68: 98025 | AS68: 0
Y69: 35.00 | Z69: 209.8 | AA69: 3.3 | AB69: 0.002098 | AC69: 3.3e-05 | AD69: 95407.0017 | AE69: 0 | AF69: 0 | AG69: 0 | AI69: 0 | AJ69: 0 | AK69: 100000 | AL69: 0 | AN69: 97984 | AO69: 0 | AP69: 0.0003674069236 | AQ69: 0.0003674069236 | AR69: 97984 | AS69: 0
Y70: 40.00 | Z70: 303.3 | AA70: 10.4 | AB70: 0.003033 | AC70: 0.000104 | AD70: 94406.18225 | AE70: 0 | AF70: 0 | AG70: 0 | AI70: 0 | AJ70: 0 | AK70: 100000 | AL70: 0 | AN70: 97948 | AO70: 0 | AP70: 0.0003164944665 | AQ70: 0.0003164944665 | AR70: 97948 | AS70: 0
Y71: 45.00 | Z71: 461.7 | AA71: 26 | AB71: 0.004617 | AC71: 0.00026 | AD71: 92974.5125 | AE71: 0 | AF71: 0 | AG71: 0 | AI71: 0 | AJ71: 0 | AK71: 100000 | AL71: 0 | AN71: 97917 | AO71: 0 | AP71: 0.0002757437421 | AQ71: 0.0002757437421 | AR71: 97917 | AS71: 0
Y72: 50.00 | Z72: 658.3 | AA72: 54.6 | AB72: 0.006583 | AC72: 0.000546 | AD72: 90828.19588 | AE72: 0 | AF72: 0 | AG72: 0 | AI72: 0 | AJ72: 0 | AK72: 100000 | AL72: 0 | AN72: 97890 | AO72: 0 | AP72: 0.0002758197977 | AQ72: 0.0002758197977 | AR72: 97890 | AS72: 0
Y73: 55.00 | Z73: 1007.5 | AA73: 118 | AB73: 0.010075 | AC73: 0.00118 | AD73: 87838.58581 | AE73: 0 | AF73: 0 | AG73: 0 | AI73: 0 | AJ73: 0 | AK73: 100000 | AL73: 0 | AN73: 97863 | AO73: 0 | AP73: 0.0003576428272 | AQ73: 0.0003576428272 | AR73: 97863 | AS73: 0
Y74: 60.00 | Z74: 1565.5 | AA74: 206.2 | AB74: 0.015655 | AC74: 0.002062 | AD74: 83413.71705 | AE74: 0 | AF74: 0 | AG74: 0 | AI74: 0 | AJ74: 0 | AK74: 100000 | AL74: 0 | AN74: 97828 | AO74: 0 | AP74: 0.0005315451609 | AQ74: 0.0005315451609 | AR74: 97828 | AS74: 0
Y75: 65.00 | Z75: 2399.3 | AA75: 327.5 | AB75: 0.023993 | AC75: 0.003275 | AD75: 76884.50835 | AE75: 0 | AF75: 0 | AG75: 0 | AI75: 0 | AJ75: 0 | AK75: 100000 | AL75: 0 | AN75: 97776 | AO75: 0 | AP75: 0.0007772868598 | AQ75: 0.0007772868598 | AR75: 97776 | AS75: 0
Y76: 70.00 | Z76: 3705.4 | AA76: 444 | AB76: 0.037054 | AC76: 0.00444 | AD76: 67661.0583 | AE76: 0 | AF76: 0 | AG76: 0 | AI76: 0 | AJ76: 0 | AK76: 100000 | AL76: 0 | AN76: 97700 | AO76: 0 | AP76: 0.001044012282 | AQ76: 0.001044012282 | AR76: 97700 | AS76: 0
Y77: 75.00 | Z77: 5591.2 | AA77: 507.3 | AB77: 0.055912 | AC77: 0.005073 | AD77: 55125.49403 | AE77: 0 | AF77: 0 | AG77: 0 | AI77: 0 | AJ77: 0 | AK77: 100000 | AL77: 0 | AN77: 97598 | AO77: 0 | AP77: 0.001301256173 | AQ77: 0.001301256173 | AR77: 97598 | AS77: 0
Y78: 80.00 | Z78: 8956.9 | AA78: 549.6 | AB78: 0.089569 | AC78: 0.005496 | AD78: 39714.61092 | AE78: 0 | AF78: 0 | AG78: 0 | AI78: 0 | AJ78: 0 | AK78: 100000 | AL78: 0 | AN78: 97471 | AO78: 0 | AP78: 0.001518400345 | AQ78: 0.001518400345 | AR78: 97471 | AS78: 0
Y79: 85.00 | Z79: 16605.4 | AA79: 499 | AB79: 0.166054 | AC79: 0.00499 | AD79: 21928.62099 | AE79: 0 | AF79: 0 | AG79: 0 | AI79: 0 | AJ79: 0 | AK79: 100000 | AL79: 0 | AN79: 97323 | AO79: 0 | AP79: 0.001685110406 | AQ79: 0.001685110406 | AR79: 97323 | AS79: 0
AI80: 0 | AJ80: 0 | AK80: 100000 | AL80: 0 | AN80: 97159 | AO80: 0 | AP80: 0.001790878869 | AQ80: 0.001790878869 | AR80: 97159 | AS80: 0
AI81: 0 | AJ81: 0 | AK81: 100000 | AL81: 0 | AN81: 96985 | AO81: 0 | AP81: 0.001897200598 | AQ81: 0.001897200598 | AR81: 96985 | AS81: 0
AG82: =SUM(AG61:AG79)/100000*1000000 -> 0 | AI82: 0 | AJ82: 0 | AK82: 100000 | AL82: 0 | AN82: 96801 | AO82: 0 | AP82: 0.002004111528 | AQ82: 0.002004111528 | AR82: 96801 | AS82: 0
AI83: 0 | AJ83: 0 | AK83: 100000 | AL83: 0 | AN83: 96607 | AO83: 0 | AP83: 0.002070243357 | AQ83: 0.002070243357 | AR83: 96607 | AS83: 0
AI84: 0 | AJ84: 0 | AK84: 100000 | AL84: 0 | AN84: 96407 | AO84: 0 | AP84: 0.002074538156 | AQ84: 0.002074538156 | AR84: 96407 | AS84: 0
AI85: 0 | AJ85: 0 | AK85: 100000 | AL85: 0 | AN85: 96207 | AO85: 0 | AP85: 0.002047668049 | AQ85: 0.002047668049 | AR85: 96207 | AS85: 0
Y86: Lung cancer female | AI86: 0 | AJ86: 0 | AK86: 100000 | AL86: 0 | AN86: 96010 | AO86: 0 | AP86: 0.00201020727 | AQ86: 0.00201020727 | AR86: 96010 | AS86: 0
AE87: P | AI87: 0 | AJ87: 0 | AK87: 100000 | AL87: 0 | AN87: 95817 | AO87: 0 | AP87: 0.001972510097 | AQ87: 0.001972510097 | AR87: 95817 | AS87: 0
Y88: 0.00 | Z88: 654.3 | AA88: 0 | AB88: =Z88/100000 -> 0.006543 | AC88: =AA88/100000 -> 0 | AD88: =100000 -> 100000 | AE88: =IF(Y88<10,0,IF(AND(OR(Y88>10,Y88=10),Y88<10+$H$63),$H$60*$H$62*(Y88-10),$H$60*$H$62*Y88)) -> 0 | AF88: =AC88*AE88 -> 0 | AG88: =AD88*AF88 -> 0 | AI88: 0 | AJ88: 0 | AK88: 100000 | AL88: 0 | AN88: 95628 | AO88: 0 | AP88: 0.001924122642 | AQ88: 0.001924122642 | AR88: 95628 | AS88: 0
Y89: 1.00 | Z89: 29.1 | AA89: 0 | AB89: =Z89/100000 -> 0.000291 | AC89: 0 | AD89: =AD88-AB88*AD88*2 -> 98691.4 | AE89: =IF(Y89<10,0,IF(AND(OR(Y89>10,Y89=10),Y89<10+$H$63),$H$60*$H$62*(Y89-10),$H$60*$H$62*Y89)) -> 0 | AF89: =AC89*AE89 -> 0 | AG89: 0 | AI89: 0 | AJ89: 0 | AK89: 100000 | AL89: 0 | AN89: 95444 | AO89: 0 | AP89: 0.001896399983 | AQ89: 0.001896399983 | AR89: 95444 | AS89: 0
Y90: 5.00 | Z90: 14.5 | AA90: 0 | AB90: 0.000145 | AC90: 0 | AD90: =AD89-AB89*AD89*5 -> 98547.80401 | AE90: 0 | AF90: 0 | AG90: 0 | AI90: 0 | AJ90: 0 | AK90: 100000 | AL90: 0 | AN90: 95263 | AO90: 0 | AP90: 0.001879008639 | AQ90: 0.001879008639 | AR90: 95263 | AS90: 0
Y91: 10.00 | Z91: 16.6 | AA91: 0 | AB91: 0.000166 | AC91: 0 | AD91: =AD90-AB90*AD90*5 -> 98476.35686 | AE91: 0 | AF91: 0 | AG91: 0 | AI91: 0 | AJ91: 0 | AK91: 100000 | AL91: 0 | AN91: 95084 | AO91: 0 | AP91: 0.001861511926 | AQ91: 0.001861511926 | AR91: 95084 | AS91: 0
Y92: 15.00 | Z92: 40 | AA92: 0 | AB92: 0.0004 | AC92: 0 | AD92: 98394.62148 | AE92: 0 | AF92: 0 | AG92: 0 | AI92: 0 | AJ92: 0 | AK92: 100000 | AL92: 0 | AN92: 94907 | AO92: 0 | AP92: 0.001864983616 | AQ92: 0.001864983616 | AR92: 94907 | AS92: 0
Y93: 20.00 | Z93: 48.2 | AA93: 0 | AB93: 0.000482 | AC93: 0 | AD93: 98197.83224 | AE93: 0 | AF93: 0 | AG93: 0 | AI93: 0 | AJ93: 0 | AK93: 100000 | AL93: 0 | AN93: 94730 | AO93: 0 | AP93: 0.001889580914 | AQ93: 0.001889580914 | AR93: 94730 | AS93: 0
Y94: 25.00 | Z94: 56.5 | AA94: 0 | AB94: 0.000565 | AC94: 0 | AD94: 97961.17546 | AE94: 0 | AF94: 0 | AG94: 0 | AI94: 0 | AJ94: 0 | AK94: 100000 | AL94: 0 | AN94: 94551 | AO94: 0 | AP94: 0.001967192309 | AQ94: 0.001967192309 | AR94: 94551 | AS94: 0
Y95: 30.00 | Z95: 76 | AA95: 0.9 | AB95: 0.00076 | AC95: 9e-06 | AD95: 97684.43514 | AE95: 0 | AF95: =AC95*AE95*5 -> 0 | AG95: 0 | AI95: 0 | AJ95: 0 | AK95: 100000 | AL95: 0 | AN95: 94365 | AO95: 0 | AP95: 0.002087638425 | AQ95: 0.002087638425 | AR95: 94365 | AS95: 0
Y96: 35.00 | Z96: 115.1 | AA96: 2.6 | AB96: 0.001151 | AC96: 2.6e-05 | AD96: 97313.23429 | AE96: 0 | AF96: 0 | AG96: 0 | AI96: 0 | AJ96: 0 | AK96: 100000 | AL96: 0 | AN96: 94168 | AO96: 0 | AP96: 0.00223005692 | AQ96: 0.00223005692 | AR96: 94168 | AS96: 0
Y97: 40.00 | Z97: 172.2 | AA97: 8.1 | AB97: 0.001722 | AC97: 8.1e-05 | AD97: 96753.19662 | AE97: 0 | AF97: 0 | AG97: 0 | AI97: 0 | AJ97: 0 | AK97: 100000 | AL97: 0 | AN97: 93958 | AO97: 0 | AP97: 0.002384043935 | AQ97: 0.002384043935 | AR97: 93958 | AS97: 0
Y98: 45.00 | Z98: 254 | AA98: 16.6 | AB98: 0.00254 | AC98: 0.000166 | AD98: 95920.1516 | AE98: 0 | AF98: 0 | AG98: 0 | AI98: 0 | AJ98: 0 | AK98: 100000 | AL98: 0 | AN98: 93734 | AO98: 0 | AP98: 0.002571105469 | AQ98: 0.002571105469 | AR98: 93734 | AS98: 0
Y99: 50.00 | Z99: 386.3 | AA99: 35.1 | AB99: 0.003863 | AC99: 0.000351 | AD99: 94701.96567 | AE99: 0 | AF99: 0 | AG99: 0 | AI99: 0 | AJ99: 0 | AK99: 100000 | AL99: 0 | AN99: 93493 | AO99: 0 | AP99: 0.002770260875 | AQ99: 0.002770260875 | AR99: 93493 | AS99: 0
Y100: 55.00 | Z100: 611.8 | AA100: 70.9 | AB100: 0.006118 | AC100: 0.000709 | AD100: 92872.79721 | AE100: 0 | AF100: 0 | AG100: 0 | AI100: 0 | AJ100: 0 | AK100: 100000 | AL100: 0 | AN100: 93234 | AO100: 0 | AP100: 0.002992470558 | AQ100: 0.002992470558 | AR100: 93234 | AS100: 0
Y101: 60.00 | Z101: 982 | AA101: 122.3 | AB101: 0.00982 | AC101: 0.001223 | AD101: 90031.81834 | AE101: 0 | AF101: 0 | AG101: 0 | AI101: 0 | AJ101: 0 | AK101: 100000 | AL101: 0 | AN101: 92955 | AO101: 0 | AP101: 0.003248883869 | AQ101: 0.003248883869 | AR101: 92955 | AS101: 0
Y102: 65.00 | Z102: 1527.5 | AA102: 181.6 | AB102: 0.015275 | AC102: 0.001816 | AD102: 85611.25606 | AE102: 0 | AF102: 0 | AG102: 0 | AI102: 0 | AJ102: 0 | AK102: 100000 | AL102: 0 | AN102: 92653 | AO102: 0 | AP102: 0.003550883404 | AQ102: 0.003550883404 | AR102: 92653 | AS102: 0
Y103: 70.00 | Z103: 2381.8 | AA103: 238.7 | AB103: 0.023818 | AC103: 0.002387 | AD103: 79072.69638 | AE103: 0 | AF103: 0 | AG103: 0 | AI103: 0 | AJ103: 0 | AK103: 100000 | AL103: 0 | AN103: 92324 | AO103: 0 | AP103: 0.003877648282 | AQ103: 0.003877648282 | AR103: 92324 | AS103: 0
Y104: 75.00 | Z104: 3812.6 | AA104: 268.6 | AB104: 0.038126 | AC104: 0.002686 | AD104: 69655.92897 | AE104: 0 | AF104: 0 | AG104: 0 | AI104: 0 | AJ104: 0 | AK104: 100000 | AL104: 0 | AN104: 91966 | AO104: 0 | AP104: 0.004251571233 | AQ104: 0.004251571233 | AR104: 91966 | AS104: 0
Y105: 80.00 | Z105: 6444.8 | AA105: 272.8 | AB105: 0.064448 | AC105: 0.002728 | AD105: 56377.41923 | AE105: 0 | AF105: 0 | AG105: 0 | AI105: 0 | AJ105: 0 | AK105: 100000 | AL105: 0 | AN105: 91575 | AO105: 0 | AP105: 0.004673764674 | AQ105: 0.004673764674 | AR105: 91575 | AS105: 0
Y106: 85.00 | Z106: 14768.6 | AA106: 213.5 | AB106: 0.147686 | AC106: 0.002135 | AD106: 38210.35966 | AE106: 0 | AF106: 0 | AG106: 0 | AI106: 0 | AJ106: 0 | AK106: 100000 | AL106: 0 | AN106: 91147 | AO106: 0 | AP106: 0.005123591561 | AQ106: 0.005123591561 | AR106: 91147 | AS106: 0
AI107: 0 | AJ107: 0 | AK107: 100000 | AL107: 0 | AN107: 90680 | AO107: 0 | AP107: 0.005624172916 | AQ107: 0.005624172916 | AR107: 90680 | AS107: 0
AI108: 0 | AJ108: 0 | AK108: 100000 | AL108: 0 | AN108: 90170 | AO108: 0 | AP108: 0.006177220805 | AQ108: 0.006177220805 | AR108: 90170 | AS108: 0
AG109: =SUM(AG88:AG106)/100000*1000000 -> 0 | AI109: 0 | AJ109: 0 | AK109: 100000 | AL109: 0 | AN109: 89613 | AO109: 0 | AP109: 0.00681820718 | AQ109: 0.00681820718 | AR109: 89613 | AS109: 0
AI110: 0 | AJ110: 0 | AK110: 100000 | AL110: 0 | AN110: 89002 | AO110: 0 | AP110: 0.007505449316 | AQ110: 0.007505449316 | AR110: 89002 | AS110: 0
Y111: Lung cancer both genders | AI111: 0 | AJ111: 0 | AK111: 100000 | AL111: 0 | AN111: 88334 | AO111: 0 | AP111: 0.008275409242 | AQ111: 0.008275409242 | AR111: 88334 | AS111: 0
Z112: Total death/100,000 | AA112: Lung cancer, per 100,000 | AE112: P | AI112: 0 | AJ112: 0 | AK112: 100000 | AL112: 0 | AN112: 87603 | AO112: 0 | AP112: 0.00910927708 | AQ112: 0.00910927708 | AR112: 87603 | AS112: 0
X113: 0.00 | Y113: =X113-$O$51 -> -18.00 | Z113: =(Z61+Z88)/2 -> 727.1 | AA113: =(AA61+AA88)/2 -> 0 | AB113: =Z113/100000 -> 0.007271 | AC113: =AA113/100000 -> 0 | AD113: =100000 -> 100000 | AE113: =IF(Y113<10,0,IF(AND(OR(Y113>10,Y113=10),Y113<10+$H$63),$H$60*$H$62*(Y113-10),$H$60*$H$62*Y113)) -> 0 | AF113: =AC113*AE113 -> 0 | AG113: =AD113*AF113 -> 0 | AI113: 0 | AJ113: 0 | AK113: 100000 | AL113: 0 | AN113: 86805 | AO113: 0 | AP113: 0.009953343701 | AQ113: 0.009953343701 | AR113: 86805 | AS113: 0
X114: 1.00 | Y114: =X114-$O$51 -> -17.00 | Z114: =(Z62+Z89)/2 -> 32.8 | AA114: 0 | AB114: =Z114/100000 -> 0.000328 | AC114: 0 | AD114: =AD113-AB113*AD113*2 -> 98545.8 | AE114: =IF(Y114<10,0,IF(AND(OR(Y114>10,Y114=10),Y114<10+$H$63),$H$60*$H$62*(Y114-10),$H$60*$H$62*Y114)) -> 0 | AF114: =AC114*AE114 -> 0 | AG114: 0 | AI114: 0 | AJ114: 0 | AK114: 100000 | AL114: 0 | AN114: 85941 | AO114: 0 | AP114: 0.01080974157 | AQ114: 0.01080974157 | AR114: 85941 | AS114: 0
X115: 5.00 | Y115: -13.00 | Z115: 16.4 | AA115: 0 | AB115: 0.000164 | AC115: 0 | AD115: =AD114-AB114*AD114*5 -> 98384.18489 | AE115: 0 | AF115: 0 | AG115: 0 | AI115: 0 | AJ115: 0 | AK115: 100000 | AL115: 0 | AN115: 85012 | AO115: 0 | AP115: 0.01171599304 | AQ115: 0.01171599304 | AR115: 85012 | AS115: 0
X116: 10.00 | Y116: -8.00 | Z116: 20.8 | AA116: 0 | AB116: 0.000208 | AC116: 0 | AD116: =AD115-AB115*AD115*5 -> 98303.50986 | AE116: 0 | AF116: 0 | AG116: 0 | AI116: 0 | AJ116: 0 | AK116: 100000 | AL116: 0 | AN116: 84016 | AO116: 0 | AP116: 0.01264044944 | AQ116: 0.01264044944 | AR116: 84016 | AS116: 0
X117: 15.00 | Y117: -3.00 | Z117: 67.45 | AA117: 0 | AB117: 0.0006745 | AC117: 0 | AD117: 98201.27421 | AE117: 0 | AF117: 0 | AG117: 0 | AI117: 0 | AJ117: 0 | AK117: 100000 | AL117: 0 | AN117: 82954 | AO117: 0 | AP117: 0.013658172 | AQ117: 0.013658172 | AR117: 82954 | AS117: 0
X118: 20.00 | Y118: 2.00 | Z118: 95.1 | AA118: 0 | AB118: 0.000951 | AC118: 0 | AD118: 97870.09041 | AE118: 0 | AF118: 0 | AG118: 0 | AI118: 0 | AJ118: 0 | AK118: 100000 | AL118: 0 | AN118: 81821 | AO118: 0 | AP118: 0.01491059752 | AQ118: 0.01491059752 | AR118: 81821 | AS118: 0
X119: 25.00 | Y119: 7.00 | Z119: 99.2 | AA119: 0.15 | AB119: 0.000992 | AC119: 1.5e-06 | AD119: 97404.71813 | AE119: 0 | AF119: =AC119*AE119*5 -> 0 | AG119: 0 | AI119: 0 | AJ119: 0 | AK119: 100000 | AL119: 0 | AN119: 80601 | AO119: 0 | AP119: 0.01646381559 | AQ119: 0.01646381559 | AR119: 80601 | AS119: 0
X120: 30.00 | Y120: 12.00 | Z120: 116.65 | AA120: 0.85 | AB120: 0.0011665 | AC120: 8.5e-06 | AD120: 96921.59073 | AE120: 0 | AF120: =AC120*AE120*5 -> 0 | AG120: 0 | AI120: 0 | AJ120: 0 | AK120: 100000 | AL120: 0 | AN120: 79274 | AO120: 0 | AP120: 0.01826576179 | AQ120: 0.01826576179 | AR120: 79274 | AS120: 0
X121: 35.00 | Y121: 17.00 | Z121: 162.45 | AA121: 2.95 | AB121: 0.0016245 | AC121: 2.95e-05 | AD121: 96356.29555 | AE121: 0 | AF121: 0 | AG121: 0 | AI121: 0 | AJ121: 0 | AK121: 100000 | AL121: 0 | AN121: 77826 | AO121: 0 | AP121: 0.02025030196 | AQ121: 0.02025030196 | AR121: 77826 | AS121: 0
X122: 40.00 | Y122: 22.00 | Z122: 237.75 | AA122: 9.25 | AB122: 0.0023775 | AC122: 9.25e-05 | AD122: 95573.64154 | AE122: 0 | AF122: 0 | AG122: 0 | AI122: 0 | AJ122: 0 | AK122: 100000 | AL122: 0 | AN122: 76250 | AO122: 0 | AP122: 0.02230819672 | AQ122: 0.02230819672 | AR122: 76250 | AS122: 0
X123: 45.00 | Y123: 27.00 | Z123: 357.85 | AA123: 21.3 | AB123: 0.0035785 | AC123: 0.000213 | AD123: 94437.50987 | AE123: 0 | AF123: 0 | AG123: 0 | AI123: 0 | AJ123: 0 | AK123: 100000 | AL123: 0 | AN123: 74549 | AO123: 0 | AP123: 0.02429274705 | AQ123: 0.02429274705 | AR123: 74549 | AS123: 0
X124: 50.00 | Y124: 32.00 | Z124: 522.3 | AA124: 44.85 | AB124: 0.005223 | AC124: 0.0004485 | AD124: 92747.78673 | AE124: 0 | AF124: 0 | AG124: 0 | AI124: 0 | AJ124: 0 | AK124: 100000 | AL124: 0 | AN124: 72738 | AO124: 0 | AP124: 0.02610739916 | AQ124: 0.02610739916 | AR124: 72738 | AS124: 0
X125: 55.00 | Y125: 37.00 | Z125: 809.65 | AA125: 94.45 | AB125: 0.0080965 | AC125: 0.0009445 | AD125: 90325.67828 | AE125: 0 | AF125: 0 | AG125: 0 | AI125: 0 | AJ125: 0 | AK125: 100000 | AL125: 0 | AN125: 70839 | AO125: 0 | AP125: 0.02783777298 | AQ125: 0.02783777298 | AR125: 70839 | AS125: 0
X126: 60.00 | Y126: 42.00 | Z126: 1273.75 | AA126: 164.25 | AB126: 0.0127375 | AC126: 0.0016425 | AD126: 86669.06901 | AE126: 0 | AF126: 0 | AG126: 0 | AI126: =IF(J126<10,0, IF(AND(OR(J126>10, J126=10),J126<10+$H$63),$H$61*$H$62*((J126-10)^3), $H$61*$H$62*((J126-10)^3-(J126-10-$H$63)^3))) -> 0 | AJ126: =Q126+AI126 -> 0 | AK126: 100000 | AL126: =AK126*AI126 -> 0 | AN126: 68867 | AO126: =IF($J126<10,0, IF(AND(OR($J126>10, $J126=10),$J126<10+$H$63),$H$61*$H$62*(($J126-10)^3), $H$61*$H$62*(($J126-10)^3-($J126-10-$H$63)^3))) -> 0 | AP126: =(AN126-AN127)/AN126 -> 0.02957875325 | AQ126: =AP126+AO126 -> 0.02957875325 | AR126: 68867 | AS126: =AR126*AO126 -> 0
X127: 65.00 | Y127: 47.00 | Z127: 1963.4 | AA127: 254.55 | AB127: 0.019634 | AC127: 0.0025455 | AD127: 81149.33268 | AE127: 0 | AF127: 0 | AG127: 0 | AI127: 0 | AJ127: 0 | AK127: =AK126-AK126*AJ126 -> 100000 | AL127: 0 | AN127: 66830 | AO127: 0 | AP127: 0.03154272034 | AQ127: 0.03154272034 | AR127: =AR126-AR126*AQ126 -> 66830 | AS127: 0
X128: 70.00 | Y128: 52.00 | Z128: 3043.6 | AA128: 341.35 | AB128: 0.030436 | AC128: 0.0034135 | AD128: 73182.90269 | AE128: 0 | AF128: 0 | AG128: 0 | AI128: 0 | AJ128: 0 | AK128: 100000 | AL128: 0 | AN128: 64722 | AO128: 0 | AP128: 0.03386792744 | AQ128: 0.03386792744 | AR128: 64722 | AS128: 0
X129: 75.00 | Y129: 57.00 | Z129: 4701.9 | AA129: 387.95 | AB129: 0.047019 | AC129: 0.0038795 | AD129: 62045.92856 | AE129: 0 | AF129: 0 | AG129: 0 | AI129: 0 | AJ129: 0 | AK129: 100000 | AL129: 0 | AN129: 62530 | AO129: 0 | AP129: 0.03675035983 | AQ129: 0.03675035983 | AR129: 62530 | AS129: 0
X130: 80.00 | Y130: 62.00 | Z130: 7700.85 | AA130: 411.2 | AB130: 0.0770085 | AC130: 0.004112 | AD130: 47459.24098 | AE130: 0 | AF130: 0 | AG130: 0 | AI130: 0 | AJ130: 0 | AK130: 100000 | AL130: 0 | AN130: 60232 | AO130: 0 | AP130: 0.04012817107 | AQ130: 0.04012817107 | AR130: 60232 | AS130: 0
X131: 85.00 | Y131: 67.00 | Z131: 15687 | AA131: 356.25 | AB131: 0.15687 | AC131: 0.0035625 | AD131: 29185.41619 | AE131: 0 | AF131: 0 | AG131: 0 | AI131: 0 | AJ131: 0 | AK131: 100000 | AL131: 0 | AN131: 57815 | AO131: 0 | AP131: 0.04377756638 | AQ131: 0.04377756638 | AR131: 57815 | AS131: 0
AI132: 0 | AJ132: 0 | AK132: 100000 | AL132: 0 | AN132: 55284 | AO132: 0 | AP132: 0.04760871138 | AQ132: 0.04760871138 | AR132: 55284 | AS132: 0
AI133: 0 | AJ133: 0 | AK133: 100000 | AL133: 0 | AN133: 52652 | AO133: 0 | AP133: 0.05183088961 | AQ133: 0.05183088961 | AR133: 52652 | AS133: 0
AG134: =SUM(AG113:AG131)/100000*1000000 -> 0 | AI134: 0 | AJ134: 0 | AK134: 100000 | AL134: 0 | AN134: 49923 | AO134: 0 | AP134: 0.05648698996 | AQ134: 0.05648698996 | AR134: 49923 | AS134: 0
AI135: 0 | AJ135: 0 | AK135: 100000 | AL135: 0 | AN135: 47103 | AO135: 0 | AP135: 0.06156720379 | AQ135: 0.06156720379 | AR135: 47103 | AS135: 0
AI136: 0 | AJ136: 0 | AK136: 100000 | AL136: 0 | AN136: 44203 | AO136: 0 | AP136: 0.06703164944 | AQ136: 0.06703164944 | AR136: 44203 | AS136: 0
AI137: 0 | AJ137: 0 | AK137: 100000 | AL137: 0 | AN137: 41240 | AO137: 0 | AP137: 0.07286614937 | AQ137: 0.07286614937 | AR137: 41240 | AS137: 0
AI138: 0 | AJ138: 0 | AK138: 100000 | AL138: 0 | AN138: 38235 | AO138: 0 | AP138: 0.07901137701 | AQ138: 0.07901137701 | AR138: 38235 | AS138: 0
AI139: 0 | AJ139: 0 | AK139: 100000 | AL139: 0 | AN139: 35214 | AO139: 0 | AP139: 0.08539217357 | AQ139: 0.08539217357 | AR139: 35214 | AS139: 0
AI140: 0 | AJ140: 0 | AK140: 100000 | AL140: 0 | AN140: 32207 | AO140: 0 | AP140: 0.09193653554 | AQ140: 0.09193653554 | AR140: 32207 | AS140: 0
AI141: 0 | AJ141: 0 | AK141: 100000 | AL141: 0 | AN141: 29246 | AO141: 0 | AP141: 0.09850919784 | AQ141: 0.09850919784 | AR141: 29246 | AS141: 0
AI142: 0 | AJ142: 0 | AK142: 100000 | AL142: 0 | AN142: 26365 | AO142: 0 | AP142: 0.1048738858 | AQ142: 0.1048738858 | AR142: 26365 | AS142: 0
AI143: 0 | AJ143: 0 | AK143: 100000 | AL143: 0 | AN143: 23600 | AO143: 0 | AP143: 0.1105932203 | AQ143: 0.1105932203 | AR143: 23600 | AS143: 0
AI144: 0 | AJ144: 0 | AK144: 100000 | AL144: 0 | AN144: 20990 | AO144: 0 | AP144: 0.1149595045 | AQ144: 0.1149595045 | AR144: 20990 | AS144: 0
AI145: 0 | AJ145: 0 | AK145: 100000 | AL145: 0 | AN145: 18577 | AO145: 0 | AP145: 0.1170264305 | AQ145: 0.1170264305 | AR145: 18577 | AS145: 0
AI146: 0 | AJ146: 0 | AK146: 100000 | AL146: 0 | AN146: 16403 | AO146: 0 | AP146: 1 | AQ146: 1 | AR146: 16403 | AS146: 0
AI147: 0 | AJ147: 0 | AK147: 100000 | AL147: 0
AI148: 0 | AJ148: 0 | AK148: 100000 | AL148: 0
AI149: 0 | AJ149: 0 | AK149: 100000 | AL149: 0
AI150: 0 | AJ150: 0 | AK150: 100000 | AL150: 0
AI151: 0 | AJ151: 0 | AK151: 100000 | AL151: 0
AI152: 0 | AJ152: 0 | AK152: 100000 | AL152: 0
AI153: 0 | AJ153: 0 | AK153: 100000 | AL153: 0
AI154: 0 | AJ154: 0 | AK154: 100000 | AL154: 0
AI155: 0 | AJ155: 0 | AK155: 100000 | AL155: 0
AI156: 0 | AJ156: 0 | AK156: 100000 | AL156: 0
AI157: 0 | AJ157: 0 | AK157: 100000 | AL157: 0
AI158: 0 | AJ158: 0 | AK158: 100000 | AL158: 0
AI159: 0 | AJ159: 0 | AK159: 100000 | AL159: 0
AI160: 0 | AJ160: 0 | AK160: 100000 | AL160: 0
AI161: 0 | AJ161: 0 | AK161: 100000 | AL161: 0
AI162: 0 | AJ162: 0 | AK162: 100000 | AL162: 0
AI163: 0 | AJ163: 0 | AK163: 100000 | AL163: 0
AI164: 0 | AJ164: 0 | AK164: 100000 | AL164: 0
AI165: 0 | AJ165: 0 | AK165: 100000 | AL165: 0
AI166: 0 | AJ166: 0 | AK166: 100000 | AL166: 0
AI167: 0 | AJ167: 0 | AK167: 100000 | AL167: 0
AI168: 0 | AJ168: 0 | AK168: 100000 | AL168: 0
AI169: 0 | AJ169: 0 | AK169: 100000 | AL169: 0
AI170: 0 | AJ170: 0 | AK170: 100000 | AL170: 0
AI171: 0 | AJ171: 0 | AK171: 100000 | AL171: 0
AI172: 0 | AJ172: 0 | AK172: 100000 | AL172: 0
AI173: 0 | AJ173: 0 | AK173: 100000 | AL173: 0
AI174: 0 | AJ174: 0 | AK174: 100000 | AL174: 0
AI175: 0 | AJ175: 0 | AK175: 100000 | AL175: 0
AI176: 0 | AJ176: 0 | AK176: 100000 | AL176: 0
AI177: 0 | AJ177: 0 | AK177: 100000 | AL177: 0
AI178: 0 | AJ178: 0 | AK178: 100000 | AL178: 0
AI179: 0 | AJ179: 0 | AK179: 100000 | AL179: 0
AI180: 0 | AJ180: 0 | AK180: 100000 | AL180: 0
AL182: Both genders mesothelioma | AS182: Male mesethelioma 1977
AL183: =SUM(AL61:AL180)/100000*1000000 -> 0 | AS183: =SUM(AS61:AS180)/100000*1000000 -> 0
A187: Hodgson and Darnton, 2000 | B187: Occupational Equivalent, Total Exposure, F/CC Years | C187: Lung Cancer Lifetime Excess Risk, per 1,000000 | D187: Age at Onset Correction Factor | E187: Pleural Mesothelioma Lifetime Excess Risk, per 1,000,000 | F187: Peritoneal Mesothelioma Lifetime Excess Risk, per 1,000,000 | G187: Total Excess Risk, per 1,000,000 | H187: LUNG CANCER RELATIVE RISK
A188: Tremolite | B188: =N54 -> 4.50E+00 | C188: =1.6*(B188^1.3)*54/1000*1000000/100/IF($O$51+$B$18>47,1+($O$51+$B$18-47)*((0.44)^($O$51/10)+0.0063*(3.13)^($O$51/10))/10,1) -> 4228.94 | D188: =10^(1.0787-0.0368*O51) -> 2.61 | E188: =0.13*(B188^0.75)*1000000/100*D188*0.7/EXP(-0.0052565+0.0230034*$B$18-0.002521*$O$51) -> 2739.55 | F188: =0.0006*(B188^2.1)*100000/100*10*D188*0.7/EXP(-0.1027213+0.0465332*$B$18-0.0016009*$O$51) -> 36.23 | G188: =C188+E188+F188 -> 7004.7194150 | H188: =(1.6*(B188^1.3))/100+1 -> 1.11306 | I188: =E188+F188 -> 2775.78
A189: Chrysotile | B189: =N53 -> 2.25E+01 | C189: =0.028*(B189^1.3)*54/1000*1000000/100/IF(O51+B18>47,1+(O51+B18-47)*((0.44)^(O51/10)+0.0063*(3.13)^(O51/10))/10,1) -> 599.70 | D189: =10^(1.0787-0.0368*O51) -> 2.61 | E189: =1.4*0.0047*(B189^0.75)*1000000/100*D189*0.7/EXP(-0.0052565+0.0230034*B18-0.002521*O51) -> 463.65 | F189: =0*(B189^2.1)*100000/100*10*D189*0.7 -> 0.00E+00 | G189: =C189+E189+F189 -> 1063.3448436 | H189: =(0.028*(B189^1.3))/100+1 -> 1.01603 | I189: =E189+F189 -> 463.65
A190: Crocidolite | B190: =N56 -> 2.25E-01 | C190: =1.6*(B190^1.3)*54/1000*1000000/100/IF(O51+B18>47,1+(O51+B18-47)*((0.44)^(O51/10)+0.0063*(3.13)^(O51/10))/10,1) -> 86.08 | D190: =10^(1.0787-0.0368*O51) -> 2.61 | E190: =0.94*(B190^0.75)*1000000/100*D190*0.7/EXP(-0.0052565+0.0230034*B18-0.002521*O51) -> 2094.56 | F190: =0.0022*(B190^2.1)*100000/100*10*D190*0.7/EXP(-0.1027213+0.0465332*B18-0.0016009*O51) -> 0.25 | G190: =C190+E190+F190 -> 2180.8794813 | H190: =(1.6*(B190^1.3))/100+1 -> 1.00230
A191: Amosite | B191: =N58 -> 6.30E-01 | C191: =1.6*(B191^1.3)*54/1000*1000000/100/IF($O$51+$B$18>47,1+($O$51+$B$18-47)*((0.44)^($O$51/10)+0.0063*(3.13)^($O$51/10))/10,1) -> 328.24 | D191: =10^(1.0787-0.0368*O51) -> 2.61 | E191: =0.13*(B191^0.75)*1000000/100*D191*0.7/EXP(-0.0052565+0.0230034*$B$18-0.002521*$O$51) -> 627.01 | F191: =0.0006*(B191^2.1)*100000/100*10*D191*0.7/EXP(-0.1027213+0.0465332*$B$18-0.0016009*$O$51) -> 0.58 | G191: =C191+E191+F191 -> 955.8402025 | H191: =(1.6*(B191^1.3))/100+1 -> 1.00878
A192: Moolgavkar, 2010 for Libby, Montana, Lifetable Method | K192: Male | N192: Female | Q192: Total
G193: Kl | H193: =0.11*10^(-2) -> 0.0011 | K193: Probability of death | M193: LE | N193: Probability of death | O193: Sx (surviving till age x) | P193: LE | Q193: Probability of death | T193: Mesothelioma male | Y193: Lung cancer male | AE193: P | AI193: Mesothelioma both genders | AN193: mesothelioma male 1977 | AP193: Death rate
G194: Km | H194: =0.5*10^(-8) -> 5e-09 | I194: 0 | J194: =I194-$O$51 -> -18 | K194: 0.007379 | L194: 100,000 | M194: 75.38 | N194: 0.006096 | O194: 100,000 | P194: 80.43 | Q194: =(K194+N194)/2 -> 0.0067375 | R194: 100000 | T194: =IF($J194<10,0, IF(AND(OR($J194>10, $J194=10),$J194<10+$H$63),$H$61*$H$62*(($J194-10)^3), $H$61*$H$62*(($J194-10)^3-($J194-10-$H$63)^3))) -> 0 | U194: =K194+T194 -> 0.007379 | V194: =100000 -> 100000 | W194: =V194*T194 -> 0 | Y194: 0.00 | Z194: 799.9 | AA194: 0 | AB194: =Z194/100000 -> 0.007999 | AC194: =AA194/100000 -> 0 | AD194: =100000 -> 100000 | AE194: =IF(Y194<10,0,IF(AND(OR(Y194>10,Y194=10),Y194<10+$H$63),$H$60*$H$62*(Y194-10),$H$60*$H$62*Y194)) -> 0 | AF194: =AC194*AE194 -> 0 | AG194: =AD194*AF194 -> 0 | AI194: =IF(J194<10,0, IF(AND(OR(J194>10, J194=10),J194<10+$H$196),$H$194*$H$195*((J194-10)^3), $H$194*$H$195*((J194-10)^3-(J194-10-$H$196)^3))) -> 0 | AJ194: =Q194+AI194 -> 0.0067375 | AK194: =100000 -> 100000 | AL194: =AK194*AI194 -> 0 | AN194: 100000 | AO194: =IF($J194<10,0, IF(AND(OR($J194>10, $J194=10),$J194<10+$H$63),$H$61*$H$62*(($J194-10)^3), $H$61*$H$62*(($J194-10)^3-($J194-10-$H$63)^3))) -> 0 | AP194: =(AN194-AN195)/AN194 -> 0.01586 | AQ194: =AP194+AO194 -> 0.01586 | AR194: =100000 -> 100000 | AS194: =AR194*AO194 -> 0
G195: f | H195: =M51*2.8 ->  | I195: 1 | J195: =I195-$O$51 -> -17 | K195: 0.000494 | L195: 99,262 | M195: 74.94 | N195: 0.000434 | O195: 99,390 | P195: 79.92 | Q195: =(K195+N195)/2 -> 0.000464 | R195: =R194-Q194*R194 -> 99326.25 | T195: =IF($J195<10,0, IF(AND(OR($J195>10, $J195=10),$J195<10+$H$63),$H$61*$H$62*(($J195-10)^3), $H$61*$H$62*(($J195-10)^3-($J195-10-$H$63)^3))) -> 0 | U195: =K195+T195 -> 0.000494 | V195: =V194-V194*U194 -> 99262.1 | W195: =V195*T195 -> 0 | Y195: 1.00 | Z195: 36.5 | AA195: 0 | AB195: =Z195/100000 -> 0.000365 | AC195: 0 | AD195: =AD194-AB194*AD194*2 -> 98400.2 | AE195: =IF(Y195<10,0,IF(AND(OR(Y195>10,Y195=10),Y195<10+$H$63),$H$60*$H$62*(Y195-10),$H$60*$H$62*Y195)) -> 0 | AF195: =AC195*AE195 -> 0 | AG195: 0 | AI195: =IF(J195<10,0, IF(AND(OR(J195>10, J195=10),J195<10+$H$196),$H$194*$H$195*((J195-10)^3), $H$194*$H$195*((J195-10)^3-(J195-10-$H$196)^3))) -> 0 | AJ195: =Q195+AI195 -> 0.000464 | AK195: =AK194-AK194*AJ194 -> 99326.25 | AL195: =AK195*AI195 -> 0 | AN195: 98414 | AO195: =IF($J195<10,0, IF(AND(OR($J195>10, $J195=10),$J195<10+$H$63),$H$61*$H$62*(($J195-10)^3), $H$61*$H$62*(($J195-10)^3-($J195-10-$H$63)^3))) -> 0 | AP195: =(AN195-AN196)/AN195 -> 0.001036437905 | AQ195: =AP195+AO195 -> 0.001036437905 | AR195: =AR194-AR194*AQ194 -> 98414 | AS195: =AR195*AO195 -> 0
G196: d | H196: =H51 -> 45 | I196: 2 | J196: -16 | K196: 0.000317 | L196: 99,213 | M196: 73.98 | N196: 0.000256 | O196: 99,347 | P196: 78.95 | Q196: 0.0002865 | R196: =R195-Q195*R195 -> 99280.16262 | T196: 0 | U196: 0.000317 | V196: =V195-V195*U195 -> 99213.06452 | W196: 0 | Y196: 5.00 | Z196: 18.3 | AA196: 0 | AB196: 0.000183 | AC196: 0 | AD196: =AD195-AB195*AD195*5 -> 98220.61963 | AE196: 0 | AF196: 0 | AG196: 0 | AI196: 0 | AJ196: 0.0002865 | AK196: =AK195-AK195*AJ195 -> 99280.16262 | AL196: 0 | AN196: 98312 | AO196: 0 | AP196: 0.0008035641631 | AQ196: 0.0008035641631 | AR196: =AR195-AR195*AQ195 -> 98312 | AS196: 0
I197: 3 | J197: -15 | K197: 0.000241 | L197: 99,182 | M197: 73 | N197: 0.000192 | O197: 99,322 | P197: 77.97 | Q197: 0.0002165 | R197: 99251.71885 | T197: 0 | U197: 0.000241 | V197: 99181.61398 | W197: 0 | Y197: 10.00 | Z197: 25 | AA197: 0 | AB197: 0.00025 | AC197: 0 | AD197: =AD196-AB196*AD196*5 -> 98130.74777 | AE197: 0 | AF197: 0 | AG197: 0 | AI197: 0 | AJ197: 0.0002165 | AK197: 99251.71885 | AL197: 0 | AN197: 98233 | AO197: 0 | AP197: 0.0006413323425 | AQ197: 0.0006413323425 | AR197: 98233 | AS197: 0
I198: 4 | J198: -14 | K198: 0.0002 | L198: 99,158 | M198: 72.02 | N198: 0.000148 | O198: 99,303 | P198: 76.99 | Q198: 0.000174 | R198: 99230.23086 | T198: 0 | U198: 0.0002 | V198: 99157.71121 | W198: 0 | Y198: 15.00 | Z198: 94.9 | AA198: 0 | AB198: 0.000949 | AC198: 0 | AD198: 98008.08433 | AE198: 0 | AF198: 0 | AG198: 0 | AI198: 0 | AJ198: 0.000174 | AK198: 99230.23086 | AL198: 0 | AN198: 98170 | AO198: 0 | AP198: 0.0005398798003 | AQ198: 0.0005398798003 | AR198: 98170 | AS198: 0
I199: 5 | J199: -13 | K199: 0.000179 | L199: 99,138 | M199: 71.03 | N199: 0.000136 | O199: 99,288 | P199: 76 | Q199: 0.0001575 | R199: 99212.9648 | T199: 0 | U199: 0.000179 | V199: 99137.87967 | W199: 0 | Y199: 20.00 | Z199: 142 | AA199: 0 | AB199: 0.00142 | AC199: 0 | AD199: 97543.03597 | AE199: 0 | AF199: 0 | AG199: 0 | AI199: 0 | AJ199: 0.0001575 | AK199: 99212.9648 | AL199: 0 | AN199: 98117 | AO199: 0 | AP199: 0.0004892118593 | AQ199: 0.0004892118593 | AR199: 98117 | AS199: 0
I200: 6 | J200: -12 | K200: 0.000166 | L200: 99,120 | M200: 70.04 | N200: 0.000128 | O200: 99,275 | P200: 75.01 | Q200: 0.000147 | R200: 99197.33875 | T200: 0 | U200: 0.000166 | V200: 99120.13399 | W200: 0 | Y200: 25.00 | Z200: 141.9 | AA200: 0.3 | AB200: 0.001419 | AC200: 3e-06 | AD200: 96850.48042 | AE200: 0 | AF200: =AC200*AE200*5 -> 0 | AG200: 0 | AI200: 0 | AJ200: 0.000147 | AK200: 99197.33875 | AL200: 0 | AN200: 98069 | AO200: 0 | AP200: 0.000448663696 | AQ200: 0.000448663696 | AR200: 98069 | AS200: 0
I201: 7 | J201: -11 | K201: 0.000152 | L201: 99,104 | M201: 69.05 | N201: 0.000122 | O201: 99,262 | P201: 74.02 | Q201: 0.000137 | R201: 99182.75675 | T201: 0 | U201: 0.000152 | V201: 99103.68005 | W201: 0 | Y201: 30.00 | Z201: 157.3 | AA201: 0.8 | AB201: 0.001573 | AC201: 8e-06 | AD201: 96163.32626 | AE201: 0 | AF201: 0 | AG201: 0 | AI201: 0 | AJ201: 0.000137 | AK201: 99182.75675 | AL201: 0 | AN201: 98025 | AO201: 0 | AP201: 0.0004182606478 | AQ201: 0.0004182606478 | AR201: 98025 | AS201: 0
G202: Libby Amphibole | H202: =AG267+AL316 ->  | I202: 8 | J202: -10 | K202: 0.000133 | L202: 99,089 | M202: 68.06 | N202: 0.000115 | O202: 99,250 | P202: 73.03 | Q202: 0.000124 | R202: 99169.16871 | T202: 0 | U202: 0.000133 | V202: 99088.61629 | W202: 0 | Y202: 35.00 | Z202: 209.8 | AA202: 3.3 | AB202: 0.002098 | AC202: 3.3e-05 | AD202: 95407.0017 | AE202: 0 | AF202: 0 | AG202: 0 | AI202: 0 | AJ202: 0.000124 | AK202: 99169.16871 | AL202: 0 | AN202: 97984 | AO202: 0 | AP202: 0.0003674069236 | AQ202: 0.0003674069236 | AR202: 97984 | AS202: 0
I203: 9 | J203: -9 | K203: 0.000108 | L203: 99,075 | M203: 67.07 | N203: 0.000106 | O203: 99,238 | P203: 72.04 | Q203: 0.000107 | R203: 99156.87173 | T203: 0 | U203: 0.000108 | V203: 99075.4375 | W203: 0 | Y203: 40.00 | Z203: 303.3 | AA203: 10.4 | AB203: 0.003033 | AC203: 0.000104 | AD203: 94406.18225 | AE203: 0 | AF203: 0 | AG203: 0 | AI203: 0 | AJ203: 0.000107 | AK203: 99156.87173 | AL203: 0 | AN203: 97948 | AO203: 0 | AP203: 0.0003164944665 | AQ203: 0.0003164944665 | AR203: 97948 | AS203: 0
I204: 10 | J204: -8 | K204: 8.9e-05 | L204: 99,065 | M204: 66.08 | N204: 0.0001 | O204: 99,228 | P204: 71.04 | Q204: 9.45e-05 | R204: 99146.26195 | T204: 0 | U204: 8.9e-05 | V204: 99064.73735 | W204: 0 | Y204: 45.00 | Z204: 461.7 | AA204: 26 | AB204: 0.004617 | AC204: 0.00026 | AD204: 92974.5125 | AE204: 0 | AF204: 0 | AG204: 0 | AI204: 0 | AJ204: 9.45e-05 | AK204: 99146.26195 | AL204: 0 | AN204: 97917 | AO204: 0 | AP204: 0.0002757437421 | AQ204: 0.0002757437421 | AR204: 97917 | AS204: 0
I205: 11 | J205: -7 | K205: 9.4e-05 | L205: 99,056 | M205: 65.09 | N205: 0.000102 | O205: 99,218 | P205: 70.05 | Q205: 9.8e-05 | R205: 99136.89262 | T205: 0 | U205: 9.4e-05 | V205: 99055.92059 | W205: 0 | Y205: 50.00 | Z205: 658.3 | AA205: 54.6 | AB205: 0.006583 | AC205: 0.000546 | AD205: 90828.19588 | AE205: 0 | AF205: 0 | AG205: 0 | AI205: 0 | AJ205: 9.8e-05 | AK205: 99136.89262 | AL205: 0 | AN205: 97890 | AO205: 0 | AP205: 0.0002758197977 | AQ205: 0.0002758197977 | AR205: 97890 | AS205: 0
I206: 12 | J206: -6 | K206: 0.000145 | L206: 99,047 | M206: 64.09 | N206: 0.00012 | O206: 99,208 | P206: 69.06 | Q206: 0.0001325 | R206: 99127.17721 | T206: 0 | U206: 0.000145 | V206: 99046.60934 | W206: 0 | Y206: 55.00 | Z206: 1007.5 | AA206: 118 | AB206: 0.010075 | AC206: 0.00118 | AD206: 87838.58581 | AE206: 0 | AF206: 0 | AG206: 0 | AI206: 0 | AJ206: 0.0001325 | AK206: 99127.17721 | AL206: 0 | AN206: 97863 | AO206: 0 | AP206: 0.0003576428272 | AQ206: 0.0003576428272 | AR206: 97863 | AS206: 0
I207: 13 | J207: -5 | K207: 0.000252 | L207: 99,032 | M207: 63.1 | N207: 0.000157 | O207: 99,196 | P207: 68.07 | Q207: 0.0002045 | R207: 99114.04286 | T207: 0 | U207: 0.000252 | V207: 99032.24758 | W207: 0 | Y207: 60.00 | Z207: 1565.5 | AA207: 206.2 | AB207: 0.015655 | AC207: 0.002062 | AD207: 83413.71705 | AE207: 0 | AF207: 0 | AG207: 0 | AI207: 0 | AJ207: 0.0002045 | AK207: 99114.04286 | AL207: 0 | AN207: 97828 | AO207: 0 | AP207: 0.0005315451609 | AQ207: 0.0005315451609 | AR207: 97828 | AS207: 0
I208: 14 | J208: -4 | K208: 0.000401 | L208: 99,007 | M208: 62.12 | N208: 0.000209 | O208: 99,180 | P208: 67.08 | Q208: 0.000305 | R208: 99093.77404 | T208: 0 | U208: 0.000401 | V208: 99007.29145 | W208: 0 | Y208: 65.00 | Z208: 2399.3 | AA208: 327.5 | AB208: 0.023993 | AC208: 0.003275 | AD208: 76884.50835 | AE208: 0 | AF208: 0 | AG208: 0 | AI208: 0 | AJ208: 0.000305 | AK208: 99093.77404 | AL208: 0 | AN208: 97776 | AO208: 0 | AP208: 0.0007772868598 | AQ208: 0.0007772868598 | AR208: 97776 | AS208: 0
I209: 15 | J209: -3 | K209: 0.000563 | L209: 98,968 | M209: 61.14 | N209: 0.000267 | O209: 99,160 | P209: 66.09 | Q209: 0.000415 | R209: 99063.55043 | T209: 0 | U209: 0.000563 | V209: 98967.58953 | W209: 0 | Y209: 70.00 | Z209: 3705.4 | AA209: 444 | AB209: 0.037054 | AC209: 0.00444 | AD209: 67661.0583 | AE209: 0 | AF209: 0 | AG209: 0 | AI209: 0 | AJ209: 0.000415 | AK209: 99063.55043 | AL209: 0 | AN209: 97700 | AO209: 0 | AP209: 0.001044012282 | AQ209: 0.001044012282 | AR209: 97700 | AS209: 0
I210: 16 | J210: -2 | K210: 0.000719 | L210: 98,912 | M210: 60.18 | N210: 0.000323 | O210: 99,133 | P210: 65.11 | Q210: 0.000521 | R210: 99022.43906 | T210: 0 | U210: 0.000719 | V210: 98911.87077 | W210: 0 | Y210: 75.00 | Z210: 5591.2 | AA210: 507.3 | AB210: 0.055912 | AC210: 0.005073 | AD210: 55125.49403 | AE210: 0 | AF210: 0 | AG210: 0 | AI210: 0 | AJ210: 0.000521 | AK210: 99022.43906 | AL210: 0 | AN210: 97598 | AO210: 0 | AP210: 0.001301256173 | AQ210: 0.001301256173 | AR210: 97598 | AS210: 0
I211: 17 | J211: -1 | K211: 0.000873 | L211: 98,841 | M211: 59.22 | N211: 0.000369 | O211: 99,101 | P211: 64.13 | Q211: 0.000621 | R211: 98970.84837 | T211: 0 | U211: 0.000873 | V211: 98840.75314 | W211: 0 | Y211: 80.00 | Z211: 8956.9 | AA211: 549.6 | AB211: 0.089569 | AC211: 0.005496 | AD211: 39714.61092 | AE211: 0 | AF211: 0 | AG211: =AD211*AF211 -> 0 | AI211: 0 | AJ211: 0.000621 | AK211: 98970.84837 | AL211: 0 | AN211: 97471 | AO211: 0 | AP211: 0.001518400345 | AQ211: 0.001518400345 | AR211: 97471 | AS211: 0
I212: 18 | J212: 0 | K212: 0.001017 | L212: 98,754 | M212: 58.27 | N212: 0.000401 | O212: 99,064 | P212: 63.15 | Q212: 0.000709 | R212: 98909.38747 | T212: 0 | U212: 0.001017 | V212: 98754.46516 | W212: 0 | Y212: 85.00 | Z212: 16605.4 | AA212: 499 | AB212: 0.166054 | AC212: 0.00499 | AD212: 21928.62099 | AE212: 0 | AF212: 0 | AG212: 0 | AI212: 0 | AJ212: 0.000709 | AK212: 98909.38747 | AL212: 0 | AN212: 97323 | AO212: 0 | AP212: 0.001685110406 | AQ212: 0.001685110406 | AR212: 97323 | AS212: 0
I213: 19 | J213: 1 | K213: 0.001148 | L213: 98,654 | M213: 57.33 | N213: 0.000422 | O213: 99,025 | P213: 62.18 | Q213: 0.000785 | R213: 98839.26072 | T213: 0 | U213: 0.001148 | V213: 98654.03187 | W213: 0 | AI213: 0 | AJ213: 0.000785 | AK213: 98839.26072 | AL213: 0 | AN213: 97159 | AO213: 0 | AP213: 0.001790878869 | AQ213: 0.001790878869 | AR213: 97159 | AS213: 0
I214: 20 | J214: 2 | K214: 0.001285 | L214: 98,541 | M214: 56.4 | N214: 0.000441 | O214: 98,983 | P214: 61.2 | Q214: 0.000863 | R214: 98761.6719 | T214: 0 | U214: 0.001285 | V214: 98540.77704 | W214: 0 | AI214: 0 | AJ214: 0.000863 | AK214: 98761.6719 | AL214: 0 | AN214: 96985 | AO214: 0 | AP214: 0.001897200598 | AQ214: 0.001897200598 | AR214: 96985 | AS214: 0
I215: 21 | J215: 3 | K215: 0.001412 | L215: 98,414 | M215: 55.47 | N215: 0.000463 | O215: 98,939 | P215: 60.23 | Q215: 0.0009375 | R215: 98676.44058 | T215: 0 | U215: 0.001412 | V215: 98414.15214 | W215: 0 | AG215: =SUM(AG194:AG212)/100000*1000000 -> 0 | AI215: 0 | AJ215: 0.0009375 | AK215: 98676.44058 | AL215: 0 | AN215: 96801 | AO215: 0 | AP215: 0.002004111528 | AQ215: 0.002004111528 | AR215: 96801 | AS215: 0
I216: 22 | J216: 4 | K216: 0.001493 | L216: 98,275 | M216: 54.54 | N216: 0.000483 | O216: 98,894 | P216: 59.26 | Q216: 0.000988 | R216: 98583.93141 | T216: 0 | U216: 0.001493 | V216: 98275.19136 | W216: 0 | AI216: 0 | AJ216: 0.000988 | AK216: 98583.93141 | AL216: 0 | AN216: 96607 | AO216: 0 | AP216: 0.002070243357 | AQ216: 0.002070243357 | AR216: 96607 | AS216: 0
I217: 23 | J217: 5 | K217: 0.001513 | L217: 98,128 | M217: 53.63 | N217: 0.000499 | O217: 98,846 | P217: 58.29 | Q217: 0.001006 | R217: 98486.53049 | T217: 0 | U217: 0.001513 | V217: 98128.4665 | W217: 0 | AI217: 0 | AJ217: 0.001006 | AK217: 98486.53049 | AL217: 0 | AN217: 96407 | AO217: 0 | AP217: 0.002074538156 | AQ217: 0.002074538156 | AR217: 96407 | AS217: 0
I218: 24 | J218: 6 | K218: 0.001487 | L218: 97,980 | M218: 52.71 | N218: 0.000513 | O218: 98,796 | P218: 57.32 | Q218: 0.001 | R218: 98387.45304 | T218: 0 | U218: 0.001487 | V218: 97979.99813 | W218: 0 | AI218: 0 | AJ218: 0.001 | AK218: 98387.45304 | AL218: 0 | AN218: 96207 | AO218: 0 | AP218: 0.002047668049 | AQ218: 0.002047668049 | AR218: 96207 | AS218: 0
I219: 25 | J219: 7 | K219: 0.001446 | L219: 97,834 | M219: 51.78 | N219: 0.000528 | O219: 98,746 | P219: 56.35 | Q219: 0.000987 | R219: 98289.06559 | T219: 0 | U219: 0.001446 | V219: 97834.30187 | W219: 0 | Y219: Lung cancer female | AI219: 0 | AJ219: 0.000987 | AK219: 98289.06559 | AL219: 0 | AN219: 96010 | AO219: 0 | AP219: 0.00201020727 | AQ219: 0.00201020727 | AR219: 96010 | AS219: 0
I220: 26 | J220: 8 | K220: 0.001412 | L220: 97,693 | M220: 50.86 | N220: 0.000544 | O220: 98,694 | P220: 55.38 | Q220: 0.000978 | R220: 98192.05428 | T220: 0 | U220: 0.001412 | V220: 97692.83347 | W220: 0 | AE220: P | AI220: 0 | AJ220: 0.000978 | AK220: 98192.05428 | AL220: 0 | AN220: 95817 | AO220: 0 | AP220: 0.001972510097 | AQ220: 0.001972510097 | AR220: 95817 | AS220: 0
I221: 27 | J221: 9 | K221: 0.001389 | L221: 97,555 | M221: 49.93 | N221: 0.000563 | O221: 98,640 | P221: 54.4 | Q221: 0.000976 | R221: 98096.02245 | T221: 0 | U221: 0.001389 | V221: 97554.89119 | W221: 0 | Y221: 0.00 | Z221: 654.3 | AA221: 0 | AB221: =Z221/100000 -> 0.006543 | AC221: =AA221/100000 -> 0 | AD221: =100000 -> 100000 | AE221: =IF(Y221<10,0,IF(AND(OR(Y221>10,Y221=10),Y221<10+$H$63),$H$60*$H$62*(Y221-10),$H$60*$H$62*Y221)) -> 0 | AF221: =AC221*AE221 -> 0 | AG221: =AD221*AF221 -> 0 | AI221: 0 | AJ221: 0.000976 | AK221: 98096.02245 | AL221: 0 | AN221: 95628 | AO221: 0 | AP221: 0.001924122642 | AQ221: 0.001924122642 | AR221: 95628 | AS221: 0
I222: 28 | J222: 10 | K222: 0.001388 | L222: 97,419 | M222: 49 | N222: 0.000585 | O222: 98,584 | P222: 53.44 | Q222: 0.0009865 | R222: 98000.28073 | T222: 0 | U222: 0.001388 | V222: 97419.38745 | W222: 0 | Y222: 1.00 | Z222: 29.1 | AA222: 0 | AB222: =Z222/100000 -> 0.000291 | AC222: 0 | AD222: =AD221-AB221*AD221*2 -> 98691.4 | AE222: =IF(Y222<10,0,IF(AND(OR(Y222>10,Y222=10),Y222<10+$H$63),$H$60*$H$62*(Y222-10),$H$60*$H$62*Y222)) -> 0 | AF222: =AC222*AE222 -> 0 | AG222: 0 | AK222: 98000.28073 | AN222: 95444 | AO222: 0 | AP222: 0.001896399983 | AQ222: 0.001896399983 | AR222: 95444 | AS222: 0
I223: 29 | J223: 11 | K223: 0.001405 | L223: 97,284 | M223: 48.07 | N223: 0.000612 | O223: 98,527 | P223: 52.47 | Q223: 0.0010085 | R223: 97903.60345 | T223: 0 | U223: 0.001405 | V223: 97284.16934 | W223: 0 | Y223: 5.00 | Z223: 14.5 | AA223: 0 | AB223: 0.000145 | AC223: 0 | AD223: =AD222-AB222*AD222*5 -> 98547.80401 | AE223: 0 | AF223: 0 | AG223: 0 | AN223: 95263 | AO223: 0 | AP223: 0.001879008639 | AQ223: 0.001879008639 | AR223: 95263 | AS223: 0
I224: 30 | J224: 12 | K224: 0.001428 | L224: 97,147 | M224: 47.13 | N224: 0.000642 | O224: 98,466 | P224: 51.5 | Q224: 0.001035 | R224: 97804.86767 | T224: 0 | U224: 0.001428 | V224: 97147.48508 | W224: 0 | Y224: 10.00 | Z224: 16.6 | AA224: 0 | AB224: 0.000166 | AC224: 0 | AD224: =AD223-AB223*AD223*5 -> 98476.35686 | AE224: 0 | AF224: 0 | AG224: 0 | AN224: 95084 | AO224: 0 | AP224: 0.001861511926 | AQ224: 0.001861511926 | AR224: 95084 | AS224: 0
I225: 31 | J225: 13 | K225: 0.001453 | L225: 97,009 | M225: 46.2 | N225: 0.000678 | O225: 98,403 | P225: 50.53 | Q225: 0.0010655 | R225: 97703.63963 | T225: 0 | U225: 0.001453 | V225: 97008.75847 | W225: 0 | Y225: 15.00 | Z225: 40 | AA225: 0 | AB225: 0.0004 | AC225: 0 | AD225: 98394.62148 | AE225: 0 | AF225: 0 | AG225: 0 | AN225: 94907 | AO225: 0 | AP225: 0.001864983616 | AQ225: 0.001864983616 | AR225: 94907 | AS225: 0
I226: 32 | J226: 14 | K226: 0.001487 | L226: 96,868 | M226: 45.27 | N226: 0.000721 | O226: 98,336 | P226: 49.56 | Q226: 0.001104 | R226: 97599.5364 | T226: 0 | U226: 0.001487 | V226: 96867.80475 | W226: 0 | Y226: 20.00 | Z226: 48.2 | AA226: 0 | AB226: 0.000482 | AC226: 0 | AD226: 98197.83224 | AE226: 0 | AF226: 0 | AG226: 0 | AN226: 94730 | AO226: 0 | AP226: 0.001889580914 | AQ226: 0.001889580914 | AR226: 94730 | AS226: 0
I227: 33 | J227: 15 | K227: 0.001529 | L227: 96,724 | M227: 44.33 | N227: 0.000771 | O227: 98,266 | P227: 48.6 | Q227: 0.00115 | R227: 97491.78652 | T227: 0 | U227: 0.001529 | V227: 96723.76232 | W227: 0 | Y227: 25.00 | Z227: 56.5 | AA227: 0 | AB227: 0.000565 | AC227: 0 | AD227: 97961.17546 | AE227: 0 | AF227: 0 | AG227: 0 | AN227: 94551 | AO227: 0 | AP227: 0.001967192309 | AQ227: 0.001967192309 | AR227: 94551 | AS227: 0
I228: 34 | J228: 16 | K228: 0.001584 | L228: 96,576 | M228: 43.4 | N228: 0.00083 | O228: 98,190 | P228: 47.64 | Q228: 0.001207 | R228: 97379.67096 | T228: 0 | U228: 0.001584 | V228: 96575.87169 | W228: 0 | Y228: 30.00 | Z228: 76 | AA228: 0.9 | AB228: 0.00076 | AC228: 9e-06 | AD228: 97684.43514 | AE228: 0 | AF228: =AC228*AE228*5 -> 0 | AG228: 0 | AN228: 94365 | AO228: 0 | AP228: 0.002087638425 | AQ228: 0.002087638425 | AR228: 94365 | AS228: 0
I229: 35 | J229: 17 | K229: 0.001651 | L229: 96,423 | M229: 42.47 | N229: 0.000896 | O229: 98,108 | P229: 46.68 | Q229: 0.0012735 | R229: 97262.1337 | T229: 0 | U229: 0.001651 | V229: 96422.89551 | W229: 0 | Y229: 35.00 | Z229: 115.1 | AA229: 2.6 | AB229: 0.001151 | AC229: 2.6e-05 | AD229: 97313.23429 | AE229: 0 | AF229: 0 | AG229: 0 | AN229: 94168 | AO229: 0 | AP229: 0.00223005692 | AQ229: 0.00223005692 | AR229: 94168 | AS229: 0
I230: 36 | J230: 18 | K230: 0.001737 | L230: 96,264 | M230: 41.54 | N230: 0.000971 | O230: 98,020 | P230: 45.72 | Q230: 0.001354 | R230: 97138.27037 | T230: 0 | U230: 0.001737 | V230: 96263.70131 | W230: 0 | Y230: 40.00 | Z230: 172.2 | AA230: 8.1 | AB230: 0.001722 | AC230: 8.1e-05 | AD230: 96753.19662 | AE230: 0 | AF230: 0 | AG230: 0 | AN230: 93958 | AO230: 0 | AP230: 0.002384043935 | AQ230: 0.002384043935 | AR230: 93958 | AS230: 0
I231: 37 | J231: 19 | K231: 0.001845 | L231: 96,096 | M231: 40.61 | N231: 0.001056 | O231: 97,925 | P231: 44.76 | Q231: 0.0014505 | R231: 97006.74515 | T231: 0 | U231: 0.001845 | V231: 96096.49126 | W231: 0 | Y231: 45.00 | Z231: 254 | AA231: 16.6 | AB231: 0.00254 | AC231: 0.000166 | AD231: 95920.1516 | AE231: 0 | AF231: 0 | AG231: 0 | AN231: 93734 | AO231: 0 | AP231: 0.002571105469 | AQ231: 0.002571105469 | AR231: 93734 | AS231: 0
I232: 38 | J232: 20 | K232: 0.001979 | L232: 95,919 | M232: 39.68 | N232: 0.001153 | O232: 97,822 | P232: 43.81 | Q232: 0.001566 | R232: 96866.03687 | T232: 0 | U232: 0.001979 | V232: 95919.19323 | W232: 0 | Y232: 50.00 | Z232: 386.3 | AA232: 35.1 | AB232: 0.003863 | AC232: 0.000351 | AD232: 94701.96567 | AE232: 0 | AF232: 0 | AG232: 0 | AN232: 93493 | AO232: 0 | AP232: 0.002770260875 | AQ232: 0.002770260875 | AR232: 93493 | AS232: 0
I233: 39 | J233: 21 | K233: 0.00214 | L233: 95,729 | M233: 38.76 | N233: 0.00126 | O233: 97,709 | P233: 42.86 | Q233: 0.0017 | R233: 96714.34465 | T233: 0 | U233: 0.00214 | V233: 95729.36915 | W233: 0 | Y233: 55.00 | Z233: 611.8 | AA233: 70.9 | AB233: 0.006118 | AC233: 0.000709 | AD233: 92872.79721 | AE233: 0 | AF233: 0 | AG233: 0 | AN233: 93234 | AO233: 0 | AP233: 0.002992470558 | AQ233: 0.002992470558 | AR233: 93234 | AS233: 0
I234: 40 | J234: 22 | K234: 0.002323 | L234: 95,525 | M234: 37.84 | N234: 0.001377 | O234: 97,586 | P234: 41.91 | Q234: 0.00185 | R234: 96549.93027 | T234: 0 | U234: 0.002323 | V234: 95524.5083 | W234: 0 | Y234: 60.00 | Z234: 982 | AA234: 122.3 | AB234: 0.00982 | AC234: 0.001223 | AD234: 90031.81834 | AE234: 0 | AF234: 0 | AG234: 0 | AN234: 92955 | AO234: 0 | AP234: 0.003248883869 | AQ234: 0.003248883869 | AR234: 92955 | AS234: 0
... 802 more rows

Sheet Scenario 3
A1: SCENARIO 3. | B1: FIBER-SPECIFIC TEM RESULTS ARE KNOWN
E3: RISK ASSESSMENT RESULTS:
A4: OCCUPATIONAL EXPOSURE DATA:
E5: Total Cancer, per 1,000,000 | G5: Lung Cancer, per 1,000,000 | I5: Mesothelioma, per 1,000,000
A6: Chrysotile | E6: Berman, Crump 2008: | G6: Berman, Crump 2008: | I6: Berman, Crump 2008:
A7: Long Thin (f/cc) (length > 10 µm, width<0.4 µm) | B7: 0.059 | D7: Best estimate: | E7: =G7+I7 -> 720 | G7: =AA53 -> 720 | I7: =0 -> 0
D8: Upper bound: | E8: =I8+G8 -> 2440 | G8: =G7/0.49*1.4 -> 2056 | I8: =Z53 -> 384
A10: Long All Width (f/cc) (length > 10 µm, all width) | B10: 0.1 | D10: Best estimate: | E10: =G10+I10 -> 722 | G10: =AA54 -> 722 | I10: =0 -> 0
D11: Upper bound: | E11: =G11+I11 -> 2085 | G11: =G10/0.29*0.73 -> 1817 | I11: =Z54 -> 268
A12: Amphibole
A13: Long Thin (f/cc) (length > 10 µm, width<0.4 µm) | B13: 0.0013 | D13: Best estimate: | E13: =I13+G13 -> 1016 | G13: =W838 -> 249 | I13: =R838 -> 767
D14: Upper bound: | E14: =G14+I14 -> 2392 | G14: =G13/7.7*26.6 -> 861 | I14: =I13/30.8*61.5 -> 1532
A16: Long All Width (f/cc) (length > 10 µm, all width) | B16: 0.0027 | D16: Best estimate: | E16: =I16+G16 -> 895 | G16: =W968 -> 181 | I16: =R968 -> 714
D17: Upper bound: | E17: =G17+I17 -> 2026 | G17: =G16/2.7*9.9 -> 665 | I17: =I16/13.8*26.3 -> 1360
A18: Duration (years) | B18: 30
A20: Onset age (years) | B20: 18
A22: Exposure duration during the shift (hours) | B22: 8
A24: Shift duration (hour) | B24: 8
A25: Protection factor | B25: 1
A43: EPA, IRIS Method (Current USEPA Asbestos Risk Assessment Method)
I44: Duration of exposure | N44: Average PCME Receptor Asbestos Concentration Exposure, Ambient Equivalent (f/cc) | O44: Total Lifetime Exposure (f/cc years, work place equivalent) | P44: Onset time, years | Q44: K1, coefficient for UNIT risk calculation | R44: K2, coefficient for UNIT risk calculation | S44: Unit Risk (EPA, duraion and onset time adjusted) | T44: Excess Lifetime Cancer Risk (ELCR) (Cases per million) | V44: Lung cancer potency factor, Kl | W44: Mesothelioma potency factor, Km | Y44: Excess Lifetime Cancer Risk (ELCR) (Cases per million) | Z44: Excess Lifetime Mesothelioma Risk (cases per million) | AA44: Excess Lifetime Lung Cancer Risk (Cases per million) | AC44: Calculated Unit Risk
P45: Range
P47: Lower
P49: Upper
H51: =#REF!*(B22/B24)/B25 ->  | I51: =B18 -> 30 | J51: =1 -> 1 | K51: =1-J51 -> 0 | L51: 100% | M51: =L51*K51+J51 -> 100% | N51: =H51*M51/2.8*B24/8 ->  | O51: =I51*N51*2.8 ->  | P51: =B20 -> 18 | Q51: =-0.0176401+0.2492567*EXP(-P51/24.7806941) -> 0.103 | R51: =0.0415839+0.0039973*EXP(P51/-18.2212632) -> 0.043 | S51: =Q51*(1-EXP(-1*R51*I51)) -> 0.075 | T51: =N51*S51*1000000 ->  | U51: Total: | V51: =1*10^-2 -> 0.01 | W51: =1*10^-8 -> 1e-08 | Y51: =R452+W452 ->  | Z51: =R452 ->  | AA51: =W452 ->  | AC51: =Y51/N51/1000000 -> 
H52: including: | N52: including:
G53: TWA Asbestos Concentration (f/cc) (PCME, chrysotile): | H53: =B7*B22/B24/B25 -> 0.059 | M53: Average PCME Chrysotile Receptor Asbestos Concentration Exposure (f/cc) | N53: =H53*(M51/2.8)*B24/8 -> 0.02107142857 | O53: =I51*N53*2.8 -> 1.77E+00 | R53: " | S53: " | U53: Chrysotile: | V53: =0.49*10^-2 -> 0.0049 | W53: =0*10^-8 -> 0 | Y53: =Z53+AA53 -> 1103.90083 | Z53: =R581 -> 384.2897212 | AA53: =W581 -> 719.6111092
G54: TWA Asbestos Concentration (f/cc) (PCME, tremolite-actinolite) | H54: =B10*B22/B24/B25 -> 0.1 | M54: Average PCME Tremolite-Actinolite Receptor Asbestos Concentration Exposure (f/cc) | N54: =H54*M51/2.8*B24/8 -> 0.03571428571 | O54: =I51*N54*2.8 -> 3.00E+00 | U54: Tremolite-Actinolite (as amosite for mesothelioma): | V54: =0.29*10^-2 -> 0.0029 | W54: =0*10^-8 -> 0 | Y54: =Z54+AA54 -> 990.0495477 | Z54: =R710 -> 268.1982102 | AA54: =W710 -> 721.8513375
G56: TWA Asbestos Concentration (f/cc) (PCME, tremolite-actinolite) | H56: =B13*$B$22/$B$24/$B$25 -> 0.001300 | M56: Average PCME Crocidolite Receptor Asbestos concentration Exposure (f/cc) | N56: =H56*$M$51/2.8*$B$24/8 -> 0.0004642857143 | O56: =$I$51*N56*2.8 -> 3.90E-02 | T56: Crocidolite | V56: =7.7*10^-2 -> 0.077 | W56: =30.8*10^-8 -> 3.08e-07
T57: Amosite | V57: =13.8*10^-2 -> 0.138 | W57: =2.7*10^-8 -> 2.7e-08
G58: TWA Asbestos Concentration (f/cc), (PCME, amosite) | H58: =B16*$B$22/$B$24/$B$25 -> 0.002700 | M58: Amosite | N58: =H58*$M$51/2.8*$B$24/8 -> 0.0009642857143 | O58: =I51*N58*2.8 -> 0.081
Z60: Lung cancer male | AF60: P | AJ60: Mesothelioma both genders | AO60: mesothelioma male 1977 | AQ60: Death rate
Z61: 0.00 | AA61: 799.9 | AB61: 0 | AC61: =AA61/100000 -> 0.007999 | AD61: =AB61/100000 -> 0 | AE61: =100000 -> 100000 | AF61: =IF(Z61<10,0,IF(AND(OR(Z61>10,Z61=10),Z61<10+$I$63),$I$60*$I$62*(Z61-10),$I$60*$I$62*Z61)) -> 0 | AG61: =AD61*AF61 -> 0 | AH61: =AE61*AG61 -> 0 | AJ61: =IF(K61<10,0, IF(AND(OR(K61>10, K61=10),K61<10+$I$63),$I$61*$I$62*((K61-10)^3), $I$61*$I$62*((K61-10)^3-(K61-10-$I$63)^3))) -> 0 | AK61: =R61+AJ61 -> 0 | AL61: =100000 -> 100000 | AM61: =AL61*AJ61 -> 0 | AO61: 100000 | AP61: =IF($K61<10,0, IF(AND(OR($K61>10, $K61=10),$K61<10+$I$63),$I$61*$I$62*(($K61-10)^3), $I$61*$I$62*(($K61-10)^3-($K61-10-$I$63)^3))) -> 0 | AQ61: =(AO61-AO62)/AO61 -> 0.01586 | AR61: =AQ61+AP61 -> 0.01586 | AS61: =100000 -> 100000 | AT61: =AS61*AP61 -> 0
Z62: 1.00 | AA62: 36.5 | AB62: 0 | AC62: =AA62/100000 -> 0.000365 | AD62: 0 | AE62: =AE61-AC61*AE61*2 -> 98400.2 | AF62: =IF(Z62<10,0,IF(AND(OR(Z62>10,Z62=10),Z62<10+$I$63),$I$60*$I$62*(Z62-10),$I$60*$I$62*Z62)) -> 0 | AG62: =AD62*AF62 -> 0 | AH62: 0 | AJ62: =IF(K62<10,0, IF(AND(OR(K62>10, K62=10),K62<10+$I$63),$I$61*$I$62*((K62-10)^3), $I$61*$I$62*((K62-10)^3-(K62-10-$I$63)^3))) -> 0 | AK62: =R62+AJ62 -> 0 | AL62: =AL61-AL61*AK61 -> 100000 | AM62: =AL62*AJ62 -> 0 | AO62: 98414 | AP62: =IF($K62<10,0, IF(AND(OR($K62>10, $K62=10),$K62<10+$I$63),$I$61*$I$62*(($K62-10)^3), $I$61*$I$62*(($K62-10)^3-($K62-10-$I$63)^3))) -> 0 | AQ62: =(AO62-AO63)/AO62 -> 0.001036437905 | AR62: =AQ62+AP62 -> 0.001036437905 | AS62: =AS61-AS61*AR61 -> 98414 | AT62: =AS62*AP62 -> 0
Z63: 5.00 | AA63: 18.3 | AB63: 0 | AC63: 0.000183 | AD63: 0 | AE63: =AE62-AC62*AE62*5 -> 98220.61963 | AF63: 0 | AG63: 0 | AH63: 0 | AJ63: 0 | AK63: 0 | AL63: =AL62-AL62*AK62 -> 100000 | AM63: 0 | AO63: 98312 | AP63: 0 | AQ63: 0.0008035641631 | AR63: 0.0008035641631 | AS63: =AS62-AS62*AR62 -> 98312 | AT63: 0
Z64: 10.00 | AA64: 25 | AB64: 0 | AC64: 0.00025 | AD64: 0 | AE64: =AE63-AC63*AE63*5 -> 98130.74777 | AF64: 0 | AG64: 0 | AH64: 0 | AJ64: 0 | AK64: 0 | AL64: 100000 | AM64: 0 | AO64: 98233 | AP64: 0 | AQ64: 0.0006413323425 | AR64: 0.0006413323425 | AS64: 98233 | AT64: 0
Z65: 15.00 | AA65: 94.9 | AB65: 0 | AC65: 0.000949 | AD65: 0 | AE65: 98008.08433 | AF65: 0 | AG65: 0 | AH65: 0 | AJ65: 0 | AK65: 0 | AL65: 100000 | AM65: 0 | AO65: 98170 | AP65: 0 | AQ65: 0.0005398798003 | AR65: 0.0005398798003 | AS65: 98170 | AT65: 0
Z66: 20.00 | AA66: 142 | AB66: 0 | AC66: 0.00142 | AD66: 0 | AE66: 97543.03597 | AF66: 0 | AG66: 0 | AH66: 0 | AJ66: 0 | AK66: 0 | AL66: 100000 | AM66: 0 | AO66: 98117 | AP66: 0 | AQ66: 0.0004892118593 | AR66: 0.0004892118593 | AS66: 98117 | AT66: 0
Z67: 25.00 | AA67: 141.9 | AB67: 0.3 | AC67: 0.001419 | AD67: 3e-06 | AE67: 96850.48042 | AF67: 0 | AG67: =AD67*AF67*5 -> 0 | AH67: 0 | AJ67: 0 | AK67: 0 | AL67: 100000 | AM67: 0 | AO67: 98069 | AP67: 0 | AQ67: 0.000448663696 | AR67: 0.000448663696 | AS67: 98069 | AT67: 0
Z68: 30.00 | AA68: 157.3 | AB68: 0.8 | AC68: 0.001573 | AD68: 8e-06 | AE68: 96163.32626 | AF68: 0 | AG68: 0 | AH68: 0 | AJ68: 0 | AK68: 0 | AL68: 100000 | AM68: 0 | AO68: 98025 | AP68: 0 | AQ68: 0.0004182606478 | AR68: 0.0004182606478 | AS68: 98025 | AT68: 0
Z69: 35.00 | AA69: 209.8 | AB69: 3.3 | AC69: 0.002098 | AD69: 3.3e-05 | AE69: 95407.0017 | AF69: 0 | AG69: 0 | AH69: 0 | AJ69: 0 | AK69: 0 | AL69: 100000 | AM69: 0 | AO69: 97984 | AP69: 0 | AQ69: 0.0003674069236 | AR69: 0.0003674069236 | AS69: 97984 | AT69: 0
Z70: 40.00 | AA70: 303.3 | AB70: 10.4 | AC70: 0.003033 | AD70: 0.000104 | AE70: 94406.18225 | AF70: 0 | AG70: 0 | AH70: 0 | AJ70: 0 | AK70: 0 | AL70: 100000 | AM70: 0 | AO70: 97948 | AP70: 0 | AQ70: 0.0003164944665 | AR70: 0.0003164944665 | AS70: 97948 | AT70: 0
Z71: 45.00 | AA71: 461.7 | AB71: 26 | AC71: 0.004617 | AD71: 0.00026 | AE71: 92974.5125 | AF71: 0 | AG71: 0 | AH71: 0 | AJ71: 0 | AK71: 0 | AL71: 100000 | AM71: 0 | AO71: 97917 | AP71: 0 | AQ71: 0.0002757437421 | AR71: 0.0002757437421 | AS71: 97917 | AT71: 0
Z72: 50.00 | AA72: 658.3 | AB72: 54.6 | AC72: 0.006583 | AD72: 0.000546 | AE72: 90828.19588 | AF72: 0 | AG72: 0 | AH72: 0 | AJ72: 0 | AK72: 0 | AL72: 100000 | AM72: 0 | AO72: 97890 | AP72: 0 | AQ72: 0.0002758197977 | AR72: 0.0002758197977 | AS72: 97890 | AT72: 0
Z73: 55.00 | AA73: 1007.5 | AB73: 118 | AC73: 0.010075 | AD73: 0.00118 | AE73: 87838.58581 | AF73: 0 | AG73: 0 | AH73: 0 | AJ73: 0 | AK73: 0 | AL73: 100000 | AM73: 0 | AO73: 97863 | AP73: 0 | AQ73: 0.0003576428272 | AR73: 0.0003576428272 | AS73: 97863 | AT73: 0
Z74: 60.00 | AA74: 1565.5 | AB74: 206.2 | AC74: 0.015655 | AD74: 0.002062 | AE74: 83413.71705 | AF74: 0 | AG74: 0 | AH74: 0 | AJ74: 0 | AK74: 0 | AL74: 100000 | AM74: 0 | AO74: 97828 | AP74: 0 | AQ74: 0.0005315451609 | AR74: 0.0005315451609 | AS74: 97828 | AT74: 0
Z75: 65.00 | AA75: 2399.3 | AB75: 327.5 | AC75: 0.023993 | AD75: 0.003275 | AE75: 76884.50835 | AF75: 0 | AG75: 0 | AH75: 0 | AJ75: 0 | AK75: 0 | AL75: 100000 | AM75: 0 | AO75: 97776 | AP75: 0 | AQ75: 0.0007772868598 | AR75: 0.0007772868598 | AS75: 97776 | AT75: 0
Z76: 70.00 | AA76: 3705.4 | AB76: 444 | AC76: 0.037054 | AD76: 0.00444 | AE76: 67661.0583 | AF76: 0 | AG76: 0 | AH76: 0 | AJ76: 0 | AK76: 0 | AL76: 100000 | AM76: 0 | AO76: 97700 | AP76: 0 | AQ76: 0.001044012282 | AR76: 0.001044012282 | AS76: 97700 | AT76: 0
Z77: 75.00 | AA77: 5591.2 | AB77: 507.3 | AC77: 0.055912 | AD77: 0.005073 | AE77: 55125.49403 | AF77: 0 | AG77: 0 | AH77: 0 | AJ77: 0 | AK77: 0 | AL77: 100000 | AM77: 0 | AO77: 97598 | AP77: 0 | AQ77: 0.001301256173 | AR77: 0.001301256173 | AS77: 97598 | AT77: 0
Z78: 80.00 | AA78: 8956.9 | AB78: 549.6 | AC78: 0.089569 | AD78: 0.005496 | AE78: 39714.61092 | AF78: 0 | AG78: 0 | AH78: 0 | AJ78: 0 | AK78: 0 | AL78: 100000 | AM78: 0 | AO78: 97471 | AP78: 0 | AQ78: 0.001518400345 | AR78: 0.001518400345 | AS78: 97471 | AT78: 0
Z79: 85.00 | AA79: 16605.4 | AB79: 499 | AC79: 0.166054 | AD79: 0.00499 | AE79: 21928.62099 | AF79: 0 | AG79: 0 | AH79: 0 | AJ79: 0 | AK79: 0 | AL79: 100000 | AM79: 0 | AO79: 97323 | AP79: 0 | AQ79: 0.001685110406 | AR79: 0.001685110406 | AS79: 97323 | AT79: 0
AJ80: 0 | AK80: 0 | AL80: 100000 | AM80: 0 | AO80: 97159 | AP80: 0 | AQ80: 0.001790878869 | AR80: 0.001790878869 | AS80: 97159 | AT80: 0
AJ81: 0 | AK81: 0 | AL81: 100000 | AM81: 0 | AO81: 96985 | AP81: 0 | AQ81: 0.001897200598 | AR81: 0.001897200598 | AS81: 96985 | AT81: 0
AH82: =SUM(AH61:AH79)/100000*1000000 -> 0 | AJ82: 0 | AK82: 0 | AL82: 100000 | AM82: 0 | AO82: 96801 | AP82: 0 | AQ82: 0.002004111528 | AR82: 0.002004111528 | AS82: 96801 | AT82: 0
AJ83: 0 | AK83: 0 | AL83: 100000 | AM83: 0 | AO83: 96607 | AP83: 0 | AQ83: 0.002070243357 | AR83: 0.002070243357 | AS83: 96607 | AT83: 0
AJ84: 0 | AK84: 0 | AL84: 100000 | AM84: 0 | AO84: 96407 | AP84: 0 | AQ84: 0.002074538156 | AR84: 0.002074538156 | AS84: 96407 | AT84: 0
AJ85: 0 | AK85: 0 | AL85: 100000 | AM85: 0 | AO85: 96207 | AP85: 0 | AQ85: 0.002047668049 | AR85: 0.002047668049 | AS85: 96207 | AT85: 0
Z86: Lung cancer female | AJ86: 0 | AK86: 0 | AL86: 100000 | AM86: 0 | AO86: 96010 | AP86: 0 | AQ86: 0.00201020727 | AR86: 0.00201020727 | AS86: 96010 | AT86: 0
AF87: P | AJ87: 0 | AK87: 0 | AL87: 100000 | AM87: 0 | AO87: 95817 | AP87: 0 | AQ87: 0.001972510097 | AR87: 0.001972510097 | AS87: 95817 | AT87: 0
Z88: 0.00 | AA88: 654.3 | AB88: 0 | AC88: =AA88/100000 -> 0.006543 | AD88: =AB88/100000 -> 0 | AE88: =100000 -> 100000 | AF88: =IF(Z88<10,0,IF(AND(OR(Z88>10,Z88=10),Z88<10+$I$63),$I$60*$I$62*(Z88-10),$I$60*$I$62*Z88)) -> 0 | AG88: =AD88*AF88 -> 0 | AH88: =AE88*AG88 -> 0 | AJ88: 0 | AK88: 0 | AL88: 100000 | AM88: 0 | AO88: 95628 | AP88: 0 | AQ88: 0.001924122642 | AR88: 0.001924122642 | AS88: 95628 | AT88: 0
Z89: 1.00 | AA89: 29.1 | AB89: 0 | AC89: =AA89/100000 -> 0.000291 | AD89: 0 | AE89: =AE88-AC88*AE88*2 -> 98691.4 | AF89: =IF(Z89<10,0,IF(AND(OR(Z89>10,Z89=10),Z89<10+$I$63),$I$60*$I$62*(Z89-10),$I$60*$I$62*Z89)) -> 0 | AG89: =AD89*AF89 -> 0 | AH89: 0 | AJ89: 0 | AK89: 0 | AL89: 100000 | AM89: 0 | AO89: 95444 | AP89: 0 | AQ89: 0.001896399983 | AR89: 0.001896399983 | AS89: 95444 | AT89: 0
Z90: 5.00 | AA90: 14.5 | AB90: 0 | AC90: 0.000145 | AD90: 0 | AE90: =AE89-AC89*AE89*5 -> 98547.80401 | AF90: 0 | AG90: 0 | AH90: 0 | AJ90: 0 | AK90: 0 | AL90: 100000 | AM90: 0 | AO90: 95263 | AP90: 0 | AQ90: 0.001879008639 | AR90: 0.001879008639 | AS90: 95263 | AT90: 0
Z91: 10.00 | AA91: 16.6 | AB91: 0 | AC91: 0.000166 | AD91: 0 | AE91: =AE90-AC90*AE90*5 -> 98476.35686 | AF91: 0 | AG91: 0 | AH91: 0 | AJ91: 0 | AK91: 0 | AL91: 100000 | AM91: 0 | AO91: 95084 | AP91: 0 | AQ91: 0.001861511926 | AR91: 0.001861511926 | AS91: 95084 | AT91: 0
Z92: 15.00 | AA92: 40 | AB92: 0 | AC92: 0.0004 | AD92: 0 | AE92: 98394.62148 | AF92: 0 | AG92: 0 | AH92: 0 | AJ92: 0 | AK92: 0 | AL92: 100000 | AM92: 0 | AO92: 94907 | AP92: 0 | AQ92: 0.001864983616 | AR92: 0.001864983616 | AS92: 94907 | AT92: 0
Z93: 20.00 | AA93: 48.2 | AB93: 0 | AC93: 0.000482 | AD93: 0 | AE93: 98197.83224 | AF93: 0 | AG93: 0 | AH93: 0 | AJ93: 0 | AK93: 0 | AL93: 100000 | AM93: 0 | AO93: 94730 | AP93: 0 | AQ93: 0.001889580914 | AR93: 0.001889580914 | AS93: 94730 | AT93: 0
Z94: 25.00 | AA94: 56.5 | AB94: 0 | AC94: 0.000565 | AD94: 0 | AE94: 97961.17546 | AF94: 0 | AG94: 0 | AH94: 0 | AJ94: 0 | AK94: 0 | AL94: 100000 | AM94: 0 | AO94: 94551 | AP94: 0 | AQ94: 0.001967192309 | AR94: 0.001967192309 | AS94: 94551 | AT94: 0
Z95: 30.00 | AA95: 76 | AB95: 0.9 | AC95: 0.00076 | AD95: 9e-06 | AE95: 97684.43514 | AF95: 0 | AG95: =AD95*AF95*5 -> 0 | AH95: 0 | AJ95: 0 | AK95: 0 | AL95: 100000 | AM95: 0 | AO95: 94365 | AP95: 0 | AQ95: 0.002087638425 | AR95: 0.002087638425 | AS95: 94365 | AT95: 0
Z96: 35.00 | AA96: 115.1 | AB96: 2.6 | AC96: 0.001151 | AD96: 2.6e-05 | AE96: 97313.23429 | AF96: 0 | AG96: 0 | AH96: 0 | AJ96: 0 | AK96: 0 | AL96: 100000 | AM96: 0 | AO96: 94168 | AP96: 0 | AQ96: 0.00223005692 | AR96: 0.00223005692 | AS96: 94168 | AT96: 0
Z97: 40.00 | AA97: 172.2 | AB97: 8.1 | AC97: 0.001722 | AD97: 8.1e-05 | AE97: 96753.19662 | AF97: 0 | AG97: 0 | AH97: 0 | AJ97: 0 | AK97: 0 | AL97: 100000 | AM97: 0 | AO97: 93958 | AP97: 0 | AQ97: 0.002384043935 | AR97: 0.002384043935 | AS97: 93958 | AT97: 0
Z98: 45.00 | AA98: 254 | AB98: 16.6 | AC98: 0.00254 | AD98: 0.000166 | AE98: 95920.1516 | AF98: 0 | AG98: 0 | AH98: 0 | AJ98: 0 | AK98: 0 | AL98: 100000 | AM98: 0 | AO98: 93734 | AP98: 0 | AQ98: 0.002571105469 | AR98: 0.002571105469 | AS98: 93734 | AT98: 0
Z99: 50.00 | AA99: 386.3 | AB99: 35.1 | AC99: 0.003863 | AD99: 0.000351 | AE99: 94701.96567 | AF99: 0 | AG99: 0 | AH99: 0 | AJ99: 0 | AK99: 0 | AL99: 100000 | AM99: 0 | AO99: 93493 | AP99: 0 | AQ99: 0.002770260875 | AR99: 0.002770260875 | AS99: 93493 | AT99: 0
Z100: 55.00 | AA100: 611.8 | AB100: 70.9 | AC100: 0.006118 | AD100: 0.000709 | AE100: 92872.79721 | AF100: 0 | AG100: 0 | AH100: 0 | AJ100: 0 | AK100: 0 | AL100: 100000 | AM100: 0 | AO100: 93234 | AP100: 0 | AQ100: 0.002992470558 | AR100: 0.002992470558 | AS100: 93234 | AT100: 0
Z101: 60.00 | AA101: 982 | AB101: 122.3 | AC101: 0.00982 | AD101: 0.001223 | AE101: 90031.81834 | AF101: 0 | AG101: 0 | AH101: 0 | AJ101: 0 | AK101: 0 | AL101: 100000 | AM101: 0 | AO101: 92955 | AP101: 0 | AQ101: 0.003248883869 | AR101: 0.003248883869 | AS101: 92955 | AT101: 0
Z102: 65.00 | AA102: 1527.5 | AB102: 181.6 | AC102: 0.015275 | AD102: 0.001816 | AE102: 85611.25606 | AF102: 0 | AG102: 0 | AH102: 0 | AJ102: 0 | AK102: 0 | AL102: 100000 | AM102: 0 | AO102: 92653 | AP102: 0 | AQ102: 0.003550883404 | AR102: 0.003550883404 | AS102: 92653 | AT102: 0
Z103: 70.00 | AA103: 2381.8 | AB103: 238.7 | AC103: 0.023818 | AD103: 0.002387 | AE103: 79072.69638 | AF103: 0 | AG103: 0 | AH103: 0 | AJ103: 0 | AK103: 0 | AL103: 100000 | AM103: 0 | AO103: 92324 | AP103: 0 | AQ103: 0.003877648282 | AR103: 0.003877648282 | AS103: 92324 | AT103: 0
Z104: 75.00 | AA104: 3812.6 | AB104: 268.6 | AC104: 0.038126 | AD104: 0.002686 | AE104: 69655.92897 | AF104: 0 | AG104: 0 | AH104: 0 | AJ104: 0 | AK104: 0 | AL104: 100000 | AM104: 0 | AO104: 91966 | AP104: 0 | AQ104: 0.004251571233 | AR104: 0.004251571233 | AS104: 91966 | AT104: 0
Z105: 80.00 | AA105: 6444.8 | AB105: 272.8 | AC105: 0.064448 | AD105: 0.002728 | AE105: 56377.41923 | AF105: 0 | AG105: 0 | AH105: 0 | AJ105: 0 | AK105: 0 | AL105: 100000 | AM105: 0 | AO105: 91575 | AP105: 0 | AQ105: 0.004673764674 | AR105: 0.004673764674 | AS105: 91575 | AT105: 0
Z106: 85.00 | AA106: 14768.6 | AB106: 213.5 | AC106: 0.147686 | AD106: 0.002135 | AE106: 38210.35966 | AF106: 0 | AG106: 0 | AH106: 0 | AJ106: 0 | AK106: 0 | AL106: 100000 | AM106: 0 | AO106: 91147 | AP106: 0 | AQ106: 0.005123591561 | AR106: 0.005123591561 | AS106: 91147 | AT106: 0
AJ107: 0 | AK107: 0 | AL107: 100000 | AM107: 0 | AO107: 90680 | AP107: 0 | AQ107: 0.005624172916 | AR107: 0.005624172916 | AS107: 90680 | AT107: 0
AJ108: 0 | AK108: 0 | AL108: 100000 | AM108: 0 | AO108: 90170 | AP108: 0 | AQ108: 0.006177220805 | AR108: 0.006177220805 | AS108: 90170 | AT108: 0
AH109: =SUM(AH88:AH106)/100000*1000000 -> 0 | AJ109: 0 | AK109: 0 | AL109: 100000 | AM109: 0 | AO109: 89613 | AP109: 0 | AQ109: 0.00681820718 | AR109: 0.00681820718 | AS109: 89613 | AT109: 0
AJ110: 0 | AK110: 0 | AL110: 100000 | AM110: 0 | AO110: 89002 | AP110: 0 | AQ110: 0.007505449316 | AR110: 0.007505449316 | AS110: 89002 | AT110: 0
Z111: Lung cancer both genders | AJ111: 0 | AK111: 0 | AL111: 100000 | AM111: 0 | AO111: 88334 | AP111: 0 | AQ111: 0.008275409242 | AR111: 0.008275409242 | AS111: 88334 | AT111: 0
AA112: Total death/100,000 | AB112: Lung cancer, per 100,000 | AF112: P | AJ112: 0 | AK112: 0 | AL112: 100000 | AM112: 0 | AO112: 87603 | AP112: 0 | AQ112: 0.00910927708 | AR112: 0.00910927708 | AS112: 87603 | AT112: 0
Y113: 0.00 | Z113: =Y113-$P$51 -> -18.00 | AA113: =(AA61+AA88)/2 -> 727.1 | AB113: =(AB61+AB88)/2 -> 0 | AC113: =AA113/100000 -> 0.007271 | AD113: =AB113/100000 -> 0 | AE113: =100000 -> 100000 | AF113: =IF(Z113<10,0,IF(AND(OR(Z113>10,Z113=10),Z113<10+$I$63),$I$60*$I$62*(Z113-10),$I$60*$I$62*Z113)) -> 0 | AG113: =AD113*AF113 -> 0 | AH113: =AE113*AG113 -> 0 | AJ113: 0 | AK113: 0 | AL113: 100000 | AM113: 0 | AO113: 86805 | AP113: 0 | AQ113: 0.009953343701 | AR113: 0.009953343701 | AS113: 86805 | AT113: 0
Y114: 1.00 | Z114: =Y114-$P$51 -> -17.00 | AA114: =(AA62+AA89)/2 -> 32.8 | AB114: 0 | AC114: =AA114/100000 -> 0.000328 | AD114: 0 | AE114: =AE113-AC113*AE113*2 -> 98545.8 | AF114: =IF(Z114<10,0,IF(AND(OR(Z114>10,Z114=10),Z114<10+$I$63),$I$60*$I$62*(Z114-10),$I$60*$I$62*Z114)) -> 0 | AG114: =AD114*AF114 -> 0 | AH114: 0 | AJ114: 0 | AK114: 0 | AL114: 100000 | AM114: 0 | AO114: 85941 | AP114: 0 | AQ114: 0.01080974157 | AR114: 0.01080974157 | AS114: 85941 | AT114: 0
Y115: 5.00 | Z115: -13.00 | AA115: 16.4 | AB115: 0 | AC115: 0.000164 | AD115: 0 | AE115: =AE114-AC114*AE114*5 -> 98384.18489 | AF115: 0 | AG115: 0 | AH115: 0 | AJ115: 0 | AK115: 0 | AL115: 100000 | AM115: 0 | AO115: 85012 | AP115: 0 | AQ115: 0.01171599304 | AR115: 0.01171599304 | AS115: 85012 | AT115: 0
Y116: 10.00 | Z116: -8.00 | AA116: 20.8 | AB116: 0 | AC116: 0.000208 | AD116: 0 | AE116: =AE115-AC115*AE115*5 -> 98303.50986 | AF116: 0 | AG116: 0 | AH116: 0 | AJ116: 0 | AK116: 0 | AL116: 100000 | AM116: 0 | AO116: 84016 | AP116: 0 | AQ116: 0.01264044944 | AR116: 0.01264044944 | AS116: 84016 | AT116: 0
Y117: 15.00 | Z117: -3.00 | AA117: 67.45 | AB117: 0 | AC117: 0.0006745 | AD117: 0 | AE117: 98201.27421 | AF117: 0 | AG117: 0 | AH117: 0 | AJ117: 0 | AK117: 0 | AL117: 100000 | AM117: 0 | AO117: 82954 | AP117: 0 | AQ117: 0.013658172 | AR117: 0.013658172 | AS117: 82954 | AT117: 0
Y118: 20.00 | Z118: 2.00 | AA118: 95.1 | AB118: 0 | AC118: 0.000951 | AD118: 0 | AE118: 97870.09041 | AF118: 0 | AG118: 0 | AH118: 0 | AJ118: 0 | AK118: 0 | AL118: 100000 | AM118: 0 | AO118: 81821 | AP118: 0 | AQ118: 0.01491059752 | AR118: 0.01491059752 | AS118: 81821 | AT118: 0
Y119: 25.00 | Z119: 7.00 | AA119: 99.2 | AB119: 0.15 | AC119: 0.000992 | AD119: 1.5e-06 | AE119: 97404.71813 | AF119: 0 | AG119: =AD119*AF119*5 -> 0 | AH119: 0 | AJ119: 0 | AK119: 0 | AL119: 100000 | AM119: 0 | AO119: 80601 | AP119: 0 | AQ119: 0.01646381559 | AR119: 0.01646381559 | AS119: 80601 | AT119: 0
Y120: 30.00 | Z120: 12.00 | AA120: 116.65 | AB120: 0.85 | AC120: 0.0011665 | AD120: 8.5e-06 | AE120: 96921.59073 | AF120: 0 | AG120: =AD120*AF120*5 -> 0 | AH120: 0 | AJ120: 0 | AK120: 0 | AL120: 100000 | AM120: 0 | AO120: 79274 | AP120: 0 | AQ120: 0.01826576179 | AR120: 0.01826576179 | AS120: 79274 | AT120: 0
Y121: 35.00 | Z121: 17.00 | AA121: 162.45 | AB121: 2.95 | AC121: 0.0016245 | AD121: 2.95e-05 | AE121: 96356.29555 | AF121: 0 | AG121: 0 | AH121: 0 | AJ121: 0 | AK121: 0 | AL121: 100000 | AM121: 0 | AO121: 77826 | AP121: 0 | AQ121: 0.02025030196 | AR121: 0.02025030196 | AS121: 77826 | AT121: 0
Y122: 40.00 | Z122: 22.00 | AA122: 237.75 | AB122: 9.25 | AC122: 0.0023775 | AD122: 9.25e-05 | AE122: 95573.64154 | AF122: 0 | AG122: 0 | AH122: 0 | AJ122: 0 | AK122: 0 | AL122: 100000 | AM122: 0 | AO122: 76250 | AP122: 0 | AQ122: 0.02230819672 | AR122: 0.02230819672 | AS122: 76250 | AT122: 0
Y123: 45.00 | Z123: 27.00 | AA123: 357.85 | AB123: 21.3 | AC123: 0.0035785 | AD123: 0.000213 | AE123: 94437.50987 | AF123: 0 | AG123: 0 | AH123: 0 | AJ123: 0 | AK123: 0 | AL123: 100000 | AM123: 0 | AO123: 74549 | AP123: 0 | AQ123: 0.02429274705 | AR123: 0.02429274705 | AS123: 74549 | AT123: 0
Y124: 50.00 | Z124: 32.00 | AA124: 522.3 | AB124: 44.85 | AC124: 0.005223 | AD124: 0.0004485 | AE124: 92747.78673 | AF124: 0 | AG124: 0 | AH124: 0 | AJ124: 0 | AK124: 0 | AL124: 100000 | AM124: 0 | AO124: 72738 | AP124: 0 | AQ124: 0.02610739916 | AR124: 0.02610739916 | AS124: 72738 | AT124: 0
Y125: 55.00 | Z125: 37.00 | AA125: 809.65 | AB125: 94.45 | AC125: 0.0080965 | AD125: 0.0009445 | AE125: 90325.67828 | AF125: 0 | AG125: 0 | AH125: 0 | AJ125: 0 | AK125: 0 | AL125: 100000 | AM125: 0 | AO125: 70839 | AP125: 0 | AQ125: 0.02783777298 | AR125: 0.02783777298 | AS125: 70839 | AT125: 0
Y126: 60.00 | Z126: 42.00 | AA126: 1273.75 | AB126: 164.25 | AC126: 0.0127375 | AD126: 0.0016425 | AE126: 86669.06901 | AF126: 0 | AG126: 0 | AH126: 0 | AJ126: =IF(K126<10,0, IF(AND(OR(K126>10, K126=10),K126<10+$I$63),$I$61*$I$62*((K126-10)^3), $I$61*$I$62*((K126-10)^3-(K126-10-$I$63)^3))) -> 0 | AK126: =R126+AJ126 -> 0 | AL126: 100000 | AM126: =AL126*AJ126 -> 0 | AO126: 68867 | AP126: =IF($K126<10,0, IF(AND(OR($K126>10, $K126=10),$K126<10+$I$63),$I$61*$I$62*(($K126-10)^3), $I$61*$I$62*(($K126-10)^3-($K126-10-$I$63)^3))) -> 0 | AQ126: =(AO126-AO127)/AO126 -> 0.02957875325 | AR126: =AQ126+AP126 -> 0.02957875325 | AS126: 68867 | AT126: =AS126*AP126 -> 0
Y127: 65.00 | Z127: 47.00 | AA127: 1963.4 | AB127: 254.55 | AC127: 0.019634 | AD127: 0.0025455 | AE127: 81149.33268 | AF127: 0 | AG127: 0 | AH127: 0 | AJ127: 0 | AK127: 0 | AL127: =AL126-AL126*AK126 -> 100000 | AM127: 0 | AO127: 66830 | AP127: 0 | AQ127: 0.03154272034 | AR127: 0.03154272034 | AS127: =AS126-AS126*AR126 -> 66830 | AT127: 0
Y128: 70.00 | Z128: 52.00 | AA128: 3043.6 | AB128: 341.35 | AC128: 0.030436 | AD128: 0.0034135 | AE128: 73182.90269 | AF128: 0 | AG128: 0 | AH128: 0 | AJ128: 0 | AK128: 0 | AL128: 100000 | AM128: 0 | AO128: 64722 | AP128: 0 | AQ128: 0.03386792744 | AR128: 0.03386792744 | AS128: 64722 | AT128: 0
Y129: 75.00 | Z129: 57.00 | AA129: 4701.9 | AB129: 387.95 | AC129: 0.047019 | AD129: 0.0038795 | AE129: 62045.92856 | AF129: 0 | AG129: 0 | AH129: 0 | AJ129: 0 | AK129: 0 | AL129: 100000 | AM129: 0 | AO129: 62530 | AP129: 0 | AQ129: 0.03675035983 | AR129: 0.03675035983 | AS129: 62530 | AT129: 0
Y130: 80.00 | Z130: 62.00 | AA130: 7700.85 | AB130: 411.2 | AC130: 0.0770085 | AD130: 0.004112 | AE130: 47459.24098 | AF130: 0 | AG130: 0 | AH130: 0 | AJ130: 0 | AK130: 0 | AL130: 100000 | AM130: 0 | AO130: 60232 | AP130: 0 | AQ130: 0.04012817107 | AR130: 0.04012817107 | AS130: 60232 | AT130: 0
Y131: 85.00 | Z131: 67.00 | AA131: 15687 | AB131: 356.25 | AC131: 0.15687 | AD131: 0.0035625 | AE131: 29185.41619 | AF131: 0 | AG131: 0 | AH131: 0 | AJ131: 0 | AK131: 0 | AL131: 100000 | AM131: 0 | AO131: 57815 | AP131: 0 | AQ131: 0.04377756638 | AR131: 0.04377756638 | AS131: 57815 | AT131: 0
AJ132: 0 | AK132: 0 | AL132: 100000 | AM132: 0 | AO132: 55284 | AP132: 0 | AQ132: 0.04760871138 | AR132: 0.04760871138 | AS132: 55284 | AT132: 0
AJ133: 0 | AK133: 0 | AL133: 100000 | AM133: 0 | AO133: 52652 | AP133: 0 | AQ133: 0.05183088961 | AR133: 0.05183088961 | AS133: 52652 | AT133: 0
AH134: =SUM(AH113:AH131)/100000*1000000 -> 0 | AJ134: 0 | AK134: 0 | AL134: 100000 | AM134: 0 | AO134: 49923 | AP134: 0 | AQ134: 0.05648698996 | AR134: 0.05648698996 | AS134: 49923 | AT134: 0
AJ135: 0 | AK135: 0 | AL135: 100000 | AM135: 0 | AO135: 47103 | AP135: 0 | AQ135: 0.06156720379 | AR135: 0.06156720379 | AS135: 47103 | AT135: 0
AJ136: 0 | AK136: 0 | AL136: 100000 | AM136: 0 | AO136: 44203 | AP136: 0 | AQ136: 0.06703164944 | AR136: 0.06703164944 | AS136: 44203 | AT136: 0
AJ137: 0 | AK137: 0 | AL137: 100000 | AM137: 0 | AO137: 41240 | AP137: 0 | AQ137: 0.07286614937 | AR137: 0.07286614937 | AS137: 41240 | AT137: 0
AJ138: 0 | AK138: 0 | AL138: 100000 | AM138: 0 | AO138: 38235 | AP138: 0 | AQ138: 0.07901137701 | AR138: 0.07901137701 | AS138: 38235 | AT138: 0
AJ139: 0 | AK139: 0 | AL139: 100000 | AM139: 0 | AO139: 35214 | AP139: 0 | AQ139: 0.08539217357 | AR139: 0.08539217357 | AS139: 35214 | AT139: 0
AJ140: 0 | AK140: 0 | AL140: 100000 | AM140: 0 | AO140: 32207 | AP140: 0 | AQ140: 0.09193653554 | AR140: 0.09193653554 | AS140: 32207 | AT140: 0
AJ141: 0 | AK141: 0 | AL141: 100000 | AM141: 0 | AO141: 29246 | AP141: 0 | AQ141: 0.09850919784 | AR141: 0.09850919784 | AS141: 29246 | AT141: 0
AJ142: 0 | AK142: 0 | AL142: 100000 | AM142: 0 | AO142: 26365 | AP142: 0 | AQ142: 0.1048738858 | AR142: 0.1048738858 | AS142: 26365 | AT142: 0
AJ143: 0 | AK143: 0 | AL143: 100000 | AM143: 0 | AO143: 23600 | AP143: 0 | AQ143: 0.1105932203 | AR143: 0.1105932203 | AS143: 23600 | AT143: 0
AJ144: 0 | AK144: 0 | AL144: 100000 | AM144: 0 | AO144: 20990 | AP144: 0 | AQ144: 0.1149595045 | AR144: 0.1149595045 | AS144: 20990 | AT144: 0
AJ145: 0 | AK145: 0 | AL145: 100000 | AM145: 0 | AO145: 18577 | AP145: 0 | AQ145: 0.1170264305 | AR145: 0.1170264305 | AS145: 18577 | AT145: 0
AJ146: 0 | AK146: 0 | AL146: 100000 | AM146: 0 | AO146: 16403 | AP146: 0 | AQ146: 1 | AR146: 1 | AS146: 16403 | AT146: 0
AJ147: 0 | AK147: 0 | AL147: 100000 | AM147: 0
AJ148: 0 | AK148: 0 | AL148: 100000 | AM148: 0
AJ149: 0 | AK149: 0 | AL149: 100000 | AM149: 0
AJ150: 0 | AK150: 0 | AL150: 100000 | AM150: 0
AJ151: 0 | AK151: 0 | AL151: 100000 | AM151: 0
AJ152: 0 | AK152: 0 | AL152: 100000 | AM152: 0
AJ153: 0 | AK153: 0 | AL153: 100000 | AM153: 0
AJ154: 0 | AK154: 0 | AL154: 100000 | AM154: 0
AJ155: 0 | AK155: 0 | AL155: 100000 | AM155: 0
AJ156: 0 | AK156: 0 | AL156: 100000 | AM156: 0
AJ157: 0 | AK157: 0 | AL157: 100000 | AM157: 0
AJ158: 0 | AK158: 0 | AL158: 100000 | AM158: 0
AJ159: 0 | AK159: 0 | AL159: 100000 | AM159: 0
AJ160: 0 | AK160: 0 | AL160: 100000 | AM160: 0
AJ161: 0 | AK161: 0 | AL161: 100000 | AM161: 0
AJ162: 0 | AK162: 0 | AL162: 100000 | AM162: 0
AJ163: 0 | AK163: 0 | AL163: 100000 | AM163: 0
AJ164: 0 | AK164: 0 | AL164: 100000 | AM164: 0
AJ165: 0 | AK165: 0 | AL165: 100000 | AM165: 0
AJ166: 0 | AK166: 0 | AL166: 100000 | AM166: 0
AJ167: 0 | AK167: 0 | AL167: 100000 | AM167: 0
AJ168: 0 | AK168: 0 | AL168: 100000 | AM168: 0
AJ169: 0 | AK169: 0 | AL169: 100000 | AM169: 0
AJ170: 0 | AK170: 0 | AL170: 100000 | AM170: 0
AJ171: 0 | AK171: 0 | AL171: 100000 | AM171: 0
AJ172: 0 | AK172: 0 | AL172: 100000 | AM172: 0
AJ173: 0 | AK173: 0 | AL173: 100000 | AM173: 0
AJ174: 0 | AK174: 0 | AL174: 100000 | AM174: 0
AJ175: 0 | AK175: 0 | AL175: 100000 | AM175: 0
AJ176: 0 | AK176: 0 | AL176: 100000 | AM176: 0
AJ177: 0 | AK177: 0 | AL177: 100000 | AM177: 0
AJ178: 0 | AK178: 0 | AL178: 100000 | AM178: 0
AJ179: 0 | AK179: 0 | AL179: 100000 | AM179: 0
AJ180: 0 | AK180: 0 | AL180: 100000 | AM180: 0
AM182: Both genders mesothelioma | AT182: Male mesethelioma 1977
AM183: =SUM(AM61:AM180)/100000*1000000 -> 0 | AT183: =SUM(AT61:AT180)/100000*1000000 -> 0
A187: Hodgson and Darnton, 2000 | B187: Occupational Equivalent, Total Exposure, F/CC Years | D187: Lung Cancer Lifetime Excess Risk, per 1,000000 | E187: Age at Onset Correction Factor | F187: Pleural Mesothelioma Lifetime Excess Risk, per 1,000,000 | G187: Peritoneal Mesothelioma Lifetime Excess Risk, per 1,000,000 | H187: Total Excess Risk, per 1,000,000 | I187: LUNG CANCER RELATIVE RISK
A188: Tremolite | B188: =O54 -> 3.00E+00 | D188: =1.6*(B188^1.3)*54/1000*1000000/100 -> 3.60E+03 | E188: =10^(1.0787-0.0368*P51) -> 2.61 | F188: =0.13*(B188^0.75)*1000000/100*E188*0.7 -> 5409.8139987 | G188: =0.0006*(B188^2.1)*100000/100*10*E188*0.7 -> 1.10E+02 | H188: =D188+F188+G188 -> 9123.7309071 | I188: =(1.6*(B188^1.3))/100+1 -> 1.06674 | J188: =F188+G188 -> 5519.84
A189: Chrysotile | B189: =O53 -> 1.77E+00 | D189: =0.028*(B189^1.3)*54/1000*1000000/100*IF(B18<5,1.4,1) -> 3.18E+01 | E189: =10^(1.0787-0.0368*P51) -> 2.61 | F189: =0.0047*(B189^0.75)*1000000/100*E189*0.7*IF(B18<5,1.4,1) -> 131.6666687 | G189: =0*(B189^2.1)*100000/100*10*E189*0.7 -> 0.00E+00 | H189: =D189+F189+G189 -> 163.4293413 | I189: =(0.028*(B189^1.3))/100+1 -> 1.00059 | J189: =F189+G189 -> 131.67
A190: Crocidolite | B190: =O56 -> 3.90E-02 | D190: =1.6*(B190^1.3)*54/1000*1000000/100 -> 1.27E+01 | E190: =10^(1.0787-0.0368*P51) -> 2.61 | F190: =0.94*(B190^0.75)*1000000/100*E190*0.7 -> 1505.9978397 | G190: =0.0022*(B190^2.1)*100000/100*10*E190*0.7 -> 4.42E-02 | H190: =D190+F190+G190 -> 1518.7740348 | I190: =(1.6*(B190^1.3))/100+1 -> 1.00024
A191: Amosite | B191: =O58 -> 8.10E-02 | D191: =1.6*(B191^1.3)*54/1000*1000000/100 -> 3.29E+01 | E191: =10^(1.0787-0.0368*P51) -> 2.61 | F191: =0.13*(B191^0.75)*1000000/100*E191*0.7 -> 360.3339284 | G191: =0.0006*(B191^2.1)*100000/100*10*E191*0.7 -> 5.59E-02 | H191: =D191+F191+G191 -> 393.3162241 | I191: =(1.6*(B191^1.3))/100+1 -> 1.00061
A192: Moolgavkar, 2010 for Libby, Montana, Lifetable Method | L192: Male | O192: Female | R192: Total
H193: Kl | I193: =0.11*10^(-2) -> 0.0011 | L193: Probability of death | N193: LE | O193: Probability of death | P193: Sx (surviving till age x) | Q193: LE | R193: Probability of death | U193: Mesothelioma male | Z193: Lung cancer male | AF193: P | AJ193: Mesothelioma both genders | AO193: mesothelioma male 1977 | AQ193: Death rate
H194: Km | I194: =0.5*10^(-8) -> 5e-09 | J194: 0 | K194: =J194-$P$51 -> -18 | L194: 0.007379 | M194: 100,000 | N194: 75.38 | O194: 0.006096 | P194: 100,000 | Q194: 80.43 | R194: =(L194+O194)/2 -> 0.0067375 | S194: 100000 | U194: =IF($K194<10,0, IF(AND(OR($K194>10, $K194=10),$K194<10+$I$63),$I$61*$I$62*(($K194-10)^3), $I$61*$I$62*(($K194-10)^3-($K194-10-$I$63)^3))) -> 0 | V194: =L194+U194 -> 0.007379 | W194: =100000 -> 100000 | X194: =W194*U194 -> 0 | Z194: 0.00 | AA194: 799.9 | AB194: 0 | AC194: =AA194/100000 -> 0.007999 | AD194: =AB194/100000 -> 0 | AE194: =100000 -> 100000 | AF194: =IF(Z194<10,0,IF(AND(OR(Z194>10,Z194=10),Z194<10+$I$63),$I$60*$I$62*(Z194-10),$I$60*$I$62*Z194)) -> 0 | AG194: =AD194*AF194 -> 0 | AH194: =AE194*AG194 -> 0 | AJ194: =IF(K194<10,0, IF(AND(OR(K194>10, K194=10),K194<10+$I$196),$I$194*$I$195*((K194-10)^3), $I$194*$I$195*((K194-10)^3-(K194-10-$I$196)^3))) -> 0 | AK194: =R194+AJ194 -> 0.0067375 | AL194: =100000 -> 100000 | AM194: =AL194*AJ194 -> 0 | AO194: 100000 | AP194: =IF($K194<10,0, IF(AND(OR($K194>10, $K194=10),$K194<10+$I$63),$I$61*$I$62*(($K194-10)^3), $I$61*$I$62*(($K194-10)^3-($K194-10-$I$63)^3))) -> 0 | AQ194: =(AO194-AO195)/AO194 -> 0.01586 | AR194: =AQ194+AP194 -> 0.01586 | AS194: =100000 -> 100000 | AT194: =AS194*AP194 -> 0
H195: f | I195: =N51*2.8 ->  | J195: 1 | K195: =J195-$P$51 -> -17 | L195: 0.000494 | M195: 99,262 | N195: 74.94 | O195: 0.000434 | P195: 99,390 | Q195: 79.92 | R195: =(L195+O195)/2 -> 0.000464 | S195: =S194-R194*S194 -> 99326.25 | U195: =IF($K195<10,0, IF(AND(OR($K195>10, $K195=10),$K195<10+$I$63),$I$61*$I$62*(($K195-10)^3), $I$61*$I$62*(($K195-10)^3-($K195-10-$I$63)^3))) -> 0 | V195: =L195+U195 -> 0.000494 | W195: =W194-W194*V194 -> 99262.1 | X195: =W195*U195 -> 0 | Z195: 1.00 | AA195: 36.5 | AB195: 0 | AC195: =AA195/100000 -> 0.000365 | AD195: 0 | AE195: =AE194-AC194*AE194*2 -> 98400.2 | AF195: =IF(Z195<10,0,IF(AND(OR(Z195>10,Z195=10),Z195<10+$I$63),$I$60*$I$62*(Z195-10),$I$60*$I$62*Z195)) -> 0 | AG195: =AD195*AF195 -> 0 | AH195: 0 | AJ195: =IF(K195<10,0, IF(AND(OR(K195>10, K195=10),K195<10+$I$196),$I$194*$I$195*((K195-10)^3), $I$194*$I$195*((K195-10)^3-(K195-10-$I$196)^3))) -> 0 | AK195: =R195+AJ195 -> 0.000464 | AL195: =AL194-AL194*AK194 -> 99326.25 | AM195: =AL195*AJ195 -> 0 | AO195: 98414 | AP195: =IF($K195<10,0, IF(AND(OR($K195>10, $K195=10),$K195<10+$I$63),$I$61*$I$62*(($K195-10)^3), $I$61*$I$62*(($K195-10)^3-($K195-10-$I$63)^3))) -> 0 | AQ195: =(AO195-AO196)/AO195 -> 0.001036437905 | AR195: =AQ195+AP195 -> 0.001036437905 | AS195: =AS194-AS194*AR194 -> 98414 | AT195: =AS195*AP195 -> 0
H196: d | I196: =I51 -> 30 | J196: 2 | K196: -16 | L196: 0.000317 | M196: 99,213 | N196: 73.98 | O196: 0.000256 | P196: 99,347 | Q196: 78.95 | R196: 0.0002865 | S196: =S195-R195*S195 -> 99280.16262 | U196: 0 | V196: 0.000317 | W196: =W195-W195*V195 -> 99213.06452 | X196: 0 | Z196: 5.00 | AA196: 18.3 | AB196: 0 | AC196: 0.000183 | AD196: 0 | AE196: =AE195-AC195*AE195*5 -> 98220.61963 | AF196: 0 | AG196: 0 | AH196: 0 | AJ196: 0 | AK196: 0.0002865 | AL196: =AL195-AL195*AK195 -> 99280.16262 | AM196: 0 | AO196: 98312 | AP196: 0 | AQ196: 0.0008035641631 | AR196: 0.0008035641631 | AS196: =AS195-AS195*AR195 -> 98312 | AT196: 0
J197: 3 | K197: -15 | L197: 0.000241 | M197: 99,182 | N197: 73 | O197: 0.000192 | P197: 99,322 | Q197: 77.97 | R197: 0.0002165 | S197: 99251.71885 | U197: 0 | V197: 0.000241 | W197: 99181.61398 | X197: 0 | Z197: 10.00 | AA197: 25 | AB197: 0 | AC197: 0.00025 | AD197: 0 | AE197: =AE196-AC196*AE196*5 -> 98130.74777 | AF197: 0 | AG197: 0 | AH197: 0 | AJ197: 0 | AK197: 0.0002165 | AL197: 99251.71885 | AM197: 0 | AO197: 98233 | AP197: 0 | AQ197: 0.0006413323425 | AR197: 0.0006413323425 | AS197: 98233 | AT197: 0
J198: 4 | K198: -14 | L198: 0.0002 | M198: 99,158 | N198: 72.02 | O198: 0.000148 | P198: 99,303 | Q198: 76.99 | R198: 0.000174 | S198: 99230.23086 | U198: 0 | V198: 0.0002 | W198: 99157.71121 | X198: 0 | Z198: 15.00 | AA198: 94.9 | AB198: 0 | AC198: 0.000949 | AD198: 0 | AE198: 98008.08433 | AF198: 0 | AG198: 0 | AH198: 0 | AJ198: 0 | AK198: 0.000174 | AL198: 99230.23086 | AM198: 0 | AO198: 98170 | AP198: 0 | AQ198: 0.0005398798003 | AR198: 0.0005398798003 | AS198: 98170 | AT198: 0
J199: 5 | K199: -13 | L199: 0.000179 | M199: 99,138 | N199: 71.03 | O199: 0.000136 | P199: 99,288 | Q199: 76 | R199: 0.0001575 | S199: 99212.9648 | U199: 0 | V199: 0.000179 | W199: 99137.87967 | X199: 0 | Z199: 20.00 | AA199: 142 | AB199: 0 | AC199: 0.00142 | AD199: 0 | AE199: 97543.03597 | AF199: 0 | AG199: 0 | AH199: 0 | AJ199: 0 | AK199: 0.0001575 | AL199: 99212.9648 | AM199: 0 | AO199: 98117 | AP199: 0 | AQ199: 0.0004892118593 | AR199: 0.0004892118593 | AS199: 98117 | AT199: 0
J200: 6 | K200: -12 | L200: 0.000166 | M200: 99,120 | N200: 70.04 | O200: 0.000128 | P200: 99,275 | Q200: 75.01 | R200: 0.000147 | S200: 99197.33875 | U200: 0 | V200: 0.000166 | W200: 99120.13399 | X200: 0 | Z200: 25.00 | AA200: 141.9 | AB200: 0.3 | AC200: 0.001419 | AD200: 3e-06 | AE200: 96850.48042 | AF200: 0 | AG200: =AD200*AF200*5 -> 0 | AH200: 0 | AJ200: 0 | AK200: 0.000147 | AL200: 99197.33875 | AM200: 0 | AO200: 98069 | AP200: 0 | AQ200: 0.000448663696 | AR200: 0.000448663696 | AS200: 98069 | AT200: 0
J201: 7 | K201: -11 | L201: 0.000152 | M201: 99,104 | N201: 69.05 | O201: 0.000122 | P201: 99,262 | Q201: 74.02 | R201: 0.000137 | S201: 99182.75675 | U201: 0 | V201: 0.000152 | W201: 99103.68005 | X201: 0 | Z201: 30.00 | AA201: 157.3 | AB201: 0.8 | AC201: 0.001573 | AD201: 8e-06 | AE201: 96163.32626 | AF201: 0 | AG201: 0 | AH201: 0 | AJ201: 0 | AK201: 0.000137 | AL201: 99182.75675 | AM201: 0 | AO201: 98025 | AP201: 0 | AQ201: 0.0004182606478 | AR201: 0.0004182606478 | AS201: 98025 | AT201: 0
H202: Libby Amphibole | I202: =AH267+AM316 ->  | J202: 8 | K202: -10 | L202: 0.000133 | M202: 99,089 | N202: 68.06 | O202: 0.000115 | P202: 99,250 | Q202: 73.03 | R202: 0.000124 | S202: 99169.16871 | U202: 0 | V202: 0.000133 | W202: 99088.61629 | X202: 0 | Z202: 35.00 | AA202: 209.8 | AB202: 3.3 | AC202: 0.002098 | AD202: 3.3e-05 | AE202: 95407.0017 | AF202: 0 | AG202: 0 | AH202: 0 | AJ202: 0 | AK202: 0.000124 | AL202: 99169.16871 | AM202: 0 | AO202: 97984 | AP202: 0 | AQ202: 0.0003674069236 | AR202: 0.0003674069236 | AS202: 97984 | AT202: 0
J203: 9 | K203: -9 | L203: 0.000108 | M203: 99,075 | N203: 67.07 | O203: 0.000106 | P203: 99,238 | Q203: 72.04 | R203: 0.000107 | S203: 99156.87173 | U203: 0 | V203: 0.000108 | W203: 99075.4375 | X203: 0 | Z203: 40.00 | AA203: 303.3 | AB203: 10.4 | AC203: 0.003033 | AD203: 0.000104 | AE203: 94406.18225 | AF203: 0 | AG203: 0 | AH203: 0 | AJ203: 0 | AK203: 0.000107 | AL203: 99156.87173 | AM203: 0 | AO203: 97948 | AP203: 0 | AQ203: 0.0003164944665 | AR203: 0.0003164944665 | AS203: 97948 | AT203: 0
J204: 10 | K204: -8 | L204: 8.9e-05 | M204: 99,065 | N204: 66.08 | O204: 0.0001 | P204: 99,228 | Q204: 71.04 | R204: 9.45e-05 | S204: 99146.26195 | U204: 0 | V204: 8.9e-05 | W204: 99064.73735 | X204: 0 | Z204: 45.00 | AA204: 461.7 | AB204: 26 | AC204: 0.004617 | AD204: 0.00026 | AE204: 92974.5125 | AF204: 0 | AG204: 0 | AH204: 0 | AJ204: 0 | AK204: 9.45e-05 | AL204: 99146.26195 | AM204: 0 | AO204: 97917 | AP204: 0 | AQ204: 0.0002757437421 | AR204: 0.0002757437421 | AS204: 97917 | AT204: 0
J205: 11 | K205: -7 | L205: 9.4e-05 | M205: 99,056 | N205: 65.09 | O205: 0.000102 | P205: 99,218 | Q205: 70.05 | R205: 9.8e-05 | S205: 99136.89262 | U205: 0 | V205: 9.4e-05 | W205: 99055.92059 | X205: 0 | Z205: 50.00 | AA205: 658.3 | AB205: 54.6 | AC205: 0.006583 | AD205: 0.000546 | AE205: 90828.19588 | AF205: 0 | AG205: 0 | AH205: 0 | AJ205: 0 | AK205: 9.8e-05 | AL205: 99136.89262 | AM205: 0 | AO205: 97890 | AP205: 0 | AQ205: 0.0002758197977 | AR205: 0.0002758197977 | AS205: 97890 | AT205: 0
J206: 12 | K206: -6 | L206: 0.000145 | M206: 99,047 | N206: 64.09 | O206: 0.00012 | P206: 99,208 | Q206: 69.06 | R206: 0.0001325 | S206: 99127.17721 | U206: 0 | V206: 0.000145 | W206: 99046.60934 | X206: 0 | Z206: 55.00 | AA206: 1007.5 | AB206: 118 | AC206: 0.010075 | AD206: 0.00118 | AE206: 87838.58581 | AF206: 0 | AG206: 0 | AH206: 0 | AJ206: 0 | AK206: 0.0001325 | AL206: 99127.17721 | AM206: 0 | AO206: 97863 | AP206: 0 | AQ206: 0.0003576428272 | AR206: 0.0003576428272 | AS206: 97863 | AT206: 0
J207: 13 | K207: -5 | L207: 0.000252 | M207: 99,032 | N207: 63.1 | O207: 0.000157 | P207: 99,196 | Q207: 68.07 | R207: 0.0002045 | S207: 99114.04286 | U207: 0 | V207: 0.000252 | W207: 99032.24758 | X207: 0 | Z207: 60.00 | AA207: 1565.5 | AB207: 206.2 | AC207: 0.015655 | AD207: 0.002062 | AE207: 83413.71705 | AF207: 0 | AG207: 0 | AH207: 0 | AJ207: 0 | AK207: 0.0002045 | AL207: 99114.04286 | AM207: 0 | AO207: 97828 | AP207: 0 | AQ207: 0.0005315451609 | AR207: 0.0005315451609 | AS207: 97828 | AT207: 0
J208: 14 | K208: -4 | L208: 0.000401 | M208: 99,007 | N208: 62.12 | O208: 0.000209 | P208: 99,180 | Q208: 67.08 | R208: 0.000305 | S208: 99093.77404 | U208: 0 | V208: 0.000401 | W208: 99007.29145 | X208: 0 | Z208: 65.00 | AA208: 2399.3 | AB208: 327.5 | AC208: 0.023993 | AD208: 0.003275 | AE208: 76884.50835 | AF208: 0 | AG208: 0 | AH208: 0 | AJ208: 0 | AK208: 0.000305 | AL208: 99093.77404 | AM208: 0 | AO208: 97776 | AP208: 0 | AQ208: 0.0007772868598 | AR208: 0.0007772868598 | AS208: 97776 | AT208: 0
J209: 15 | K209: -3 | L209: 0.000563 | M209: 98,968 | N209: 61.14 | O209: 0.000267 | P209: 99,160 | Q209: 66.09 | R209: 0.000415 | S209: 99063.55043 | U209: 0 | V209: 0.000563 | W209: 98967.58953 | X209: 0 | Z209: 70.00 | AA209: 3705.4 | AB209: 444 | AC209: 0.037054 | AD209: 0.00444 | AE209: 67661.0583 | AF209: 0 | AG209: 0 | AH209: 0 | AJ209: 0 | AK209: 0.000415 | AL209: 99063.55043 | AM209: 0 | AO209: 97700 | AP209: 0 | AQ209: 0.001044012282 | AR209: 0.001044012282 | AS209: 97700 | AT209: 0
J210: 16 | K210: -2 | L210: 0.000719 | M210: 98,912 | N210: 60.18 | O210: 0.000323 | P210: 99,133 | Q210: 65.11 | R210: 0.000521 | S210: 99022.43906 | U210: 0 | V210: 0.000719 | W210: 98911.87077 | X210: 0 | Z210: 75.00 | AA210: 5591.2 | AB210: 507.3 | AC210: 0.055912 | AD210: 0.005073 | AE210: 55125.49403 | AF210: 0 | AG210: 0 | AH210: 0 | AJ210: 0 | AK210: 0.000521 | AL210: 99022.43906 | AM210: 0 | AO210: 97598 | AP210: 0 | AQ210: 0.001301256173 | AR210: 0.001301256173 | AS210: 97598 | AT210: 0
J211: 17 | K211: -1 | L211: 0.000873 | M211: 98,841 | N211: 59.22 | O211: 0.000369 | P211: 99,101 | Q211: 64.13 | R211: 0.000621 | S211: 98970.84837 | U211: 0 | V211: 0.000873 | W211: 98840.75314 | X211: 0 | Z211: 80.00 | AA211: 8956.9 | AB211: 549.6 | AC211: 0.089569 | AD211: 0.005496 | AE211: 39714.61092 | AF211: 0 | AG211: 0 | AH211: =AE211*AG211 -> 0 | AJ211: 0 | AK211: 0.000621 | AL211: 98970.84837 | AM211: 0 | AO211: 97471 | AP211: 0 | AQ211: 0.001518400345 | AR211: 0.001518400345 | AS211: 97471 | AT211: 0
J212: 18 | K212: 0 | L212: 0.001017 | M212: 98,754 | N212: 58.27 | O212: 0.000401 | P212: 99,064 | Q212: 63.15 | R212: 0.000709 | S212: 98909.38747 | U212: 0 | V212: 0.001017 | W212: 98754.46516 | X212: 0 | Z212: 85.00 | AA212: 16605.4 | AB212: 499 | AC212: 0.166054 | AD212: 0.00499 | AE212: 21928.62099 | AF212: 0 | AG212: 0 | AH212: 0 | AJ212: 0 | AK212: 0.000709 | AL212: 98909.38747 | AM212: 0 | AO212: 97323 | AP212: 0 | AQ212: 0.001685110406 | AR212: 0.001685110406 | AS212: 97323 | AT212: 0
J213: 19 | K213: 1 | L213: 0.001148 | M213: 98,654 | N213: 57.33 | O213: 0.000422 | P213: 99,025 | Q213: 62.18 | R213: 0.000785 | S213: 98839.26072 | U213: 0 | V213: 0.001148 | W213: 98654.03187 | X213: 0 | AJ213: 0 | AK213: 0.000785 | AL213: 98839.26072 | AM213: 0 | AO213: 97159 | AP213: 0 | AQ213: 0.001790878869 | AR213: 0.001790878869 | AS213: 97159 | AT213: 0
J214: 20 | K214: 2 | L214: 0.001285 | M214: 98,541 | N214: 56.4 | O214: 0.000441 | P214: 98,983 | Q214: 61.2 | R214: 0.000863 | S214: 98761.6719 | U214: 0 | V214: 0.001285 | W214: 98540.77704 | X214: 0 | AJ214: 0 | AK214: 0.000863 | AL214: 98761.6719 | AM214: 0 | AO214: 96985 | AP214: 0 | AQ214: 0.001897200598 | AR214: 0.001897200598 | AS214: 96985 | AT214: 0
J215: 21 | K215: 3 | L215: 0.001412 | M215: 98,414 | N215: 55.47 | O215: 0.000463 | P215: 98,939 | Q215: 60.23 | R215: 0.0009375 | S215: 98676.44058 | U215: 0 | V215: 0.001412 | W215: 98414.15214 | X215: 0 | AH215: =SUM(AH194:AH212)/100000*1000000 -> 0 | AJ215: 0 | AK215: 0.0009375 | AL215: 98676.44058 | AM215: 0 | AO215: 96801 | AP215: 0 | AQ215: 0.002004111528 | AR215: 0.002004111528 | AS215: 96801 | AT215: 0
J216: 22 | K216: 4 | L216: 0.001493 | M216: 98,275 | N216: 54.54 | O216: 0.000483 | P216: 98,894 | Q216: 59.26 | R216: 0.000988 | S216: 98583.93141 | U216: 0 | V216: 0.001493 | W216: 98275.19136 | X216: 0 | AJ216: 0 | AK216: 0.000988 | AL216: 98583.93141 | AM216: 0 | AO216: 96607 | AP216: 0 | AQ216: 0.002070243357 | AR216: 0.002070243357 | AS216: 96607 | AT216: 0
J217: 23 | K217: 5 | L217: 0.001513 | M217: 98,128 | N217: 53.63 | O217: 0.000499 | P217: 98,846 | Q217: 58.29 | R217: 0.001006 | S217: 98486.53049 | U217: 0 | V217: 0.001513 | W217: 98128.4665 | X217: 0 | AJ217: 0 | AK217: 0.001006 | AL217: 98486.53049 | AM217: 0 | AO217: 96407 | AP217: 0 | AQ217: 0.002074538156 | AR217: 0.002074538156 | AS217: 96407 | AT217: 0
J218: 24 | K218: 6 | L218: 0.001487 | M218: 97,980 | N218: 52.71 | O218: 0.000513 | P218: 98,796 | Q218: 57.32 | R218: 0.001 | S218: 98387.45304 | U218: 0 | V218: 0.001487 | W218: 97979.99813 | X218: 0 | AJ218: 0 | AK218: 0.001 | AL218: 98387.45304 | AM218: 0 | AO218: 96207 | AP218: 0 | AQ218: 0.002047668049 | AR218: 0.002047668049 | AS218: 96207 | AT218: 0
J219: 25 | K219: 7 | L219: 0.001446 | M219: 97,834 | N219: 51.78 | O219: 0.000528 | P219: 98,746 | Q219: 56.35 | R219: 0.000987 | S219: 98289.06559 | U219: 0 | V219: 0.001446 | W219: 97834.30187 | X219: 0 | Z219: Lung cancer female | AJ219: 0 | AK219: 0.000987 | AL219: 98289.06559 | AM219: 0 | AO219: 96010 | AP219: 0 | AQ219: 0.00201020727 | AR219: 0.00201020727 | AS219: 96010 | AT219: 0
J220: 26 | K220: 8 | L220: 0.001412 | M220: 97,693 | N220: 50.86 | O220: 0.000544 | P220: 98,694 | Q220: 55.38 | R220: 0.000978 | S220: 98192.05428 | U220: 0 | V220: 0.001412 | W220: 97692.83347 | X220: 0 | AF220: P | AJ220: 0 | AK220: 0.000978 | AL220: 98192.05428 | AM220: 0 | AO220: 95817 | AP220: 0 | AQ220: 0.001972510097 | AR220: 0.001972510097 | AS220: 95817 | AT220: 0
J221: 27 | K221: 9 | L221: 0.001389 | M221: 97,555 | N221: 49.93 | O221: 0.000563 | P221: 98,640 | Q221: 54.4 | R221: 0.000976 | S221: 98096.02245 | U221: 0 | V221: 0.001389 | W221: 97554.89119 | X221: 0 | Z221: 0.00 | AA221: 654.3 | AB221: 0 | AC221: =AA221/100000 -> 0.006543 | AD221: =AB221/100000 -> 0 | AE221: =100000 -> 100000 | AF221: =IF(Z221<10,0,IF(AND(OR(Z221>10,Z221=10),Z221<10+$I$63),$I$60*$I$62*(Z221-10),$I$60*$I$62*Z221)) -> 0 | AG221: =AD221*AF221 -> 0 | AH221: =AE221*AG221 -> 0 | AJ221: 0 | AK221: 0.000976 | AL221: 98096.02245 | AM221: 0 | AO221: 95628 | AP221: 0 | AQ221: 0.001924122642 | AR221: 0.001924122642 | AS221: 95628 | AT221: 0
J222: 28 | K222: 10 | L222: 0.001388 | M222: 97,419 | N222: 49 | O222: 0.000585 | P222: 98,584 | Q222: 53.44 | R222: 0.0009865 | S222: 98000.28073 | U222: 0 | V222: 0.001388 | W222: 97419.38745 | X222: 0 | Z222: 1.00 | AA222: 29.1 | AB222: 0 | AC222: =AA222/100000 -> 0.000291 | AD222: 0 | AE222: =AE221-AC221*AE221*2 -> 98691.4 | AF222: =IF(Z222<10,0,IF(AND(OR(Z222>10,Z222=10),Z222<10+$I$63),$I$60*$I$62*(Z222-10),$I$60*$I$62*Z222)) -> 0 | AG222: =AD222*AF222 -> 0 | AH222: 0 | AL222: 98000.28073 | AO222: 95444 | AP222: 0 | AQ222: 0.001896399983 | AR222: 0.001896399983 | AS222: 95444 | AT222: 0
J223: 29 | K223: 11 | L223: 0.001405 | M223: 97,284 | N223: 48.07 | O223: 0.000612 | P223: 98,527 | Q223: 52.47 | R223: 0.0010085 | S223: 97903.60345 | U223: 0 | V223: 0.001405 | W223: 97284.16934 | X223: 0 | Z223: 5.00 | AA223: 14.5 | AB223: 0 | AC223: 0.000145 | AD223: 0 | AE223: =AE222-AC222*AE222*5 -> 98547.80401 | AF223: 0 | AG223: 0 | AH223: 0 | AO223: 95263 | AP223: 0 | AQ223: 0.001879008639 | AR223: 0.001879008639 | AS223: 95263 | AT223: 0
J224: 30 | K224: 12 | L224: 0.001428 | M224: 97,147 | N224: 47.13 | O224: 0.000642 | P224: 98,466 | Q224: 51.5 | R224: 0.001035 | S224: 97804.86767 | U224: 0 | V224: 0.001428 | W224: 97147.48508 | X224: 0 | Z224: 10.00 | AA224: 16.6 | AB224: 0 | AC224: 0.000166 | AD224: 0 | AE224: =AE223-AC223*AE223*5 -> 98476.35686 | AF224: 0 | AG224: 0 | AH224: 0 | AO224: 95084 | AP224: 0 | AQ224: 0.001861511926 | AR224: 0.001861511926 | AS224: 95084 | AT224: 0
J225: 31 | K225: 13 | L225: 0.001453 | M225: 97,009 | N225: 46.2 | O225: 0.000678 | P225: 98,403 | Q225: 50.53 | R225: 0.0010655 | S225: 97703.63963 | U225: 0 | V225: 0.001453 | W225: 97008.75847 | X225: 0 | Z225: 15.00 | AA225: 40 | AB225: 0 | AC225: 0.0004 | AD225: 0 | AE225: 98394.62148 | AF225: 0 | AG225: 0 | AH225: 0 | AO225: 94907 | AP225: 0 | AQ225: 0.001864983616 | AR225: 0.001864983616 | AS225: 94907 | AT225: 0
J226: 32 | K226: 14 | L226: 0.001487 | M226: 96,868 | N226: 45.27 | O226: 0.000721 | P226: 98,336 | Q226: 49.56 | R226: 0.001104 | S226: 97599.5364 | U226: 0 | V226: 0.001487 | W226: 96867.80475 | X226: 0 | Z226: 20.00 | AA226: 48.2 | AB226: 0 | AC226: 0.000482 | AD226: 0 | AE226: 98197.83224 | AF226: 0 | AG226: 0 | AH226: 0 | AO226: 94730 | AP226: 0 | AQ226: 0.001889580914 | AR226: 0.001889580914 | AS226: 94730 | AT226: 0
J227: 33 | K227: 15 | L227: 0.001529 | M227: 96,724 | N227: 44.33 | O227: 0.000771 | P227: 98,266 | Q227: 48.6 | R227: 0.00115 | S227: 97491.78652 | U227: 0 | V227: 0.001529 | W227: 96723.76232 | X227: 0 | Z227: 25.00 | AA227: 56.5 | AB227: 0 | AC227: 0.000565 | AD227: 0 | AE227: 97961.17546 | AF227: 0 | AG227: 0 | AH227: 0 | AO227: 94551 | AP227: 0 | AQ227: 0.001967192309 | AR227: 0.001967192309 | AS227: 94551 | AT227: 0
J228: 34 | K228: 16 | L228: 0.001584 | M228: 96,576 | N228: 43.4 | O228: 0.00083 | P228: 98,190 | Q228: 47.64 | R228: 0.001207 | S228: 97379.67096 | U228: 0 | V228: 0.001584 | W228: 96575.87169 | X228: 0 | Z228: 30.00 | AA228: 76 | AB228: 0.9 | AC228: 0.00076 | AD228: 9e-06 | AE228: 97684.43514 | AF228: 0 | AG228: =AD228*AF228*5 -> 0 | AH228: 0 | AO228: 94365 | AP228: 0 | AQ228: 0.002087638425 | AR228: 0.002087638425 | AS228: 94365 | AT228: 0
J229: 35 | K229: 17 | L229: 0.001651 | M229: 96,423 | N229: 42.47 | O229: 0.000896 | P229: 98,108 | Q229: 46.68 | R229: 0.0012735 | S229: 97262.1337 | U229: 0 | V229: 0.001651 | W229: 96422.89551 | X229: 0 | Z229: 35.00 | AA229: 115.1 | AB229: 2.6 | AC229: 0.001151 | AD229: 2.6e-05 | AE229: 97313.23429 | AF229: 0 | AG229: 0 | AH229: 0 | AO229: 94168 | AP229: 0 | AQ229: 0.00223005692 | AR229: 0.00223005692 | AS229: 94168 | AT229: 0
J230: 36 | K230: 18 | L230: 0.001737 | M230: 96,264 | N230: 41.54 | O230: 0.000971 | P230: 98,020 | Q230: 45.72 | R230: 0.001354 | S230: 97138.27037 | U230: 0 | V230: 0.001737 | W230: 96263.70131 | X230: 0 | Z230: 40.00 | AA230: 172.2 | AB230: 8.1 | AC230: 0.001722 | AD230: 8.1e-05 | AE230: 96753.19662 | AF230: 0 | AG230: 0 | AH230: 0 | AO230: 93958 | AP230: 0 | AQ230: 0.002384043935 | AR230: 0.002384043935 | AS230: 93958 | AT230: 0
J231: 37 | K231: 19 | L231: 0.001845 | M231: 96,096 | N231: 40.61 | O231: 0.001056 | P231: 97,925 | Q231: 44.76 | R231: 0.0014505 | S231: 97006.74515 | U231: 0 | V231: 0.001845 | W231: 96096.49126 | X231: 0 | Z231: 45.00 | AA231: 254 | AB231: 16.6 | AC231: 0.00254 | AD231: 0.000166 | AE231: 95920.1516 | AF231: 0 | AG231: 0 | AH231: 0 | AO231: 93734 | AP231: 0 | AQ231: 0.002571105469 | AR231: 0.002571105469 | AS231: 93734 | AT231: 0
J232: 38 | K232: 20 | L232: 0.001979 | M232: 95,919 | N232: 39.68 | O232: 0.001153 | P232: 97,822 | Q232: 43.81 | R232: 0.001566 | S232: 96866.03687 | U232: 0 | V232: 0.001979 | W232: 95919.19323 | X232: 0 | Z232: 50.00 | AA232: 386.3 | AB232: 35.1 | AC232: 0.003863 | AD232: 0.000351 | AE232: 94701.96567 | AF232: 0 | AG232: 0 | AH232: 0 | AO232: 93493 | AP232: 0 | AQ232: 0.002770260875 | AR232: 0.002770260875 | AS232: 93493 | AT232: 0
... 804 more rows

Sheet REFERENCES
C1: REFERENCES:
B3: 1. | C3: Nicholson, W., “Airborne Asbestos Health Assessment Update,” Report 600/884003F, Washington, DC, U.S. Environmental Protection Agency (1986).
B4: 2. | C4: USEPA, “Integrated Risk Assessment System (IRIS). Asbestos (CASRN 1332-21-4).” [Online] Available at http://www.epa.gov/iris/subst/0371.htm(1988).
B5: 3. | C5: Hodgson, J., Darnton, A., “The Quantitative Risks of Mesothelioma and Lung Cancer in Relation to Asbestos Exposure,” Ann. Occup. Hyg. 44(8): 565–601 (2000).
B6: 4. | C6: Berman, D., Crump, K., “Technical Support Document for a Protocol to Assess Asbestos-related Risk,” EPA # 9345.4-06 (2003).
B7: 5. | C7: U.S. EPA, “Framework for Investigating Asbestos Contaminated Superfund Sites,” OSWER Directive 9200.0-68 (2008).
B8: 6. | C8: Berman, D., Crump, K., “Update of Potency Factors for Asbestos-Related Lung Cancer and Mesothelioma,” Critical Reviews in Toxicology 38(Suppl 1): 1-47 (2008a).
B9: 7. | C9: Berman, D., Crump, K., “A Meta-Analysis of Asbestos-Related Cancer Risk That Addresses Fiber Size and Mineral Type,” Critical Reviews in Toxicology 38 (S1): 49-73 (2008b).

Sheet COMMENTS
A1: COMMENTS
